{"text_format":"1","workbook":"xlsx","n_sheets":11,"sheets":["JPK","VAT-7K","Sprzedaż-I","Sprzedaż-II","Sprzedaż-III","Zakupy-I","Zakupy-II","Zakupy-III","ORD-ZU","Czynny_żal","A"],"not_rendered":{"charts":0,"images":64,"macros":1,"external_links":0,"defined_names":23,"comments":0,"pivot_tables":0},"unopened":[],"bounds":{"document_bytes":16777216,"sheet_cells":100000,"rows_first":2000,"rows_last":500,"rows_between":2000,"halvings":0,"cell_chars":16384,"cell_head_chars":4096},"cells_cut":0,"cells_raw":0,"read":"whole","date_system":"1900"}

{"sheet":"JPK","index":0,"n_rows":61,"n_cols":38,"rows_kept":61,"cut":false,"hidden":false,"merged":[[36,3,36,6],[36,7,36,12],[36,13,36,19],[36,20,36,23],[30,2,30,23],[31,2,31,23],[32,3,32,23],[35,3,35,6],[35,7,35,12],[35,13,35,19],[35,20,35,23],[33,3,33,23],[34,3,34,12],[34,13,34,23],[91,1,91,24],[37,2,37,23],[38,2,38,23],[39,3,39,9],[39,10,39,23],[40,3,40,9],[40,10,40,23],[41,2,41,23],[56,2,56,18],[56,19,56,22],[60,1,82,24],[58,1,59,24],[15,3,15,23],[16,3,16,23],[17,3,17,23],[19,2,19,23],[20,2,20,23],[18,6,18,12],[18,13,18,23],[18,3,18,5],[29,3,29,12],[28,13,28,23],[29,13,29,23],[25,3,25,23],[21,3,21,12],[21,13,21,23],[24,3,24,23],[27,3,27,23],[26,3,26,23],[28,3,28,12],[22,3,22,23],[23,15,23,23],[23,5,23,13],[23,3,23,4],[2,2,2,23],[14,2,14,23],[11,2,11,7],[12,2,12,7],[13,2,13,23],[11,8,11,12],[11,13,11,16],[12,8,12,12],[12,13,12,16],[11,17,12,23],[0,1,0,24],[8,2,8,7],[8,8,8,23],[9,2,9,23],[10,2,10,23],[7,2,7,11],[7,12,7,20],[7,21,7,23],[1,1,1,24],[3,2,3,23],[4,2,4,23],[5,2,5,23],[6,2,6,11],[6,12,6,13],[6,14,6,20],[6,21,6,23]]}
[null,"Tu wysyła się xml - JPK_WEB",null,null,null,null,null,null,null,null,null,null,null,null,null,null,null,null,null,null,null,null,null,null,null,null,1,1,null,null,null,null,null,null,null,true]
[null,null,null,null,null,null,null,null,null,null,null,null,null,null,null,null,null,null,null,null,null,null,null,null,null,null,1,2]
[null,null,"Jak wypełniać JPK_V7K",null,null,null,null,null,null,null,null,null,null,null,null,null,null,null,null,null,null,null,null,null,null,null,1,4]
[null,null,"  POLA JASNE WYPEŁNIA PODATNIK, WYPEŁNIĆ KOMPUTEROWO DUŻYMI LITERAMI",null,null,null,null,null,null,null,null,null,null,null,null,null,null,null,null,null,null,null,null,null,null,null,null,5]
[null,null,"                 Składanie JPK wyłącznie w wersji elektronicznej",null,null,null,null,null,null,null,null,null,null,null,null,null,null,null,null,null,null,null,null,null,null,null,null,7]
[null,null,null,null,null,null,null,null,null,null,null,null,null,null,null,null,null,null,null,null,null,null,null,null,null,null,null,8]
[null,null," 1. Numer Identyfikacji Podatkowej",null,null,null,null,null,null,null,null,null," 2. Nr dokumentu",null,null,null,null,null,null,null,null," 3. Status",null,null,null,null,null,10]
[null,null,{"$f":"'VAT-7K'!C7","v":0},null,null,null,null,null,null,null,null,null,null,null,null,null,null,null,null,null,null,null,null,null,null,null,null,11]
[null,null,"  JPK_V7K(2)"]
[null,null,"JEDNOLITY PLIK KONTROLNY\nDLA EWIDENCJI ZAKUPU I SPRZEDAŻY VAT"]
[null,null,"za okres",null,null,null,null,null,null,null,null,null,null,null,null,null,null,null,null,null,null,null,null,null,null,null,null,null,null,null,null,null,null,null,null,null,{"$f":"VALUE(\"01\"&IF(I13<10,\"0\",\"\")&I13&N13)","v":10},{"$f":"VALUE(DAY(DATE(N13,I13+1,0))&IF(I13<10,\"0\",\"\")&I13&N13)","v":0}]
[null,null,null,null,null,null,null,null," 4. Miesiąc",null,null,null,null," 5. Rok"]
[]
[]
[null,null," A. MIEJSCE I CEL SKŁADANIA JPK"]
[null,null,null," 6. Miejsce składania informacji JPK"]
[null,null,null,{"$f":"'VAT-7K'!E18","v":0}]
[null,null,null," 7. Cel złożenia formularza (zaznaczyć właściwy kwadrat):"]
[null,null,null,null,null,null,"          1. złożenie informacji",null,null,null,null,null,null,"     2. korekta informacji"]
[]
[null,null," B. DANE IDENTYFIKACYJNE PODATNIKA"]
[null,null,null," * - dotyczy podmiotów niebędących osobami fizycznymi",null,null,null,null,null,null,null,null,null," ** - dotyczy podmiotów będących osobami fizycznymi"]
[null,null,null," 8. Rodzaj podatnika (zaznaczyć właściwy kwadrat):"]
[null,null,null,null,null," 1. podatnik niebędący osobą fizyczną",null,null,null,null,null,null,null,null,null," 2. osoba fizyczna"]
[null,null,null," 9. Nazwa pełna * / Nazwisko, pierwsze imię, data urodzenia **"]
[null,null,null,{"$f":"'VAT-7K'!E27","v":0}]
[null,null,null,{"$f":"'VAT-7K'!E28","v":0}]
[null,null,null,{"$f":"'VAT-7K'!E29","v":0}]
[null,null,null," 10. Adres e-mail",null,null,null,null,null,null,null,null,null," 11. Telefon kontaktowy"]
[null,null,null,{"$f":"'VAT-7K'!D164","v":0},null,null,null,null,null,null,null,null,null,{"$f":"'VAT-7K'!X162","v":0}]
[]
[null,null," C. EWIDENCJA ZAKUPÓW I SPRZEDAŻY VAT"]
[null,null,null," 12. Nazwa systemu, z którego pochodzą dane"]
[null,null,null,{"$f":"'VAT-7K'!D155","v":0}]
[null,null,null,"Ewidencja sprzedaży VAT",null,null,null,null,null,null,null,null,null,"Ewidencja zakupów VAT"]
[null,null,null," 13. Liczba wierszy sprzedaży:",null,null,null,{"$f":"IF(AA1=1,'Sprzedaż-I'!A2,'Sprzedaż-II'!A2)","v":0},null,null,null,null,null," 15. Liczba wierszy zakupów:",null,null,null,null,null,null,{"$f":"IF(AA1=1,'Zakupy-I'!A2,'Zakupy-II'!A2)","v":0}]
[null,null,null," 14. Podatek należny:",null,null,null,{"$f":"IF(AA1=1,SUM('Sprzedaż-I'!AQ2,'Sprzedaż-I'!AS2,'Sprzedaż-I'!AU2,'Sprzedaż-I'!AY2,'Sprzedaż-I'!BA2,'Sprzedaż-I'!BC2,'Sprzedaż-I'!BE2,'Sprzedaż-I'!BG2,'Sprzedaż-I'!BH2,'Sprzedaż-I'!BI2)-SUM('Sprzedaż-I'!BJ2:BK2),SUM('Sprzedaż-II'!AQ2,'Sprzedaż-II'!AS2,'Sprzedaż-II'!AU2,'Sprzedaż-II'!AY2,'Sprzedaż-II'!BA2,'Sprzedaż-II'!BC2,'Sprzedaż-II'!BE2,'Sprzedaż-II'!BG2,'Sprzedaż-II'!BH2,'Sprzedaż-II'!BI2)-SUM('Sprzedaż-II'!BJ2:BK2))","v":0},null,null,null,null,null," 16. Podatek naliczony:",null,null,null,null,null,null,{"$f":"IF(AA1=1,SUM('Zakupy-I'!K2,'Zakupy-I'!M2:Q2),SUM('Zakupy-II'!K2,'Zakupy-II'!M2:Q2))","v":0}]
[]
[null,null," D. DATA SPORZĄDZENIA JPK"]
[null,null,null," 15. Data i czas wytworzenia JPK_VAT",null,null,null,null,null,null," 16. Uwagi własne (niewysyłane)"]
[]
[]
[]
[]
[]
[]
[]
[]
[]
[]
[]
[]
[]
[]
[]
[]
[null,null,"Dystrybucja © Signform.pl - producent aktywnych formularzy, e-mail: biuro@signform.pl; tel: +48 608 43 63 83",null,null,null,null,null,null,null,null,null,null,null,null,null,null,null,null,"JPK_V7K(2)",null,null,null,"1/1"]
[]
[null,"Instrukcja wypełniania"]
[]
[null,"Uzupełnij w arkuszu \"VAT-7K\" poz. 1, 4 i 5, jak również część A, B, G i H.\n\nZa pierwszy miesiąc kwartału wypełniamy zakładki: \"Sprzedaż-I\" i \"Zakupy-I\", przechodzimy na zakładkę JPK, wybieramy radiobutton \"Pierwszy miesiąc kwartału ...\" i klikamy \"Zapisz dane z JPK do pliku XML\". \n\nAnalogicznie w przypadku drugiego m-ca kwartału: wypełniamy zakładki: \"Sprzedaż-II\" i \"Zakupy-II\", przechodzimy na zakładkę JPK, wybieramy radiobutton \"Drugi miesiąc kwartału ...\" i klikamy \"Zapisz dane z JPK do pliku XML\".\n\nW trzecim m-cu kwartału wypełniamy wszystkie arkusze \"Sprzedaż - od I do III\" i \"Zakupy od I od III\", następnie przechodzimy na zakładkę \"VAT 7K\" i klikamy \"Zapisz dane JPK do pliku XML\". Generowany jest wówczas XML wyłącznie za trzeci miesiąc, natomiast VAT-7K tworzony z trzech miesięcy dlatego muszą być wypełnione rejestry za wszystkie trzy miesiące kwartału.\n\nPrzykład rozliczenia kwartalnego:\n\nJPK_VAT tylko część ewidencyjną za styczeń – przedsiębiorca wyśle do 25 lutego\nJPK_VAT tylko część ewidencyjną za luty – przedsiębiorca wyśle do 25 marca\nJPK_VAT część ewidencyjną za marzec oraz część deklaracyjną za styczeń, luty i marzec – przedsiębiorca wyśle do 25 kwietnia"]

{"sheet":"VAT-7K","index":1,"n_rows":400,"n_cols":44,"rows_kept":400,"cut":false,"hidden":false,"merged":[[217,1,217,25],[204,3,204,19],[242,1,242,24],[216,1,216,25],[207,2,207,25],[148,3,148,18],[149,3,149,18],[149,25,149,29],[160,23,160,29],[207,26,207,28],[208,2,208,29],[185,2,185,29],[186,2,186,29],[187,2,187,29],[193,2,193,29],[181,2,181,29],[169,2,169,29],[174,2,174,29],[171,2,171,29],[170,2,170,29],[160,3,160,12],[165,2,165,29],[166,2,166,29],[162,21,162,29],[0,20,0,31],[0,0,0,19],[131,9,131,24],[142,11,142,29],[147,2,147,29],[148,19,148,24],[148,25,148,29],[131,3,131,7],[75,25,75,29],[74,4,74,24],[74,25,74,29],[76,2,76,3],[81,2,81,29],[96,25,96,29],[95,3,95,24],[106,3,106,24],[73,2,73,29],[88,18,88,24],[88,25,88,29],[87,2,87,17],[79,4,79,18],[83,2,83,24],[77,4,77,24],[78,25,78,29],[162,3,162,20],[161,23,161,29],[151,2,151,29],[150,3,150,18],[76,25,76,29],[77,25,77,29],[75,4,75,24],[91,3,91,17],[91,18,91,24],[75,2,75,3],[78,2,78,3],[79,2,79,3],[79,25,80,29],[86,2,86,29],[90,25,90,29],[91,25,91,29],[85,4,85,24],[84,25,84,29],[85,25,85,29],[84,4,84,24],[84,2,85,3],[76,4,76,24],[161,3,161,12],[80,2,80,3],[78,4,78,18],[47,4,47,18],[48,4,48,18],[54,25,54,29],[80,4,80,18],[79,19,80,24],[90,18,90,24],[161,13,161,22],[12,9,12,29],[12,2,12,8],[87,18,87,24],[87,25,87,29],[88,3,88,17],[95,25,95,29],[93,25,93,29],[102,25,102,29],[96,3,96,24],[93,3,93,24],[94,25,94,29],[100,25,100,29],[97,25,97,29],[101,3,101,24],[99,3,99,24],[100,3,100,24],[77,2,77,3],[47,19,47,24],[45,4,45,18],[45,19,45,24],[47,25,47,29],[50,25,51,29],[49,4,49,18],[47,2,47,3],[49,2,49,3],[54,4,54,18],[55,4,55,18],[50,4,50,18],[51,4,51,18],[55,2,55,3],[54,2,54,3],[52,2,52,3],[53,4,53,18],[72,2,72,29],[74,2,74,3],[70,1,70,30],[59,2,59,3],[60,2,60,3],[60,19,60,24],[64,25,64,29],[43,4,43,18],[1,2,1,29],[32,4,32,18],[35,4,35,18],[6,28,6,29],[6,20,6,27],[25,4,25,29],[34,19,34,24],[5,20,5,21],[29,2,29,29],[5,28,5,29],[9,24,10,29],[8,24,8,29],[16,4,16,29],[13,9,13,29],[14,2,14,29],[15,2,15,29],[13,2,13,8],[41,2,41,3],[42,4,42,18],[35,19,35,24],[42,19,42,24],[43,19,43,24],[38,25,39,29],[69,2,69,29],[57,25,58,29],[60,4,60,18],[59,19,59,24],[67,2,67,29],[68,2,68,25],[68,26,68,28],[65,25,65,29],[66,2,66,3],[66,25,66,29],[64,4,64,24],[66,4,66,24],[65,4,65,24],[65,2,65,3],[64,2,64,3],[78,19,78,24],[56,2,56,3],[56,25,56,29],[55,19,55,24],[53,2,53,3],[46,2,46,3],[56,4,56,18],[57,19,58,24],[52,4,52,18],[62,25,62,29],[48,2,48,3],[48,19,48,24],[58,4,58,18],[60,25,60,29],[61,25,61,29],[61,2,61,3],[62,2,62,3],[55,25,55,29],[48,25,49,29],[54,19,54,24],[49,19,49,24],[52,19,52,24],[53,19,53,24],[71,2,71,29],[159,2,159,29],[153,3,153,29],[154,3,154,29],[155,3,155,19],[155,20,155,29],[156,3,156,12],[156,13,156,19],[156,20,156,25],[156,26,156,29],[157,3,157,12],[157,13,157,19],[157,20,157,25],[157,26,157,29],[158,2,158,29],[152,2,152,29],[145,2,145,29],[146,2,146,29],[139,3,139,29],[141,2,141,29],[142,2,142,8],[144,1,144,30],[140,3,140,29],[143,2,143,29],[142,9,142,10],[150,25,150,29],[149,19,149,24],[150,19,150,24],[136,3,136,11],[138,3,138,11],[132,25,132,29],[125,3,125,7],[131,25,131,29],[137,3,137,11],[135,3,135,11],[132,9,132,24],[130,3,130,7],[137,28,138,29],[128,20,128,29],[132,3,132,7],[127,3,127,7],[127,20,127,29],[129,8,129,29],[128,3,128,7],[134,2,134,29],[129,3,129,7],[130,8,130,29],[126,3,126,7],[125,20,125,29],[133,2,133,29],[125,8,128,19],[126,20,126,29],[98,3,98,24],[120,25,120,29],[122,3,122,6],[121,3,121,6],[102,3,102,24],[108,3,108,24],[109,25,110,29],[117,3,117,24],[82,2,82,29],[114,25,114,29],[98,25,98,29],[99,25,99,29],[97,3,97,24],[83,25,83,29],[104,2,104,29],[111,25,111,29],[92,2,92,29],[89,18,89,24],[101,25,101,29],[90,3,90,17],[94,3,94,24],[89,3,89,17],[89,25,89,29],[123,3,123,6],[119,25,119,29],[103,2,103,29],[108,25,108,29],[106,25,107,29],[107,3,107,24],[105,3,105,24],[116,3,116,24],[105,25,105,29],[118,3,118,24],[119,5,119,24],[119,3,120,4],[120,5,120,24],[122,13,122,19],[124,3,124,6],[117,25,118,29],[110,3,110,24],[109,3,109,24],[115,3,115,24],[114,3,114,24],[116,25,116,29],[112,3,112,24],[113,3,113,24],[112,25,113,29],[115,25,115,29],[111,3,111,24],[121,7,124,12],[121,13,121,19],[121,20,121,25],[121,26,121,29],[123,13,123,19],[123,20,123,25],[123,26,123,29],[122,20,122,25],[122,26,122,29],[124,26,124,29],[124,20,124,25],[124,13,124,19],[56,19,56,24],[58,2,58,3],[63,4,63,24],[61,4,61,18],[61,19,61,24],[63,25,63,29],[62,4,62,18],[62,19,62,24],[57,4,57,18],[59,4,59,18],[63,2,63,3],[57,2,57,3],[59,25,59,29],[42,2,42,3],[40,6,40,18],[37,19,37,24],[41,19,41,24],[36,19,36,24],[39,19,39,24],[37,2,37,3],[41,4,41,5],[42,25,42,29],[39,2,39,3],[41,6,41,18],[40,4,40,5],[40,2,40,3],[3,2,3,29],[4,2,4,29],[5,2,5,19],[6,2,6,19],[9,2,10,14],[5,22,5,27],[7,2,7,10],[8,2,8,14],[9,20,9,23],[10,20,10,23],[7,11,7,29],[8,15,8,23],[9,15,9,19],[10,15,10,19],[11,2,11,29],[16,2,16,3],[25,2,25,3],[17,4,17,29],[22,20,22,29],[40,19,40,24],[44,2,44,3],[37,6,37,18],[38,4,38,18],[24,22,24,29],[24,4,24,9],[44,25,44,29],[44,19,44,24],[38,19,38,24],[43,25,43,29],[44,4,44,18],[39,4,39,18],[36,6,36,18],[24,2,24,3],[34,2,34,3],[35,2,35,3],[36,2,36,3],[18,2,18,3],[26,4,26,29],[27,2,27,3],[52,25,52,29],[53,25,53,29],[46,19,46,24],[46,25,46,29],[46,4,46,18],[45,25,45,29],[51,19,51,24],[50,19,50,24],[33,4,33,18],[28,2,28,3],[31,25,31,29],[27,4,27,29],[28,4,28,29],[36,25,37,29],[33,2,33,3],[34,25,35,29],[33,19,33,24],[32,25,33,29],[31,19,31,24],[32,19,32,24],[34,4,34,18],[30,2,31,18],[40,25,41,29],[183,2,183,29],[177,2,177,29],[178,2,178,29],[179,2,179,29],[22,2,22,3],[23,2,23,3],[22,4,22,19],[20,2,20,29],[17,2,17,3],[19,13,19,19],[19,4,19,12],[19,21,19,29],[19,2,19,3],[18,4,18,29],[21,2,21,29],[23,4,23,29],[160,13,160,22],[51,2,51,3],[32,2,32,3],[43,2,43,3],[38,2,38,3],[50,2,50,3],[45,2,45,3],[26,2,26,3],[2,25,2,29],[2,12,2,24],[2,2,2,11],[180,2,180,29],[24,10,24,21],[163,21,163,29],[196,2,196,29],[195,2,195,29],[175,2,175,29],[176,2,176,29],[168,2,168,29],[164,2,164,29],[172,2,172,29],[173,2,173,29],[167,2,167,29],[163,3,163,20],[188,2,188,29],[189,2,189,29],[190,2,190,29],[192,2,192,29],[194,2,194,29],[191,2,191,29],[182,2,182,29],[184,2,184,29],[135,12,135,15],[135,16,135,20],[135,21,135,24],[135,25,135,27],[135,28,135,29],[136,12,136,15],[136,16,136,20],[136,21,136,24],[136,25,136,27],[136,28,136,29]]}
["Uruchamianie przycisków i opcji () wymaga włączenia makro",null,null,null,null,null,null,null,null,null,null,null,null,null,null,null,null,null,null,null,null,null,null,null,null,null,null,null,null,null,null,null,1,"URZĄD SKARBOWY W ALEKSANDROWIE KUJAWSKIM","0402",true,null,null,1,"LpSprzedazy",1,"LpZakupu","PL","POLSKA"]
[null,null,null,null,null,null,null,null,null,null,null,null,null,null,null,null,null,null,null,null,null,null,null,null,null,null,null,null,null,null,null,1,null,"URZĄD SKARBOWY W AUGUSTOWIE","2002",true,null,null,2,"KodKrajuNadaniaTIN",2,"KodKrajuNadaniaTIN","AF","AFGANISTAN"]
[null,null,"Pomoc techniczna tel. 608 43 63 83",null,null,null,null,null,null,null,null,null,null,null,null,null,null,null,null,null,null,null,null,null,null,null,null,null,null,null,null,null,null,"URZĄD SKARBOWY W BARTOSZYCACH","2802",null,null,null,"3","NrKontrahenta",3,"NrDostawcy","AX","ALAND ISLANDS"]
[null,null,"          DEKLARACJA JEST SKŁADANA WYŁĄCZNIE ZA POMOCĄ ŚRODKÓW KOMUNIKACJI ELEKTRONICZNEJ",null,null,null,null,null,null,null,null,null,null,null,null,null,null,null,null,null,null,null,null,null,null,null,null,null,null,null,null,null,null,"URZĄD SKARBOWY W BEŁCHATOWIE","1002",null,"PL,AF,AX,AL,DZ,AD,AO,AI,AQ,AG,AN,SA,AR,AM,AW,AU,AT,AZ,BS,BH,BD,BB,BE,BZ,BJ,BM,BT,BY,BO,BQ,BA,BW,BR,BN,IO,BG,BF,BI,XC,CL,CN,HR,CW,CY,TD,ME,DK,DM,DO,DJ,EG,EC,EL,ER,EE,ET,FK,FJ,PH,FI,FR,TF,GA,GM,GH,GI,GD,GL,GE,GU,GG,GY,GF,GP,GT,GN,GQ,GW,HT,ES,HN,HK,IN,ID,IQ,IR,IE,IS,IL,JM,JP,YE,JE,JO,KY,KH,CM,CA,QA,KZ,KE,KG,KI,CO,KM,CG,CD,KP,XK,CR,CU,KW,LA,LS,LB,LR,LY,LI,LT,LV,LU,MK,MG,YT,MO,MW,MV,MY,ML,MT,MP,MA,MQ,MR,MU,MX,XL,FM,UM,MD,MC,MN,MS,MZ,MM,NA,NR,NP,NL,DE,NE,NG,NI,NU,NF,NO,NC,NZ,PS,OM,PK,PW,PA,PG,PY,PE,PN,PF,GS,PT,PR,CF,CZ,KR,ZA,RE,RU,RO,RW,EH,BL,KN,LC,MF,VC,SV,WS,AS,SM,SN,RS,SC,SL,SG,SK,SI,SO,LK,PM,US,SZ,SD,SS,SR,SJ,SH,SY,CH,SE,TJ,TH,TW,TZ,TG,TK,TO,TT,TN,TR,TM,TV,UG,UA,UY,UZ,VU,WF,VA,HU,VE,GB,VN,IT,TL,CI,BV,CX,IM,SX,CK,VI,VG,HM,CC,MH,FO,SB,ST,TC,ZM,CV,ZW,AE,XI",null,4,"NazwaKontrahenta",4,"NazwaDostawcy","AL","ALBANIA"]
[null,null,null,null,null,null,null,null,null,null,null,null,null,null,null,null,null,null,null,null,null,null,null,null,null,null,null,null,null,null,null,null,null,"URZĄD SKARBOWY W BĘDZINIE","2402",null,null,null,5,"DowodSprzedazy",5,"DowodZakupu","DZ","ALGIERIA"]
[null,null," 1. Identyfikator podatkowy NIP podatnika",null,null,null,null,null,null,null,null,null,null,null,null,null,null,null,null,null," 2. Nr dokumentu",null,null,null,null,null,null,null," 3. Status",null,null,null,null,"URZĄD SKARBOWY W BIAŁEJ PODLASKIEJ","0602",null,null,null,6,"DataWystawienia",6,"DataZakupu","AD","ANDORA"]
[null,null,null,null,null,null,null,null,null,null,null,null,null,null,null,null,null,null,null,null,null,null,null,null,null,null,null,null,null,null,null,null,null,"URZĄD SKARBOWY W BIAŁOBRZEGACH","1402",null,null,null,7,"DataSprzedazy",7,"DataWplywu","AO","ANGOLA"]
[null,null,"VAT-7K",null,null,null,null,null,null,null,null," DEKLARACJA DLA PODATKU OD TOWARÓW I USŁUG",null,null,null,null,null,null,null,null,null,null,null,null,null,null,null,null,null,null,null,null,null,"URZĄD SKARBOWY W BIAŁOGARDZIE","3202",null,null,null,8,"TypDokumentu",8,"DokumentZakupu","AI","ANGUILLA"]
[null,null,null,null,null,null,null,null,null,null,null,null,null,null,null,null,null,null,null,null,null,null,null,null,null,null,null,null,null,null,null,null,null,"PIERWSZY URZĄD SKARBOWY W BIAŁYMSTOKU","2003",null,null,null,9,"GTU_01",9,"IMP","AQ","ANTARKTYDA"]
[null,null,"za ",null,null,null,null,null,null,null,null,null,null,null,null," 4. Kwartał",null,null,null,null," 5. Rok",null,null,null,null,null,null,null,null,null,null,null,null,"DRUGI URZĄD SKARBOWY W BIAŁYMSTOKU","2004",null,"",null,10,"GTU_02",10,"K_40","AG","ANTIGUA I BARBUDA"]
[null,null,null,null,null,null,null,null,null,null,null,null,null,null,null,null,null,null,null,null,null,null,null,null,null,null,null,null,null,null,null,null,null,"URZĄD SKARBOWY W BIELSKU PODLASKIM","2005",null,{"$f":"VALUE(\"01\"&IF(P11*3-2<10,\"0\",\"\")&P11*3&U11)","v":100},{"$f":"VALUE(DAY(DATE(U11,P11*3+1,0))&IF(P11*3<10,\"0\",\"\")&P11*3&U11)","v":0},11,"GTU_03",11,"K_41","AN","ANTYLE HOLENDERSKIE"]
[null,null,null,null,null,null,null,null,null,null,null,null,null,null,null,null,null,null,null,null,null,null,null,null,null,null,null,null,null,null,null,null,null,"PIERWSZY URZĄD SKARBOWY W BIELSKU-BIAŁEJ","2403",null,null,null,12,"GTU_04",12,"K_42","SA","ARABIA SAUDYJSKA"]
[null,null,"   Podstawa prawna:",null,null,null,null,null,null,"Art. 99 ust. 2 lub 3 ustawy z dnia 11 marca 2004 r. o podatku od towarów i usług (Dz. U. z 2021 r. poz. 685, z późn. zm.), zwanej dalej „ustawą”.",null,null,null,null,null,null,null,null,null,null,null,null,null,null,null,null,null,null,null,null,null,null,0,"DRUGI URZĄD SKARBOWY W BIELSKU-BIAŁEJ","2404",null,null,null,13,"GTU_05",13,"K_43","AR","ARGENTYNA"]
[null,null,"   Składający:",null,null,null,null,null,null,"Mali podatnicy, o których mowa w art. 2 pkt 25 ustawy, obowiązani do składania deklaracji za okresy kwartalne zgodnie z art. 99 ust. 2 lub 3 ustawy.",null,null,null,null,null,null,null,null,null,null,null,null,null,null,null,null,null,null,null,null,null,null,0,"DRUGI ŚLĄSKI URZĄD SKARBOWY W BIELSKU-BIAŁEJ","2472",null,null,null,14,"GTU_06",14,"K_44","AM","ARMENIA"]
[null,null,null,null,null,null,null,null,null,null,null,null,null,null,null,null,null,null,null,null,null,null,null,null,null,null,null,null,null,null,null,null,0,"URZĄD SKARBOWY W BIŁGORAJU","0603",null,null,null,15,"GTU_07",15,"K_45","AW","ARUBA"]
[null,null,"  A. MIEJSCE I CEL SKŁADANIA DEKLARACJI",null,null,null,null,null,null,null,null,null,null,null,null,null,null,null,null,null,null,null,null,null,null,null,null,null,null,null,null,null,null,"URZĄD SKARBOWY W BOCHNI","1202",null,null,null,16,"GTU_08",16,"K_46","AU","AUSTRALIA"]
[null,null,null,null," 6. Urząd skarbowy, do którego adresowana jest deklaracja",null,null,null,null,null,null,null,null,null,null,null,null,null,null,null,null,null,null,null,null,null,null,null,null,null,null,null,null,"URZĄD SKARBOWY W BOLESŁAWCU","0202",null,null,null,17,"GTU_09",17,"K_47","AT","AUSTRIA"]
[null,null,null,null,null,null,null,null,null,null,null,null,null,null,null,null,null,null,null,null,null,null,null,null,null,null,null,null,null,null,null,null,{"$f":"VLOOKUP(E18,AH1:AI400,2,FALSE)","v":{"$error":"#N/A"}},"URZĄD SKARBOWY W BRANIEWIE","2803",null,null,null,18,"GTU_10",18,"ZakupVAT_Marza","AZ","AZERBEJDŻAN"]
[null,null,null,null," 7. Cel złożenia formularza (zaznaczyć właściwy kwadrat):",null,null,null,null,null,null,null,null,null,null,null,null,null,null,null,null,null,null,null,null,null,null,null,null,null,null,null,null,"URZĄD SKARBOWY W BRODNICY","0403",null,null,null,19,"GTU_11",null,null,"BS","BAHAMY"]
[null,null,null,null,null,null,null,null,null,null,null,null,null,"          1. złożenie deklaracji",null,null,null,null,null,null,null,"           2. korekta deklaracji 1)",null,null,null,null,null,null,null,null,null,null,null,"URZĄD SKARBOWY W BRZEGU","1602",null,null,null,20,"GTU_12",null,null,"BH","BAHRAJN"]
[null,null,null,null,null,null,null,null,null,null,null,null,null,null,null,null,null,null,null,null,null,null,null,null,null,null,null,null,null,null,null,null,null,"URZĄD SKARBOWY W BRZESKU","1203",null,null,null,21,"GTU_13",null,null,"BD","BANGLADESZ"]
[null,null,"  B. DANE IDENTYFIKACYJNE PODATNIKA",null,null,null,null,null,null,null,null,null,null,null,null,null,null,null,null,null,null,null,null,null,null,null,null,null,null,null,null,null,null,"URZĄD SKARBOWY W BRZEZINACH","1003",null,null,null,22,"WSTO_EE",null,null,"BB","BARBADOS"]
[null,null,null,null," * - dotyczy podmiotów niebędących osobami fizycznymi",null,null,null,null,null,null,null,null,null,null,null,null,null,null,null," ** - dotyczy podmiotów będących osobami fizycznymi",null,null,null,null,null,null,null,null,null,null,null,null,"URZĄD SKARBOWY W BRZOZOWIE","1802",null,null,null,23,"IED",null,null,"BE","BELGIA"]
[null,null,null,null," 8. Rodzaj podatnika (zaznaczyć właściwy kwadrat):",null,null,null,null,null,null,null,null,null,null,null,null,null,null,null,null,null,null,null,null,null,null,null,null,null,null,null,null,"URZĄD SKARBOWY W BUSKU-ZDROJU","2602",null,null,null,24,"TP",null,null,"BZ","BELIZE"]
[null,null,null,null,null,null,null,null,null,null," 1. podatnik niebędący osobą fizyczną",null,null,null,null,null,null,null,null,null,null,null," 2. osoba fizyczna",null,null,null,null,null,null,null,null,null,null,"PIERWSZY URZĄD SKARBOWY W BYDGOSZCZY","0404",null,null,null,25,"TT_WNT",null,null,"BJ","BENIN"]
[null,null,null,null," 9. Nazwa pełna * / Nazwisko, pierwsze imię, data urodzenia **",null,null,null,null,null,null,null,null,null,null,null,null,null,null,null,null,null,null,null,null,null,null,null,null,null,null,null,null,"DRUGI URZĄD SKARBOWY W BYDGOSZCZY","0405",null,null,null,26,"TT_D",null,null,"BM","BERMUDY"]
[null,null,null,null,null,null,null,null,null,null,null,null,null,null,null,null,null,null,null,null,null,null,null,null,null,null,null,null,null,null,null,null,null,"TRZECI URZĄD SKARBOWY W BYDGOSZCZY","0406",null,null,null,27,"MR_T",null,null,"BT","BHUTAN"]
[null,null,null,null,null,null,null,null,null,null,null,null,null,null,null,null,null,null,null,null,null,null,null,null,null,null,null,null,null,null,null,null,null,"KUJAWSKO-POMORSKI URZĄD SKARBOWY W BYDGOSZCZY","0471",null,null,null,28,"MR_UZ",null,null,"BY","BIAŁORUŚ"]
[null,null,null,null,null,null,null,null,null,null,null,null,null,null,null,null,null,null,null,null,null,null,null,null,null,null,null,null,null,null,null,null,null,"URZĄD SKARBOWY W BYSTRZYCY KŁODZKIEJ","0203",null,null,null,29,"I_42",null,null,"BO","BOLIWIA"]
[null,null,null,null,null,null,null,null,null,null,null,null,null,null,null,null,null,null,null,null,null,null,null,null,null,null,null,null,null,null,null,null,null,"URZĄD SKARBOWY W BYTOMIU","2405",null,null,null,30,"I_63",null,null,"BQ","BONAIRE, SINT EUSTATIUS I SABA"]
[null,null,"  C. ROZLICZENIE PODATKU NALEŻNEGO",null,null,null,null,null,null,null,null,null,null,null,null,null,null,null,null,null,null,null,null,null,null,null,null,null,null,null,null,null,null,"URZĄD SKARBOWY W BYTOWIE","2202",null,null,null,31,"B_SPV",null,null,"BA","BOŚNIA I HERCEGOWINA"]
[null,null,null,null,null,null,null,null,null,null,null,null,null,null,null,null,null,null,null," Podstawa opodatkowania w zł",null,null,null,null,null," Podatek należny w zł",null,null,null,null,null,null,null,"URZĄD SKARBOWY W CHEŁMIE","0604",null,null,null,32,"B_SPV_DOSTAWA",null,null,"BW","BOTSWANA"]
[null,null,null,null," 1. Dostawa towarów oraz świadczenie usług na terytorium ",null,null,null,null,null,null,null,null,null,null,null,null,null,null," 10. ",null,null,null,null,null,null,null,null,null,null,null,null,null,"URZĄD SKARBOWY W CHEŁMNIE","0407",null,null,null,33,"B_MPV_PROWIZJA",null,null,"BR","BRAZYLIA"]
[null,null,null,null,"     kraju, zwolnione od podatku",null,null,null,null,null,null,null,null,null,null,null,null,null,null,{"$f":"'Sprzedaż-I'!AK2+'Sprzedaż-II'!AK2+'Sprzedaż-III'!AK2","v":0},null,null,null,null,null,null,null,null,null,null,null,null,null,"URZĄD SKARBOWY W CHODZIEŻY","3037",null,null,null,34,"KorektaPodstawyOpodt",null,null,"BN","BRUNEI DARUSSALAM"]
[null,null,null,null," 2. Dostawa towarów oraz świadczenie usług poza terytorium ",null,null,null,null,null,null,null,null,null,null,null,null,null,null," 11. ",null,null,null,null,null,null,null,null,null,null,null,null,null,"URZĄD SKARBOWY W CHOJNICACH","2203",null,null,null,35,"TerminPlatnosci",null,null,"IO","BRYTYJSKIE TERYTORIUM OCEANU INDYJSKIEGO"]
[null,null,null,null,"     kraju",null,null,null,null,null,null,null,null,null,null,null,null,null,null,{"$f":"'Sprzedaż-I'!AL2+'Sprzedaż-II'!AL2+'Sprzedaż-III'!AL2","v":0},null,null,null,null,null,null,null,null,null,null,null,null,null,"URZĄD SKARBOWY W CHORZOWIE","2406",null,null,null,36,"DataZaplaty",null,null,"BG","BUŁGARIA"]
[null,null,null,null,null,null,"  - w tym świadczenie usług, o których mowa w art. 100",null,null,null,null,null,null,null,null,null,null,null,null," 12. ",null,null,null,null,null,null,null,null,null,null,null,null,null,"URZĄD SKARBOWY W CHOSZCZNIE","3203",null,null,null,37,"K_10",null,null,"BF","BURKINA FASO"]
[null,null,null,null,null,null," ust. 1 pkt 4 ustawy",null,null,null,null,null,null,null,null,null,null,null,null,{"$f":"'Sprzedaż-I'!AM2+'Sprzedaż-II'!AM2+'Sprzedaż-III'!AM2","v":0},null,null,null,null,null,null,null,null,null,null,null,null,null,"URZĄD SKARBOWY W CHRZANOWIE","1204",null,null,null,38,"K_11",null,null,"BI","BURUNDI"]
[null,null,null,null," 3. Dostawa towarów oraz świadczenie usług na terytorium kraju, '",null,null,null,null,null,null,null,null,null,null,null,null,null,null," 13. ",null,null,null,null,null,null,null,null,null,null,null,null,null,"URZĄD SKARBOWY W CIECHANOWIE","1403",null,null,null,39,"K_12",null,null,"XC","CEUTA"]
[null,null,null,null,"     opodatkowane stawką 0%",null,null,null,null,null,null,null,null,null,null,null,null,null,null,{"$f":"'Sprzedaż-I'!AN2+'Sprzedaż-II'!AN2+'Sprzedaż-III'!AN2","v":0},null,null,null,null,null,null,null,null,null,null,null,null,null,"URZĄD SKARBOWY W CIESZYNIE","2407",null,null,null,40,"K_13",null,null,"CL","CHILE"]
[null,null,null,null,null,null,"  - w tym dostawa towarów, o której mowa w art. 129",null,null,null,null,null,null,null,null,null,null,null,null," 14. ",null,null,null,null,null,null,null,null,null,null,null,null,null,"URZĄD SKARBOWY W CZARNKOWIE","3002",null,null,null,41,"K_14",null,null,"CN","CHINY"]
[null,null,null,null,null,null," ustawy",null,null,null,null,null,null,null,null,null,null,null,null,{"$f":"'Sprzedaż-I'!AO2+'Sprzedaż-II'!AO2+'Sprzedaż-III'!AO2","v":0},null,null,null,null,null,null,null,null,null,null,null,null,null,"URZĄD SKARBOWY W CZECHOWICACH-DZIEDZICACH","2408",null,null,null,42,"K_15",null,null,"HR","CHORWACJA"]
[null,null,null,null," 4. Dostawa towarów oraz świadczenie usług na terytorium ",null,null,null,null,null,null,null,null,null,null,null,null,null,null," 15. ",null,null,null,null,null," 16. ",null,null,null,null,null,null,null,"PIERWSZY URZĄD SKARBOWY W CZĘSTOCHOWIE","2409",null,null,null,43,"K_16",null,null,"CW","CURAÇAO"]
[null,null,null,null,"     kraju, opodatkowane stawką 5%, oraz korekta dokonana \n     zgodnie z art. 89a ust. 1 i 4 ustawy",null,null,null,null,null,null,null,null,null,null,null,null,null,null,{"$f":"'Sprzedaż-I'!AP2+'Sprzedaż-II'!AP2+'Sprzedaż-III'!AP2","v":0},null,null,null,null,null,{"$f":"'Sprzedaż-I'!AQ2+'Sprzedaż-II'!AQ2+'Sprzedaż-III'!AQ2","v":0},null,null,null,null,null,null,null,"DRUGI URZĄD SKARBOWY W CZĘSTOCHOWIE","2410",null,null,null,44,"K_17",null,null,"CY","CYPR"]
[null,null,null,null," 5. Dostawa towarów oraz świadczenie usług na terytorium kraju,",null,null,null,null,null,null,null,null,null,null,null,null,null,null," 17. ",null,null,null,null,null," 18. ",null,null,null,null,null,null,null,"URZĄD SKARBOWY W CZŁUCHOWIE","2204",null,null,null,45,"K_18",null,null,"TD","CZAD"]
[null,null,null,null,"     opodatkowane stawką 7% albo 8%, oraz korekta dokonana \n     zgodnie z art. 89a ust. 1 i 4 ustawy",null,null,null,null,null,null,null,null,null,null,null,null,null,null,{"$f":"'Sprzedaż-I'!AR2+'Sprzedaż-II'!AR2+'Sprzedaż-III'!AR2","v":0},null,null,null,null,null,{"$f":"'Sprzedaż-I'!AS2+'Sprzedaż-II'!AS2+'Sprzedaż-III'!AS2","v":0},null,null,null,null,null,null,null,"URZĄD SKARBOWY W DĄBROWIE GÓRNICZEJ","2411",null,null,null,46,"K_19",null,null,"ME","CZARNOGÓRA"]
[null,null,null,null," 6. Dostawa towarów oraz świadczenie usług na terytorium kraju,",null,null,null,null,null,null,null,null,null,null,null,null,null,null," 19. ",null,null,null,null,null," 20. ",null,null,null,null,null,null,null,"URZĄD SKARBOWY W DĄBROWIE TARNOWSKIEJ","1205",null,null,null,47,"K_20",null,null,"DK","DANIA"]
[null,null,null,null,"     opodatkowane stawką 22% albo 23%, oraz korekta dokonana \n     zgodnie z art. 89a ust. 1 i 4 ustawy",null,null,null,null,null,null,null,null,null,null,null,null,null,null,{"$f":"'Sprzedaż-I'!AT2+'Sprzedaż-II'!AT2+'Sprzedaż-III'!AT2","v":0},null,null,null,null,null,{"$f":"'Sprzedaż-I'!AU2+'Sprzedaż-II'!AU2+'Sprzedaż-III'!AU2","v":0},null,null,null,null,null,null,null,"URZĄD SKARBOWY W DĘBICY","1803",null,null,null,48,"K_21",null,null,"DM","DOMINIKA"]
[null,null,null,null," 7. Wewnątrzwspólnotowa dostawa towarów",null,null,null,null,null,null,null,null,null,null,null,null,null,null," 21. ",null,null,null,null,null,null,null,null,null,null,null,null,null,"URZĄD SKARBOWY W DRAWSKU POMORSKIM","3204",null,null,null,49,"K_22",null,null,"DO","DOMINIKANA"]
[null,null,null,null,null,null,null,null,null,null,null,null,null,null,null,null,null,null,null,{"$f":"'Sprzedaż-I'!AV2+'Sprzedaż-II'!AV2+'Sprzedaż-III'!AV2","v":0},null,null,null,null,null,null,null,null,null,null,null,null,null,"URZĄD SKARBOWY W DREZDENKU","0812",null,null,null,50,"K_23",null,null,"DJ","DŻIBUTI"]
[null,null,null,null," 8. Eksport towarów",null,null,null,null,null,null,null,null,null,null,null,null,null,null," 22. ",null,null,null,null,null,null,null,null,null,null,null,null,null,"URZĄD SKARBOWY W DZIAŁDOWIE","2804",null,null,null,51,"K_24",null,null,"EG","EGIPT"]
[null,null,null,null,null,null,null,null,null,null,null,null,null,null,null,null,null,null,null,{"$f":"'Sprzedaż-I'!AW2+'Sprzedaż-II'!AW2+'Sprzedaż-III'!AW2","v":0},null,null,null,null,null,null,null,null,null,null,null,null,null,"URZĄD SKARBOWY W DZIERŻONIOWIE","0204",null,null,null,52,"K_25",null,null,"EC","EKWADOR"]
[null,null,null,null," 9. Wewnątrzwspólnotowe nabycie towarów",null,null,null,null,null,null,null,null,null,null,null,null,null,null," 23. ",null,null,null,null,null," 24. ",null,null,null,null,null,null,null,"URZĄD SKARBOWY W ELBLĄGU","2805",null,null,null,53,"K_26",null,null,"ER","ERYTREA"]
[null,null,null,null,null,null,null,null,null,null,null,null,null,null,null,null,null,null,null,{"$f":"'Sprzedaż-I'!AX2+'Sprzedaż-II'!AX2+'Sprzedaż-III'!AX2","v":0},null,null,null,null,null,{"$f":"'Sprzedaż-I'!AY2+'Sprzedaż-II'!AY2+'Sprzedaż-III'!AY2","v":0},null,null,null,null,null,null,null,"URZĄD SKARBOWY W EŁKU","2806",null,null,null,54,"K_27",null,null,"EE","ESTONIA"]
[null,null,null,null," 10. Import towarów podlegający rozliczeniu zgodnie z art. 33a",null,null,null,null,null,null,null,null,null,null,null,null,null,null," 25. ",null,null,null,null,null," 26. ",null,null,null,null,null,null,null,"URZĄD SKARBOWY W GARWOLINIE","1404",null,null,null,55,"K_28",null,null,"ET","ETIOPIA"]
[null,null,null,null,"       ustawy",null,null,null,null,null,null,null,null,null,null,null,null,null,null,{"$f":"'Sprzedaż-I'!AZ2+'Sprzedaż-II'!AZ2+'Sprzedaż-III'!AZ2","v":0},null,null,null,null,null,{"$f":"'Sprzedaż-I'!BA2+'Sprzedaż-II'!BA2+'Sprzedaż-III'!BA2","v":0},null,null,null,null,null,null,null,"PIERWSZY URZĄD SKARBOWY W GDAŃSKU","2205",null,null,null,56,"K_29",null,null,"FK","FALKLANDY"]
[null,null,null,null," 11. Import usług z wyłączeniem usług nabywanych od",null,null,null,null,null,null,null,null,null,null,null,null,null,null," 27. ",null,null,null,null,null," 28. ",null,null,null,null,null,null,null,"DRUGI URZĄD SKARBOWY W GDAŃSKU","2206",null,null,null,57,"K_30",null,null,"FJ","FIDŻI REPUBLIKA"]
[null,null,null,null,"      podatników podatku od wartości dodanej, do których stosuje",null,null,null,null,null,null,null,null,null,null,null,null,null,null,{"$f":"'Sprzedaż-I'!BB2+'Sprzedaż-II'!BB2+'Sprzedaż-III'!BB2","v":0},null,null,null,null,null,{"$f":"'Sprzedaż-I'!BC2+'Sprzedaż-II'!BC2+'Sprzedaż-III'!BC2","v":0},null,null,null,null,null,null,null,"TRZECI URZĄD SKARBOWY W GDAŃSKU","2207",null,null,null,58,"K_31",null,null,"PH","FILIPINY"]
[null,null,null,null,"      się art. 28b ustawy",null,null,null,null,null,null,null,null,null,null,null,null,null,null,null,null,null,null,null,null,null,null,null,null,null,null,null,null,"POMORSKI URZĄD SKARBOWY W GDAŃSKU","2271",null,null,null,59,"K_32",null,null,"FI","FINLANDIA"]
[null,null,null,null," 12. Import usług nabywanych od podatników podatku od",null,null,null,null,null,null,null,null,null,null,null,null,null,null," 29. ",null,null,null,null,null," 30. ",null,null,null,null,null,null,null,"PIERWSZY URZĄD SKARBOWY W GDYNI","2208",null,null,null,60,"K_33",null,null,"FR","FRANCJA"]
[null,null,null,null,"       wartości dodanej, do których stosuje się art. 28b ustawy",null,null,null,null,null,null,null,null,null,null,null,null,null,null,{"$f":"'Sprzedaż-I'!BD2+'Sprzedaż-II'!BD2+'Sprzedaż-III'!BD2","v":0},null,null,null,null,null,{"$f":"'Sprzedaż-I'!BE2+'Sprzedaż-II'!BE2+'Sprzedaż-III'!BE2","v":0},null,null,null,null,null,null,null,"DRUGI URZĄD SKARBOWY W GDYNI","2209",null,null,null,61,"K_34",null,null,"TF","FRANCUSKIE TERYTORIUM POŁUDNIOWE"]
[null,null,null,null," 13. Dostawa towarów, dla których podatnikiem jest nabywca",null,null,null,null,null,null,null,null,null,null,null,null,null,null," 31. ",null,null,null,null,null," 32.",null,null,null,null,null,null,null,"URZĄD SKARBOWY W GIŻYCKU","2807",null,null,null,62,"K_35",null,null,"GA","GABON"]
[null,null,null,null,"        zgodnie z art. 17 ust. 1 pkt 5 ustawy (wykazuje nabywca)",null,null,null,null,null,null,null,null,null,null,null,null,null,null,{"$f":"'Sprzedaż-I'!BF2+'Sprzedaż-II'!BF2+'Sprzedaż-III'!BF2","v":0},null,null,null,null,null,{"$f":"'Sprzedaż-I'!BG2+'Sprzedaż-II'!BG2+'Sprzedaż-III'!BG2","v":0},null,null,null,null,null,null,null,"PIERWSZY URZĄD SKARBOWY W GLIWICACH","2412",null,null,null,63,"K_36",null,null,"GM","GAMBIA"]
[null,null,null,null," 14. Kwota podatku należnego od towarów i usług objętych spisem z natury, o którym mowa w art. 14",null,null,null,null,null,null,null,null,null,null,null,null,null,null,null,null,null,null,null,null," 33.",null,null,null,null,null,null,null,"DRUGI URZĄD SKARBOWY W GLIWICACH","2413",null,null,null,64,"SprzedazVAT_Marza",null,null,"GH","GHANA"]
[null,null,null,null,"       ust. 5 ustawy",null,null,null,null,null,null,null,null,null,null,null,null,null,null,null,null,null,null,null,null,{"$f":"MAX(0,'Sprzedaż-I'!BH2+'Sprzedaż-II'!BH2+'Sprzedaż-III'!BH2)","v":0},null,null,null,null,null,null,null,"URZĄD SKARBOWY W GŁOGOWIE","0205",null,null,null,null,null,null,null,"GI","GIBRALTAR"]
[null,null,null,null," 15. Wysokość zwrotu odliczonej lub zwróconej kwoty wydanej na zakup kas rejestrujących, ",null,null,null,null,null,null,null,null,null,null,null,null,null,null,null,null,null,null,null,null," 34.",null,null,null,null,null,null,null,"URZĄD SKARBOWY W GŁOWNIE","1004",null,null,null,null,null,null,null,"EL","GRECJA"]
[null,null,null,null,"        o którym mowa w art. 111 ust. 6 ustawy",null,null,null,null,null,null,null,null,null,null,null,null,null,null,null,null,null,null,null,null,{"$f":"MAX(0,'Sprzedaż-I'!BI2+'Sprzedaż-II'!BI2+'Sprzedaż-III'!BI2)","v":0},null,null,null,null,null,null,null,"URZĄD SKARBOWY W GŁUBCZYCACH","1603",null,null,null,null,null,null,null,"GD","GRENADA"]
[null,null,null,null,null,null,null,null,null,null,null,null,null,null,null,null,null,null,null,null,null,null,null,null,null,null,null,null,null,null,null,null,null,"URZĄD SKARBOWY W GNIEŹNIE","3003",null,null,null,null,null,null,null,"GL","GRENLANDIA"]
[null,null,"© Dystrybucja Signform.pl - producent aktywnych formularzy, e-mail: biuro@signform.pl",null,null,null,null,null,null,null,null,null,null,null,null,null,null,null,null,null,null,null,null,null,null,null,"VAT-7K(16)",null,null,"1/3",null,null,null,"URZĄD SKARBOWY W GOLENIOWIE","3205",null,null,null,null,null,null,null,"GE","GRUZJA"]
[null,null,null,null,null,null,null,null,null,null,null,null,null,null,null,null,null,null,null,null,null,null,null,null,null,null,null,null,null,null,null,null,null,"URZĄD SKARBOWY W GOLUBIU-DOBRZYNIU","0422",null,null,null,null,null,null,null,"GU","GUAM"]
[null,null,null,null,null,null,null,null,null,null,null,null,null,null,null,null,null,null,null,null,null,null,null,null,null,null,null,null,null,null,null,null,null,"URZĄD SKARBOWY W GORLICACH","1206",null,null,null,null,null,null,null,"GG","GUERNSEY"]
[null,null,null,null,null,null,null,null,null,null,null,null,null,null,null,null,null,null,null,null,null,null,null,null,null,null,null,null,null,null,null,null,null,"URZĄD SKARBOWY W GORZOWIE WIELKOPOLSKIM","0802",null,null,null,null,null,null,null,"GY","GUJANA"]
[null,null,"          DEKLARACJA JEST SKŁADANA WYŁĄCZNIE ZA POMOCĄ ŚRODKÓW KOMUNIKACJI ELEKTRONICZNEJ",null,null,null,null,null,null,null,null,null,null,null,null,null,null,null,null,null,null,null,null,null,null,null,null,null,null,null,null,null,null,"URZĄD SKARBOWY W GOSTYNINIE","1405",null,null,null,null,null,null,null,"GF","GUJANA FRANCUSKA"]
[null,null,null,null,null,null,null,null,null,null,null,null,null,null,null,null,null,null,null,null,null,null,null,null,null,null,null,null,null,null,null,null,null,"URZĄD SKARBOWY W GOSTYNIU","3004",null,null,null,null,null,null,null,"GP","GWADELUPA"]
[null,null,null,null," 16. Kwota podatku należnego od wewnątrzwspólnotowego nabycia środków transportu, wykazanego ",null,null,null,null,null,null,null,null,null,null,null,null,null,null,null,null,null,null,null,null," 35.",null,null,null,null,null,null,null,"URZĄD SKARBOWY W GÓRZE","0233",null,null,null,null,null,null,null,"GT","GWATEMALA"]
[null,null,null,null,"    w poz. 24, podlegająca wpłacie w terminie, o którym mowa w art. 103 ust. 3, w związku z ust. 4 ustawy",null,null,null,null,null,null,null,null,null,null,null,null,null,null,null,null,null,null,null,null,{"$f":"MAX(0,'Sprzedaż-I'!BJ2+'Sprzedaż-II'!BJ2+'Sprzedaż-III'!BJ2)","v":0},null,null,null,null,null,null,null,"URZĄD SKARBOWY W GRAJEWIE","2006",null,null,null,null,null,null,null,"GN","GWINEA"]
[null,null,null,null," 17. Kwota podatku od wewnątrzwspólnotowego nabycia towarów, o których mowa w art. 103 ust. 5aa",null,null,null,null,null,null,null,null,null,null,null,null,null,null,null,null,null,null,null,null," 36.",null,null,null,null,null,null,null,"URZĄD SKARBOWY W GRODZISKU MAZOWIECKIM","1406",null,null,null,null,null,null,null,"GQ","GWINEA RÓWNIKOWA"]
[null,null,null,null,"      ustawy, podlegająca wpłacie w terminach, o których mowa w art. 103 ust. 5a i 5b ustawy",null,null,null,null,null,null,null,null,null,null,null,null,null,null,null,null,null,null,null,null,{"$f":"MAX(0,'Sprzedaż-I'!BK2+'Sprzedaż-II'!BK2+'Sprzedaż-III'!BK2)","v":0},null,null,null,null,null,null,null,"URZĄD SKARBOWY W GRODZISKU WIELKOPOLSKIM","3005",null,null,null,null,null,null,null,"GW","GWINEA-BISSAU"]
[null,null,null,null," Razem: (Poz. 37 = suma kwot z poz. 10, 11, 13, 15, 17, 19, 21, 22,",null,null,null,null,null,null,null,null,null,null,null,null,null,null," 37.",null,null,null,null,null," 38.",null,null,null,null,null,null,null,"URZĄD SKARBOWY W GRÓJCU","1407",null,null,null,null,null,null,null,"HT","HAITI"]
[null,null,null,null," 23, 25, 27, 29 i 31. Poz. 38 = suma kwot z poz. 16, 18, 20,",null,null,null,null,null,null,null,null,null,null,null,null,null,null,{"$f":"T34+T36+T40+T44+T46+T48+T50+T52+T54+T56+T58+T61+T63","v":0},null,null,null,null,null,{"$f":"Z44+Z46+Z48+Z54+Z56+Z58+Z61+Z63+Z65+Z67-Z76-Z78","v":0},null,null,null,null,null,null,null,"URZĄD SKARBOWY W GRUDZIĄDZU","0408",null,null,null,null,null,null,null,"ES","HISZPANIA"]
[null,null,null,null," 24, 26, 28, 30, 32, 33 i 34 pomniejszona o kwotę z poz. 35 i 36)",null,null,null,null,null,null,null,null,null,null,null,null,null,null,null,null,null,null,null,null,null,null,null,null,null,null,null,null,"URZĄD SKARBOWY W GRYFICACH","3206",null,null,null,null,null,null,null,"HN","HONDURAS"]
[null,null,null,null,null,null,null,null,null,null,null,null,null,null,null,null,null,null,null,null,null,null,null,null,null,null,null,null,null,null,null,null,null,"URZĄD SKARBOWY W GRYFINIE","3207",null,null,null,null,null,null,null,"HK","HONGKONG"]
[null,null,"  D. ROZLICZENIE PODATKU NALICZONEGO",null,null,null,null,null,null,null,null,null,null,null,null,null,null,null,null,null,null,null,null,null,null,null,null,null,null,null,null,null,null,"URZĄD SKARBOWY W HAJNÓWCE","2015",null,null,null,null,null,null,null,"IN","INDIE"]
[null,null,"  D.1. PRZENIESIENIA",null,null,null,null,null,null,null,null,null,null,null,null,null,null,null,null,null,null,null,null,null,null," Podatek do odliczenia w zł",null,null,null,null,null,null,null,"URZĄD SKARBOWY W HRUBIESZOWIE","0605",null,null,null,null,null,null,null,"ID","INDONEZJA"]
[null,null,null,null," Kwota nadwyżki z poprzedniej deklaracji",null,null,null,null,null,null,null,null,null,null,null,null,null,null,null,null,null,null,null,null," 39.",null,null,null,null,null,null,null,"URZĄD SKARBOWY W IŁAWIE","2808",null,null,null,null,null,null,null,"IQ","IRAK"]
[null,null,null,null," Kwota z poz. „Kwota do przeniesienia na następny okres rozliczeniowy” z poprzedniej deklaracji lub wynikająca z decyzji.",null,null,null,null,null,null,null,null,null,null,null,null,null,null,null,null,null,null,null,null,null,null,null,null,null,null,null,null,"URZĄD SKARBOWY W INOWROCŁAWIU","0409",null,null,null,null,null,null,null,"IR","IRAN"]
[null,null,"  D.2. NABYCIE TOWARÓW I USŁUG ORAZ PODATEK NALICZONY Z UWZGLĘDNIENIEM KOREKT",null,null,null,null,null,null,null,null,null,null,null,null,null,null,null,null,null,null,null,null,null,null,null,null,null,null,null,null,null,null,"URZĄD SKARBOWY W JANOWIE LUBELSKIM","0606",null,null,null,null,null,null,null,"IE","IRLANDIA"]
[null,null,null,null,null,null,null,null,null,null,null,null,null,null,null,null,null,null," Wartość netto w zł",null,null,null,null,null,null," Podatek naliczony w zł",null,null,null,null,null,null,null,"URZĄD SKARBOWY W JAROCINIE","3006",null,null,null,null,null,null,null,"IS","ISLANDIA"]
[null,null,null," Nabycie towarów i usług zaliczanych u podatnika do środków",null,null,null,null,null,null,null,null,null,null,null,null,null,null," 40. ",null,null,null,null,null,null," 41. ",null,null,null,null,null,null,null,"URZĄD SKARBOWY W JAROSŁAWIU","1804",null,null,null,null,null,null,null,"IL","IZRAEL"]
[null,null,null," trwałych",null,null,null,null,null,null,null,null,null,null,null,null,null,null,{"$f":"'Zakupy-I'!J2+'Zakupy-II'!J2+'Zakupy-III'!J2","v":0},null,null,null,null,null,null,{"$f":"'Zakupy-I'!K2+'Zakupy-II'!K2+'Zakupy-III'!K2","v":0},null,null,null,null,null,null,null,"URZĄD SKARBOWY W JASTRZĘBIU-ZDROJU","2414",null,null,null,null,null,null,null,"JM","JAMAJKA"]
[null,null,null," Nabycie towarów i usług pozostałych",null,null,null,null,null,null,null,null,null,null,null,null,null,null," 42. ",null,null,null,null,null,null," 43. ",null,null,null,null,null,null,null,"URZĄD SKARBOWY W JAŚLE","1805",null,null,null,null,null,null,null,"JP","JAPONIA"]
[null,null,null,null,null,null,null,null,null,null,null,null,null,null,null,null,null,null,{"$f":"'Zakupy-I'!L2+'Zakupy-II'!L2+'Zakupy-III'!L2","v":0},null,null,null,null,null,null,{"$f":"'Zakupy-I'!M2+'Zakupy-II'!M2+'Zakupy-III'!M2","v":0},null,null,null,null,null,null,null,"URZĄD SKARBOWY W JAWORZE","0206",null,null,null,null,null,null,null,"YE","JEMEN"]
[null,null,"  D.3. PODATEK NALICZONY – DO ODLICZENIA (w zł)",null,null,null,null,null,null,null,null,null,null,null,null,null,null,null,null,null,null,null,null,null,null,null,null,null,null,null,null,null,null,"URZĄD SKARBOWY W JAWORZNIE","2415",null,null,null,null,null,null,null,"JE","JERSEY"]
[null,null,null," Korekta podatku naliczonego od nabycia środków trwałych",null,null,null,null,null,null,null,null,null,null,null,null,null,null,null,null,null,null,null,null,null," 44. ",null,null,null,null,null,null,null,"URZĄD SKARBOWY W JELENIEJ GÓRZE","0207",null,null,null,null,null,null,null,"JO","JORDANIA"]
[null,null,null,null,null,null,null,null,null,null,null,null,null,null,null,null,null,null,null,null,null,null,null,null,null,{"$f":"'Zakupy-I'!N2+'Zakupy-II'!N2+'Zakupy-III'!N2","v":0},null,null,null,null,null,null,null,"URZĄD SKARBOWY W JĘDRZEJOWIE","2603",null,null,null,null,null,null,null,"KY","KAJMANY"]
[null,null,null," Korekta podatku naliczonego od pozostałych nabyć",null,null,null,null,null,null,null,null,null,null,null,null,null,null,null,null,null,null,null,null,null," 45. ",null,null,null,null,null,null,null,"URZĄD SKARBOWY W WEJHEROWIE","2220",null,null,null,null,null,null,null,"KH","KAMBODŻA"]
[null,null,null,null,null,null,null,null,null,null,null,null,null,null,null,null,null,null,null,null,null,null,null,null,null,{"$f":"'Zakupy-I'!O2+'Zakupy-II'!O2+'Zakupy-III'!O2","v":0},null,null,null,null,null,null,null,"PIERWSZY URZĄD SKARBOWY W KALISZU","3007",null,null,null,null,null,null,null,"CM","KAMERUN"]
[null,null,null," Korekta podatku naliczonego, o której mowa w art. 89b ust. 1 ustawy",null,null,null,null,null,null,null,null,null,null,null,null,null,null,null,null,null,null,null,null,null," 46. ",null,null,null,null,null,null,null,"DRUGI URZĄD SKARBOWY W KALISZU","3008",null,null,null,null,null,null,null,"CA","KANADA"]
[null,null,null,null,null,null,null,null,null,null,null,null,null,null,null,null,null,null,null,null,null,null,null,null,null,{"$f":"MIN(0,'Zakupy-I'!P2+'Zakupy-II'!P2+'Zakupy-III'!P2)","v":0},null,null,null,null,null,null,null,"DRUGI WIELKOPOLSKI URZĄD SKARBOWY W KALISZU","3072",null,null,null,null,null,null,null,"QA","KATAR"]
[null,null,null," Korekta podatku naliczonego, o której mowa w art. 89b ust. 4 ustawy",null,null,null,null,null,null,null,null,null,null,null,null,null,null,null,null,null,null,null,null,null," 47. ",null,null,null,null,null,null,null,"URZĄD SKARBOWY W KAMIENIU POMORSKIM","3208",null,null,null,null,null,null,null,"KZ","KAZACHSTAN"]
[null,null,null,null,null,null,null,null,null,null,null,null,null,null,null,null,null,null,null,null,null,null,null,null,null,{"$f":"MAX(0,'Zakupy-I'!Q2+'Zakupy-II'!Q2+'Zakupy-III'!Q2)","v":0},null,null,null,null,null,null,null,"URZĄD SKARBOWY W KAMIENNEJ GÓRZE","0208",null,null,null,null,null,null,null,"KE","KENIA"]
[null,null,null," Razem kwota podatku naliczonego do odliczenia",null,null,null,null,null,null,null,null,null,null,null,null,null,null,null,null,null,null,null,null,null," 48. ",null,null,null,null,null,null,null,"URZĄD SKARBOWY W KARTUZACH","2210",null,null,null,null,null,null,null,"KG","KIRGISTAN"]
[null,null,null," Należy wpisać sumę kwot z poz. 39, 41, 43, 44, 45, 46 i 47.",null,null,null,null,null,null,null,null,null,null,null,null,null,null,null,null,null,null,null,null,null,{"$f":"Z86+Z90+Z92+Z95+Z97+Z99+Z101","v":0},null,null,null,null,null,null,null,"PIERWSZY URZĄD SKARBOWY W KATOWICACH","2416",null,null,null,null,null,null,null,"KI","KIRIBATI"]
[null,null,null,null,null,null,null,null,null,null,null,null,null,null,null,null,null,null,null,null,null,null,null,null,null,null,null,null,null,null,null,null,null,"DRUGI URZĄD SKARBOWY W KATOWICACH","2417",null,null,null,null,null,null,null,"CO","KOLUMBIA"]
[null,null,"  E. OBLICZENIE WYSOKOŚCI ZOBOWIĄZANIA PODATKOWEGO LUB KWOTY ZWROTU (w zł)",null,null,null,null,null,null,null,null,null,null,null,null,null,null,null,null,null,null,null,null,null,null,null,null,null,null,null,null,null,null,"URZĄD SKARBOWY W KAZIMIERZY WIELKIEJ","2614",null,null,null,null,null,null,null,"KM","KOMORY"]
[null,null,null," Kwota wydana na zakup kas rejestrujących, do odliczenia w danym okresie rozliczeniowym pomniejszająca",null,null,null,null,null,null,null,null,null,null,null,null,null,null,null,null,null,null,null,null,null," 49.",null,null,null,null,null,null,null,"URZĄD SKARBOWY W KĘDZIERZYNIE-KOŹLU","1604",null,null,null,null,null,null,null,"CG","KONGO"]
[null,null,null," wysokość podatku należnego. Kwota wykazana w poz. 49 nie może być wyższa od różnicy kwot z poz. 38 i 48.",null,null,null,null,null,null,null,null,null,null,null,null,null,null,null,null,null,null,null,null,null,null,null,null,null,null,null,null,null,"URZĄD SKARBOWY W KĘPNIE","3009",null,null,null,null,null,null,null,"CD","KONGO, REPUBLIKA DEMOKRATYCZNA"]
[null,null,null," Jeżeli różnica kwot pomiędzy poz. 38 i 48 jest mniejsza lub równa 0, wówczas należy wpisać 0.",null,null,null,null,null,null,null,null,null,null,null,null,null,null,null,null,null,null,null,null,null,null,null,null,null,null,null,null,null,"URZĄD SKARBOWY W KĘTRZYNIE","2809",null,null,null,null,null,null,null,"KP","KOREAŃSKA REPUBLIKA LUDOWO-DEMOKRATYCZNA"]
[null,null,null," Kwota podatku objęta zaniechaniem poboru",null,null,null,null,null,null,null,null,null,null,null,null,null,null,null,null,null,null,null,null,null," 50.",null,null,null,null,null,null,null,"PIERWSZY URZĄD SKARBOWY W KIELCACH","2604",null,null,null,null,null,null,null,"XK","KOSOWO"]
[null,null,null," Kwota ta nie może być wyższa niż różnica pomiędzy kwotą z poz. 38 a sumą kwot z poz. 48 i 49.",null,null,null,null,null,null,null,null,null,null,null,null,null,null,null,null,null,null,null,null,null,null,null,null,null,null,null,null,null,"DRUGI URZĄD SKARBOWY W KIELCACH","2605",null,null,null,null,null,null,null,"CR","KOSTARYKA"]
[null,null,null," Jeżeli różnica kwot pomiędzy poz. 38 i 48, pomniejszona o kwotę z poz. 49 jest mniejsza od 0, wówczas należy wpisać 0.",null,null,null,null,null,null,null,null,null,null,null,null,null,null,null,null,null,null,null,null,null,null,null,null,null,null,null,null,null,"URZĄD SKARBOWY W KLUCZBORKU","1605",null,null,null,null,null,null,null,"CU","KUBA"]
[null,null,null," Kwota podatku podlegającego wpłacie do urzędu skarbowego",null,null,null,null,null,null,null,null,null,null,null,null,null,null,null,null,null,null,null,null,null," 51.",null,null,null,null,null,null,null,"URZĄD SKARBOWY W KŁOBUCKU","2418",null,null,null,null,null,null,null,"KW","KUWEJT"]
[null,null,null," Jeżeli różnica kwot pomiędzy poz. 38 i 48 jest większa od 0, wówczas poz. 51=poz. 38 - poz. 48 - poz. 49 - poz. 50",null,null,null,null,null,null,null,null,null,null,null,null,null,null,null,null,null,null,null,null,null,{"$f":"IF(Z80-Z103>0,Z80-Z103-Z107-Z110,0)","v":0},null,null,null,null,null,null,null,"URZĄD SKARBOWY W KŁODZKU","0209",null,null,null,null,null,null,null,"LA","LAOS"]
[null,null,null," w przeciwnym wypadku należy wpisać 0.",null,null,null,null,null,null,null,null,null,null,null,null,null,null,null,null,null,null,null,null,null,null,null,null,null,null,null,null,null,"URZĄD SKARBOWY W KOLBUSZOWEJ","1806",null,null,null,null,null,null,null,"LS","LESOTHO"]
[null,null,null," Kwota wydana na zakup kas rejestrujących, do odliczenia w danym okresie rozliczeniowym przysługująca",null,null,null,null,null,null,null,null,null,null,null,null,null,null,null,null,null,null,null,null,null," 52.",null,null,null,null,null,null,null,"URZĄD SKARBOWY W KOLE","3010",null,null,null,null,null,null,null,"LB","LIBAN"]
[null,null,null," do zwrotu w danym okresie rozliczeniowym lub powiększająca wysokość podatku naliczonego do   \n przeniesienia na następny okres rozliczeniowy",null,null,null,null,null,null,null,null,null,null,null,null,null,null,null,null,null,null,null,null,null,null,null,null,null,null,null,null,null,"URZĄD SKARBOWY W KOLNIE","2007",null,null,null,null,null,null,null,"LR","LIBERIA"]
[null,null,null," Nadwyżka podatku naliczonego nad należnym",null,null,null,null,null,null,null,null,null,null,null,null,null,null,null,null,null,null,null,null,null," 53.",null,null,null,null,null,null,null,"URZĄD SKARBOWY W KOŁOBRZEGU","3209",null,null,null,null,null,null,null,"LY","LIBIA"]
[null,null,null," Jeżeli różnica kwot pomiędzy poz. 48 i 38 jest większa lub równa 0, wówczas poz. 53=poz. 48 - poz. 38 + poz. 52,",null,null,null,null,null,null,null,null,null,null,null,null,null,null,null,null,null,null,null,null,null,{"$f":"IF(Z103-Z80>=0,Z103-Z80+Z116,0)","v":0},null,null,null,null,null,null,null,"URZĄD SKARBOWY W KONINIE","3011",null,null,null,null,null,null,null,"LI","LIECHTENSTEIN"]
[null,null,null," w przeciwnym wypadku należy wpisać 0.",null,null,null,null,null,null,null,null,null,null,null,null,null,null,null,null,null,null,null,null,null,null,null,null,null,null,null,null,null,"URZĄD SKARBOWY W KOŃSKICH","2606",null,null,null,null,null,null,null,"LT","LITWA"]
[null,null,null,null,null," Kwota do zwrotu na rachunek wskazany przez podatnika",null,null,null,null,null,null,null,null,null,null,null,null,null,null,null,null,null,null,null," 54.",null,null,null,null,null,null,null,"PIERWSZY URZĄD SKARBOWY W KOSZALINIE","3210",null,null,null,null,null,null,null,"LV","ŁOTWA"]
[null,null,null,null,null,null,null,null,null,null,null,null,null,null,null,null,null,null,null,null,null,null,null,null,null,null,null,null,null,null,null,null,null,"DRUGI URZĄD SKARBOWY W KOSZALINIE","3211",null,null,null,null,null,null,null,"LU","LUKSEMBURG"]
[null,null,null,null,null,null,null," Podatnik wnioskuje\no zwrot:",null,null,null,null,null," 540. w terminie 15 dni",null,null,null,null,null,null," 55. w terminie 25 dni",null,null,null,null,null," 56. w terminie 25 dni (art. 87 ust. 6)",null,null,null,null,null,null,"URZĄD SKARBOWY W KOŚCIANIE","3012",null,null,null,null,null,null,null,"MK","MACEDONIA"]
[null,null,null,null,null,null,null,null,null,null,null,null,null,"tak",null,null,null,null,null,null,"tak",null,null,null,null,null,"tak",null,null,null,null,null,null,"URZĄD SKARBOWY W KOŚCIERZYNIE","2211",null,null,null,null,null,null,null,"MG","MADAGASKAR"]
[null,null,null,null,null,null,null,null,null,null,null,null,null," 560. w terminie 40 dni",null,null,null,null,null,null," 57. w terminie 60 dni",null,null,null,null,null," 58. w terminie 180 dni",null,null,null,null,null,null,"URZĄD SKARBOWY W KOZIENICACH","1408",null,null,null,null,null,null,null,"YT","MAJOTTA"]
[null,null,null,null,null,null,null,null,null,null,null,null,null,"tak",null,null,null,null,null,null,"tak",null,null,null,null,null,"tak",null,null,null,null,null,null,"PIERWSZY URZĄD SKARBOWY KRAKÓW","1207",null,null,null,null,null,null,null,"MO","MAKAU"]
[null,null,null,null,null,null,null,null," Podatnik wnosi o zaliczenie zwrotu podatku na poczet przyszłych należności innych niż podatek, zgodnie z przepisami Ordynacji podatkowej wraz z podaniem wysokości zaliczenia oraz rodzaju przyszłej należności",null,null,null,null,null,null,null,null,null,null,null," 59. Zaliczenie zwrotu na poczet przyszłych należności:",null,null,null,null,null,null,null,null,null,null,null,null,"URZĄD SKARBOWY KRAKÓW-KROWODRZA","1208",null,null,null,null,null,null,null,"MW","MALAWI"]
[null,null,null,null,null,null,null,null,null,null,null,null,null,null,null,null,null,null,null,null,"tak",null,null,null,null,null,null,null,null,null,null,null,null,"URZĄD SKARBOWY KRAKÓW-NOWA HUTA","1209",null,null,null,null,null,null,null,"MV","MALEDIWY"]
[null,null,null,null,null,null,null,null,null,null,null,null,null,null,null,null,null,null,null,null," 60. Wysokość zwrotu do zaliczenia na poczet przyszłych zobowiązań podatkowych",null,null,null,null,null,null,null,null,null,null,null,null,"URZĄD SKARBOWY KRAKÓW-PODGÓRZE","1210",null,null,null,null,null,null,null,"MY","MALEZJA"]
[null,null,null,null,null,null,null,null,null,null,null,null,null,null,null,null,null,null,null,null,null,null,null,null,null,null,null,null,null,null,null,null,null,"URZĄD SKARBOWY KRAKÓW-PRĄDNIK","1211",null,null,null,null,null,null,null,"ML","MALI"]
[null,null,null,null,null,null,null,null," 61. Rodzaj przyszłego zobowiązania podatkowego",null,null,null,null,null,null,null,null,null,null,null,null,null,null,null,null,null,null,null,null,null,null,null,null,"URZĄD SKARBOWY KRAKÓW-STARE MIASTO","1212",null,null,null,null,null,null,null,"MT","MALTA"]
[null,null,null,null,null,null,null,null,null,null,null,null,null,null,null,null,null,null,null,null,null,null,null,null,null,null,null,null,null,null,null,null,null,"URZĄD SKARBOWY KRAKÓW-ŚRÓDMIEŚCIE","1213",null,null,null,null,null,null,null,"MP","MARIANY PÓŁNOCNE"]
[null,null,null,null,null,null,null,null,null," Kwota do przeniesienia na następny okres rozliczeniowy",null,null,null,null,null,null,null,null,null,null,null,null,null,null,null," 62.",null,null,null,null,null,null,null,"DRUGI URZĄD SKARBOWY KRAKÓW","1228",null,null,null,null,null,null,null,"MA","MAROKO"]
[null,null,null,null,null,null,null,null,null," Od kwoty z poz. 53 należy odjąć kwotę z poz. 54.",null,null,null,null,null,null,null,null,null,null,null,null,null,null,null,{"$f":"MAX(0,Z118-Z121)","v":0},null,null,null,null,null,null,null,"URZĄD SKARBOWY W KRAPKOWICACH","1613",null,null,null,null,null,null,null,"MQ","MARTYNIKA"]
[null,null,null,null,null,null,null,null,null,null,null,null,null,null,null,null,null,null,null,null,null,null,null,null,null,null,null,null,null,null,null,null,null,"URZĄD SKARBOWY W KRASNYMSTAWIE","0607",null,null,null,null,null,null,null,"MR","MAURETANIA"]
[null,null," F. INFORMACJE DODATKOWE",null,null,null,null,null,null,null,null,null,null,null,null,null,null,null,null,null,null,null,null,null,null,null,null,null,null,null,null,null,null,"URZĄD SKARBOWY W KRAŚNIKU","0608",null,null,null,null,null,null,null,"MU","MAURITIUS"]
[null,null,null," Podatnik wykonywał w okresie",null,null,null,null,null,null,null,null," 63. ",null,null,null," 64. ",null,null,null,null," 65. ",null,null,null," 66. ",null,null," 660.",null,null,null,null,"URZĄD SKARBOWY W KROŚNIE","1807",null,null,null,null,null,null,null,"MX","MEKSYK"]
[null,null,null," rozliczeniowym czynności,",null,null,null,null,null,null,null,null," art. 119 ustawy",null,null,null," art. 120 ust. 4 lub 5 ustawy",null,null,null,null," art. 122 ustawy",null,null,null," art. 136 ustawy",null,null," art. 109b ust. 4",null,null,null,null,"URZĄD SKARBOWY W KROŚNIE ODRZAŃSKIM","0803",null,null,null,null,null,null,null,"XL","MELILLA"]
[null,null,null," o których mowa w (zaznaczyć",null,null,null,null,null,null,null,null,null,null,null,null,null,null,null,null,null,null,null,null,null,null,null,null,null,null,null,null,null,"URZĄD SKARBOWY W KROTOSZYNIE","3013",null,null,null,null,null,null,null,"FM","MIKRONEZJA"]
[null,null,null," właściwe kwadraty):",null,null,null,null,null,null,null,null,null,null,null,null,null,null,null,null,null,null,null,null,null,null,null,null,null,null,null,null,null,"URZĄD SKARBOWY W KUTNIE","1005",null,null,null,null,null,null,null,"UM","MINOR"]
[null,null,null," 67. Podatnik korzysta z obniżenia zobowiązania podatkowego, o którym mowa  w art. 108d ustawy",null,null,null,null,null,null,null,null,null,null,null,null,null,null,null,null,null,null,null,null,null,null,null,null,null,null,null,null,null,"URZĄD SKARBOWY W KWIDZYNIE","2212",null,null,null,null,null,null,null,"MD","MOŁDOWA"]
[null,null,null,"     tak",null,null,null,null,null,null,null,null,null,null,null,null,null,null,null,null,null,null,null,null,null,null,null,null,null,null,null,null,null,"URZĄD SKARBOWY W LEGIONOWIE","1409",null,null,null,null,null,null,null,"MC","MONAKO"]
[null,null,null,null,null,null,null,null,null,null,null,null,null,null,null,null,null,null,null,null,null,null,null,null,null,null,null,null,null,null,null,null,null,"URZĄD SKARBOWY W LEGNICY","0210",null,null,null,null,null,null,null,"MN","MONGOLIA"]
[null,null,"VAT-7K(16)",null,null,null,null,null,null,"2/3",null,"© Dystrybucja Signform.pl - producent aktywnych formularzy, e-mail: biuro@signform.pl",null,null,null,null,null,null,null,null,null,null,null,null,null,null,null,null,null,null,null,null,null,"URZĄD SKARBOWY W LESKU","1808",null,null,null,null,null,null,null,"MS","MONTSERRAT"]
[null,null,null,null,null,null,null,null,null,null,null,null,null,null,null,null,null,null,null,null,null,null,null,null,null,null,null,null,null,null,null,null,null,"URZĄD SKARBOWY W LESZNIE","3014",null,null,null,null,null,null,null,"MZ","MOZAMBIK"]
[null,null,null,null,null,null,null,null,null,null,null,null,null,null,null,null,null,null,null,null,null,null,null,null,null,null,null,null,null,null,null,null,null,"URZĄD SKARBOWY W LEŻAJSKU","1809",null,null,null,null,null,null,null,"MM","MYANMAR (BURMA)"]
[null,null,null,null,null,null,null,null,null,null,null,null,null,null,null,null,null,null,null,null,null,null,null,null,null,null,null,null,null,null,null,null,null,"URZĄD SKARBOWY W LĘBORKU","2213",null,null,null,null,null,null,null,"NA","NAMIBIA"]
[null,null,"          DEKLARACJA JEST SKŁADANA WYŁĄCZNIE ZA POMOCĄ ŚRODKÓW KOMUNIKACJI ELEKTRONICZNEJ",null,null,null,null,null,null,null,null,null,null,null,null,null,null,null,null,null,null,null,null,null,null,null,null,null,null,null,null,null,null,"URZĄD SKARBOWY W LIMANOWEJ","1214",null,null,null,null,null,null,null,"NR","NAURU"]
[null,null,null,null,null,null,null,null,null,null,null,null,null,null,null,null,null,null,null,null,null,null,null,null,null,null,null,null,null,null,null,null,null,"URZĄD SKARBOWY W LIPNIE","0410",null,null,null,null,null,null,null,"NP","NEPAL"]
[null,null,null,null,null,null,null,null,null,null,null,null,null,null,null,null,null,null,null," Podstawa opodatkowania w zł",null,null,null,null,null," Podatek należny w zł",null,null,null,null,null,null,null,"URZĄD SKARBOWY W LIPSKU","1447",null,null,null,null,null,null,null,"NL","NIDERLANDY (HOLANDIA)"]
[null,null,null," Wysokość korekty, o której mowa w art. 89a ust. 1 ustawy",null,null,null,null,null,null,null,null,null,null,null,null,null,null,null," 68.",null,null,null,null,null," 69.",null,null,null,null,null,null,null,"URZĄD SKARBOWY W LUBACZOWIE","1810",null,null,null,null,null,null,null,"DE","NIEMCY"]
[null,null,null,null,null,null,null,null,null,null,null,null,null,null,null,null,null,null,null,null,null,null,null,null,null,null,null,null,null,null,null,null,null,"URZĄD SKARBOWY W LUBANIU","0211",null,null,null,null,null,null,null,"NE","NIGER"]
[null,null,null,null,null,null,null,null,null,null,null,null,null,null,null,null,null,null,null,null,null,null,null,null,null,null,null,null,null,null,null,null,null,"URZĄD SKARBOWY W LUBARTOWIE","0609",null,null,null,null,null,null,null,"NG","NIGERIA"]
[null,null," G. EWIDENCJA ZAKUPÓW I SPRZEDAŻY VAT",null,null,null,null,null,null,null,null,null,null,null,null,null,null,null,null,null,null,null,null,null,null,null,null,null,null,null,null,null,null,"URZĄD SKARBOWY W LUBINIE","0212",null,null,null,null,null,null,null,"NI","NIKARAGUA"]
[null,null,null," 70. Nazwa systemu, z którego pochodzą dane",null,null,null,null,null,null,null,null,null,null,null,null,null,null,null,null,null,null,null,null,null,null,null,null,null,null,null,null,null,"PIERWSZY URZĄD SKARBOWY W LUBLINIE","0610",null,null,null,null,null,null,null,"NU","NIUE"]
[null,null,null,null,null,null,null,null,null,null,null,null,null,null,null,null,null,null,null,null,null,null,null,null,null,null,null,null,null,null,null,null,null,"DRUGI URZĄD SKARBOWY W LUBLINIE","0611",null,null,null,null,null,null,null,"NF","NORFOLK"]
[null,null,null,"Ewidencja sprzedaży VAT",null,null,null,null,null,null,null,null,null,null,null,null,null,null,null,null,"Ewidencja zakupów VAT",null,null,null,null,null,null,null,null,null,null,null,null,"TRZECI URZĄD SKARBOWY W LUBLINIE","0612",null,null,null,null,null,null,null,"NO","NORWEGIA"]
[null,null,null," 71. Liczba wierszy sprzedaży:",null,null,null,null,null,null,null,null,null,{"$f":"'Sprzedaż-III'!A2","v":0},null,null,null,null,null,null," 73. Liczba wierszy zakupów:",null,null,null,null,null,{"$f":"'Zakupy-III'!A2","v":0},null,null,null,null,null,null,"LUBELSKI URZĄD SKARBOWY W LUBLINIE","0671",null,null,null,null,null,null,null,"NC","NOWA KALEDONIA"]
[null,null,null," 72. Podatek należny:",null,null,null,null,null,null,null,null,null,{"$f":"SUM('Sprzedaż-III'!AQ2,'Sprzedaż-III'!AS2,'Sprzedaż-III'!AU2,'Sprzedaż-III'!AY2,'Sprzedaż-III'!BA2,'Sprzedaż-III'!BC2,'Sprzedaż-III'!BE2,'Sprzedaż-III'!BG2,'Sprzedaż-III'!BH2,'Sprzedaż-III'!BI2)-SUM('Sprzedaż-III'!BJ2:BK2)","v":0},null,null,null,null,null,null," 74. Podatek naliczony:",null,null,null,null,null,{"$f":"SUM('Zakupy-III'!K2,'Zakupy-III'!M2:Q2)","v":0},null,null,null,null,null,null,"URZĄD SKARBOWY W LUBLIŃCU","2419",null,null,null,null,null,null,null,"NZ","NOWA ZELANDIA"]
[null,null,null,null,null,null,null,null,null,null,null,null,null,null,null,null,null,null,null,null,null,null,null,null,null,null,null,null,null,null,null,null,null,"URZĄD SKARBOWY W LWÓWKU ŚLĄSKIM","0213",null,null,null,null,null,null,null,"PS","OKUPOWANE TERYTORIUM PALESTYNY"]
[null,null," H. DANE KONTAKTOWE PODATNIKA LUB OSOBY REPREZENTUJĄCEJ PODATNIKA",null,null,null,null,null,null,null,null,null,null,null,null,null,null,null,null,null,null,null,null,null,null,null,null,null,null,null,null,null,null,"URZĄD SKARBOWY W ŁAŃCUCIE","1811",null,null,null,null,null,null,null,"OM","OMAN"]
[null,null,null," 75. Imię",null,null,null,null,null,null,null,null,null," 76. Nazwisko",null,null,null,null,null,null,null,null,null," 77. Telefon kontaktowy",null,null,null,null,null,null,null,null,null,"URZĄD SKARBOWY W ŁASKU","1006",null,null,null,null,null,null,null,"PK","PAKISTAN"]
[null,null,null,null,null,null,null,null,null,null,null,null,null,null,null,null,null,null,null,null,null,null,null,null,null,null,null,null,null,null,null,null,null,"URZĄD SKARBOWY W ŁĘCZNEJ","0621",null,null,null,null,null,null,null,"PW","PALAU"]
[null,null,null," 78. Adres e-mail",null,null,null,null,null,null,null,null,null,null,null,null,null,null,null,null,null," 79. Data i czas wytworzenia JPK_VAT",null,null,null,null,null,null,null,null,null,null,null,"URZĄD SKARBOWY W ŁĘCZYCY","1028",null,null,null,null,null,null,null,"PA","PANAMA"]
[null,null,null,null,null,null,null,null,null,null,null,null,null,null,null,null,null,null,null,null,null,null,null,null,null,null,null,null,null,null,null,null,null,"URZĄD SKARBOWY W ŁOMŻY","2008",null,null,null,null,null,null,null,"PG","PAPUA NOWA GWINEA"]
[null,null,"     1) Zgodnie z art. 81 ustawy z dnia 29 sierpnia 1997 r. – Ordynacja podatkowa (Dz. U. z 2021 r. poz. 1540, z późn. zm.).",null,null,null,null,null,null,null,null,null,null,null,null,null,null,null,null,null,null,null,null,null,null,null,null,null,null,null,null,null,null,"URZĄD SKARBOWY W ŁOSICACH","1410",null,null,null,null,null,null,null,"PY","PARAGWAJ"]
[null,null," Pouczenia",null,null,null,null,null,null,null,null,null,null,null,null,null,null,null,null,null,null,null,null,null,null,null,null,null,null,null,null,null,null,"URZĄD SKARBOWY W ŁOWICZU","1007",null,null,null,null,null,null,null,"PE","PERU"]
[null,null,"W przypadku niewpłacenia w obowiązującym terminie podatku podlegającego wpłacie do urzędu skarbowego lub wpłacenia go w niepełnej wysokości niniejsza deklaracja",null,null,null,null,null,null,null,null,null,null,null,null,null,null,null,null,null,null,null,null,null,null,null,null,null,null,null,null,null,null,"PIERWSZY URZĄD SKARBOWY ŁÓDŹ-BAŁUTY","1008",null,null,null,null,null,null,null,"PN","PITCAIRN"]
[null,null,"stanowi podstawę do wystawienia tytułu wykonawczego zgodnie z przepisami o postępowaniu egzekucyjnym w administracji. Za podanie nieprawdy lub zatajenie prawdy",null,null,null,null,null,null,null,null,null,null,null,null,null,null,null,null,null,null,null,null,null,null,null,null,null,null,null,null,null,null,"DRUGI URZĄD SKARBOWY ŁÓDŹ-BAŁUTY","1009",null,null,null,null,null,null,null,"PF","POLINEZJA FRANCUSKA"]
[null,null,"i przez to narażenie podatku na uszczuplenie grozi odpowiedzialność przewidziana w przepisach Kodeksu karnego skarbowego.",null,null,null,null,null,null,null,null,null,null,null,null,null,null,null,null,null,null,null,null,null,null,null,null,null,null,null,null,null,null,"PIERWSZY URZĄD SKARBOWY ŁÓDŹ-GÓRNA","1010",null,null,null,null,null,null,null,"GS","POŁUDNIOWA GEORGIA I POŁUD.WYSPY SANDWICH"]
[null,null,null,null,null,null,null,null,null,null,null,null,null,null,null,null,null,null,null,null,null,null,null,null,null,null,null,null,null,null,null,null,null,"DRUGI URZĄD SKARBOWY ŁÓDŹ-GÓRNA","1011",null,null,null,null,null,null,null,"PT","PORTUGALIA"]
[null,null,null,null,null,null,null,null,null,null,null,null,null,null,null,null,null,null,null,null,null,null,null,null,null,null,null,null,null,null,null,null,null,"URZĄD SKARBOWY ŁÓDŹ-POLESIE","1012",null,null,null,null,null,null,null,"PR","PORTORYKO"]
[null,null,null,null,null,null,null,null,null,null,null,null,null,null,null,null,null,null,null,null,null,null,null,null,null,null,null,null,null,null,null,null,null,"URZĄD SKARBOWY ŁÓDŹ-ŚRÓDMIEŚCIE","1013",null,null,null,null,null,null,null,"CF","REP.ŚRODKOWOAFRYKAŃSKA"]
[null,null,null,null,null,null,null,null,null,null,null,null,null,null,null,null,null,null,null,null,null,null,null,null,null,null,null,null,null,null,null,null,null,"URZĄD SKARBOWY ŁÓDŹ-WIDZEW","1014",null,null,null,null,null,null,null,"CZ","REPUBLIKA CZESKA"]
[null,null,null,null,null,null,null,null,null,null,null,null,null,null,null,null,null,null,null,null,null,null,null,null,null,null,null,null,null,null,null,null,null,"ŁÓDZKI URZĄD SKARBOWY W ŁODZI","1071",null,null,null,null,null,null,null,"KR","REPUBLIKA KOREI"]
[null,null,null,null,null,null,null,null,null,null,null,null,null,null,null,null,null,null,null,null,null,null,null,null,null,null,null,null,null,null,null,null,null,"URZĄD SKARBOWY W ŁUKOWIE","0613",null,null,null,null,null,null,null,"ZA","REPUBLIKA POŁUDNIOWEJ AFRYKI"]
[null,null,null,null,null,null,null,null,null,null,null,null,null,null,null,null,null,null,null,null,null,null,null,null,null,null,null,null,null,null,null,null,null,"URZĄD SKARBOWY W MAKOWIE MAZOWIECKIM","1411",null,null,null,null,null,null,null,"RE","REUNION"]
[null,null,null,null,null,null,null,null,null,null,null,null,null,null,null,null,null,null,null,null,null,null,null,null,null,null,null,null,null,null,null,null,null,"URZĄD SKARBOWY W MALBORKU","2214",null,null,null,null,null,null,null,"RU","ROSJA"]
[null,null,null,null,null,null,null,null,null,null,null,null,null,null,null,null,null,null,null,null,null,null,null,null,null,null,null,null,null,null,null,null,null,"MAŁOPOLSKI URZĄD SKARBOWY W KRAKOWIE","1271",null,null,null,null,null,null,null,"RO","RUMUNIA"]
[null,null,null,null,null,null,null,null,null,null,null,null,null,null,null,null,null,null,null,null,null,null,null,null,null,null,null,null,null,null,null,null,null,"URZĄD SKARBOWY W MIECHOWIE","1215",null,null,null,null,null,null,null,"RW","RWANDA"]
[null,null,null,null,null,null,null,null,null,null,null,null,null,null,null,null,null,null,null,null,null,null,null,null,null,null,null,null,null,null,null,null,null,"URZĄD SKARBOWY W MIELCU","1812",null,null,null,null,null,null,null,"EH","SAHARA ZACHODNIA"]
[null,null,null,null,null,null,null,null,null,null,null,null,null,null,null,null,null,null,null,null,null,null,null,null,null,null,null,null,null,null,null,null,null,"URZĄD SKARBOWY W MIĘDZYCHODZIE","3015",null,null,null,null,null,null,null,"BL","SAINT BARTHELEMY"]
[null,null,null,null,null,null,null,null,null,null,null,null,null,null,null,null,null,null,null,null,null,null,null,null,null,null,null,null,null,null,null,null,null,"URZĄD SKARBOWY W MIĘDZYRZECZU","0804",null,null,null,null,null,null,null,"KN","SAINT KITTS I NEVIS"]
[null,null,null,null,null,null,null,null,null,null,null,null,null,null,null,null,null,null,null,null,null,null,null,null,null,null,null,null,null,null,null,null,null,"URZĄD SKARBOWY W MIKOŁOWIE","2420",null,null,null,null,null,null,null,"LC","SAINT LUCIA"]
[null,null,null,null,null,null,null,null,null,null,null,null,null,null,null,null,null,null,null,null,null,null,null,null,null,null,null,null,null,null,null,null,null,"URZĄD SKARBOWY W MILICZU","0214",null,null,null,null,null,null,null,"MF","SAINT MARTIN"]
[null,null,null,null,null,null,null,null,null,null,null,null,null,null,null,null,null,null,null,null,null,null,null,null,null,null,null,null,null,null,null,null,null,"URZĄD SKARBOWY W MIŃSKU MAZOWIECKIM","1412",null,null,null,null,null,null,null,"VC","SAINT VINCENT I GRENADYNY"]
[null,null,null,null,null,null,null,null,null,null,null,null,null,null,null,null,null,null,null,null,null,null,null,null,null,null,null,null,null,null,null,null,null,"URZĄD SKARBOWY W MŁAWIE","1413",null,null,null,null,null,null,null,"SV","SALWADOR"]
[null,null,null,null,null,null,null,null,null,null,null,null,null,null,null,null,null,null,null,null,null,null,null,null,null,null,null,null,null,null,null,null,null,"URZĄD SKARBOWY W MOGILNIE","0411",null,null,null,null,null,null,null,"WS","SAMOA"]
[null,null,null,null,null,null,null,null,null,null,null,null,null,null,null,null,null,null,null,null,null,null,null,null,null,null,null,null,null,null,null,null,null,"URZĄD SKARBOWY W MOŃKACH","2009",null,null,null,null,null,null,null,"AS","SAMOA AMERYKAŃSKIE"]
[null,null,null,null,null,null,null,null,null,null,null,null,null,null,null,null,null,null,null,null,null,null,null,null,null,null,null,null,null,null,null,null,null,"URZĄD SKARBOWY W MYSŁOWICACH","2421",null,null,null,null,null,null,null,"SM","SAN MARINO"]
[null,null,null,null,null,null,null,null,null,null,null,null,null,null,null,null,null,null,null,null,null,null,null,null,null,null,null,null,null,null,null,null,null,"URZĄD SKARBOWY W MYSZKOWIE","2422",null,null,null,null,null,null,null,"SN","SENEGAL"]
[null,null,null,null,null,null,null,null,null,null,null,null,null,null,null,null,null,null,null,null,null,null,null,null,null,null,null,null,null,null,null,null,null,"URZĄD SKARBOWY W MYŚLENICACH","1216",null,null,null,null,null,null,null,"RS","SERBIA"]
[null,null,null,null,null,null,null,null,null,null,null,null,null,null,null,null,null,null,null,null,null,null,null,null,null,null,null,null,null,null,null,null,null,"URZĄD SKARBOWY W MYŚLIBORZU","3212",null,null,null,null,null,null,null,"SC","SESZELE"]
[null,null,null,null,null,null,null,null,null,null,null,null,null,null,null,null,null,null,null,null,null,null,null,null,null,null,null,null,null,null,null,null,null,"URZĄD SKARBOWY W NAKLE NAD NOTECIĄ","0412",null,null,null,null,null,null,null,"SL","SIERRA LEONE"]
[null,null,null,null,null,null,null,null,null,null,null,null,null,null,null,null,null,null,null,null,null,null,null,null,null,null,null,null,null,null,null,null,null,"URZĄD SKARBOWY W NAMYSŁOWIE","1606",null,null,null,null,null,null,null,"SG","SINGAPUR"]
[null,null,null,null,null,null,null,null,null,null,null,null,null,null,null,null,null,null,null,null,null,null,null,null,null,null,null,null,null,null,null,null,null,"URZĄD SKARBOWY W NIDZICY","2810",null,null,null,null,null,null,null,"SK","SŁOWACJA"]
[null,null,null,null,null,null,null,null,null,null,null,null,null,null,null,null,null,null,null,null,null,null,null,null,null,null,null,null,null,null,null,null,null,"URZĄD SKARBOWY W NISKU","1823",null,null,null,null,null,null,null,"SI","SŁOWENIA"]
[null,null,null,null,null,null,null,null,null,null,null,null,null,null,null,null,null,null,null,null,null,null,null,null,null,null,null,null,null,null,null,null,null,"URZĄD SKARBOWY W NOWEJ RUDZIE","0215",null,null,null,null,null,null,null,"SO","SOMALIA"]
[null,null,null,null,null,null,null,null,null,null,null,null,null,null,null,null,null,null,null,null,null,null,null,null,null,null,null,null,null,null,null,null,null,"URZĄD SKARBOWY W NOWEJ SOLI","0805",null,null,null,null,null,null,null,"LK","SRI LANKA"]
[null,null,null,null,null,null,null,null,null,null,null,null,null,null,null,null,null,null,null,null,null,null,null,null,null,null,null,null,null,null,null,null,null,"URZĄD SKARBOWY W NOWYM DWORZE MAZOWIECKIM","1414",null,null,null,null,null,null,null,"PM","SAINT PIERRE I MIQUELON"]
[null,null,null,null,null,null,null,null,null,null,null,null,null,null,null,null,null,null,null,null,null,null,null,null,null,null,null,null,null,null,null,null,null,"URZĄD SKARBOWY W NOWYM MIEŚCIE LUBAWSKIM","2811",null,null,null,null,null,null,null,"US","STANY ZJEDNOCZONE AMERYKI"]
[null,null,null,null,null,null,null,null,null,null,null,null,null,null,null,null,null,null,null,null,null,null,null,null,null,null,null,null,null,null,null,null,null,"URZĄD SKARBOWY W NOWYM SĄCZU","1217",null,null,null,null,null,null,null,"SZ","SUAZI"]
[null,null,null,null,null,null,null,null,null,null,null,null,null,null,null,null,null,null,null,null,null,null,null,null,null,null,null,null,null,null,null,null,null,"URZĄD SKARBOWY W NOWYM TARGU","1218",null,null,null,null,null,null,null,"SD","SUDAN"]
[null,null,null,null,null,null,null,null,null,null,null,null,null,null,null,null,null,null,null,null,null,null,null,null,null,null,null,null,null,null,null,null,null,"URZĄD SKARBOWY W NOWYM TOMYŚLU","3016",null,null,null,null,null,null,null,"SS","SUDAN POŁUDNIOWY"]
[null,null,null,null,null,null,null,null,null,null,null,null,null,null,null,null,null,null,null,null,null,null,null,null,null,null,null,null,null,null,null,null,null,"URZĄD SKARBOWY W NYSIE","1607",null,null,null,null,null,null,null,"SR","SURINAM"]
[null,null,null,null,null,null,null,null,null,null,null,null,null,null,null,null,null,null,null,null,null,null,null,null,null,null,null,null,null,null,null,null,null,"URZĄD SKARBOWY W OBORNIKACH","3038",null,null,null,null,null,null,null,"SJ","SVALBARD I JAN MAYEN"]
[null,null,null,null,null,null,null,null,null,null,null,null,null,null,null,null,null,null,null,null,null,null,null,null,null,null,null,null,null,null,null,null,null,"URZĄD SKARBOWY W OLECKU","2812",null,null,null,null,null,null,null,"SH","ŚWIĘTA HELENA"]
[null,null,null,null,null,null,null,null,null,null,null,null,null,null,null,null,null,null,null,null,null,null,null,null,null,null,null,null,null,null,null,null,null,"URZĄD SKARBOWY W OLEŚNICY","0216",null,null,null,null,null,null,null,"SY","SYRIA"]
[null,null,null,null,null,null,null,null,null,null,null,null,null,null,null,null,null,null,null,null,null,null,null,null,null,null,"VAT-7K(16)",null,null,"3/3",null,null,null,"URZĄD SKARBOWY W OLEŚNIE","1608",null,null,null,null,null,null,null,"CH","SZWAJCARIA"]
[null,null,null,null,null,null,null,null,null,null,null,null,null,null,null,null,null,null,null,null,null,null,null,null,null,null,null,null,null,null,null,null,null,"URZĄD SKARBOWY W OLKUSZU","1219",null,null,null,null,null,null,null,"SE","SZWECJA"]
[null,null,null,null,null,null,null,null,null,null,null,null,null,null,null,null,null,null,null,null,null,null,null,null,null,null,null,null,null,null,null,null,null,"URZĄD SKARBOWY W OLSZTYNIE","2813",null,null,null,null,null,null,null,"TJ","TADŻYKISTAN"]
[null,null,null,null,null,null,null,null,null,null,null,null,null,null,null,null,null,null,null,null,null,null,null,null,null,null,null,null,null,null,null,null,null,"WARMIŃSKO-MAZURSKI URZĄD SKARBOWY W OLSZTYNIE","2871",null,null,null,null,null,null,null,"TH","TAJLANDIA"]
[null,null,null,null,null,null,null,null,null,null,null,null,null,null,null,null,null,null,null,null,null,null,null,null,null,null,null,null,null,null,null,null,null,"URZĄD SKARBOWY W OŁAWIE","0217",null,null,null,null,null,null,null,"TW","TAJWAN"]
[null,"INSTRUKCJA",null,null,null,null,null,null,null,null,null,null,null,null,null,null,null,null,null,null,null,null,null,null,null,null,null,null,null,null,null,null,null,"URZĄD SKARBOWY W OPATOWIE","2607",null,null,null,null,null,null,null,"TZ","TANZANIA"]
[null,"Arkusz zapisuje dane do pliku XML zgodnym ze schematem XSD Ministerstwa Finansów.",null,null,null,null,null,null,null,null,null,null,null,null,null,null,null,null,null,null,null,null,null,null,null,null,null,null,null,null,null,null,null,"URZĄD SKARBOWY W OPOCZNIE","1015",null,null,null,null,null,null,null,"TG","TOGO"]
[null,"Plik JPK w formacie xml zapisywany jest w tym samym folderze, w którym znajduje się ten arkusz Excela.",null,null,null,null,null,null,null,null,null,null,null,null,null,null,null,null,null,null,null,null,null,null,null,null,null,null,null,null,null,null,null,"PIERWSZY URZĄD SKARBOWY W OPOLU","1609",null,null,null,null,null,null,null,"TK","TOKELAU"]
[null,"Pliki JPK.xml wysyła się internetem na specjalnej stronie internetowej Ministerstwa Finansów (Klient JPK WEB):",null,null,null,null,null,null,null,null,null,null,null,null,null,null,null,null,null,null,null,null,null,null,null,null,null,null,null,null,null,null,null,"DRUGI URZĄD SKARBOWY W OPOLU","1610",null,null,null,null,null,null,null,"TO","TONGA"]
[null,"https://e-mikrofirma.mf.gov.pl/jpk-client",null,null,null,null,null,null,null,null,null,null,null,null,null,null,null,null,null,null,null,null,null,null,null,null,null,null,null,null,null,null,null,"OPOLSKI URZĄD SKARBOWY W OPOLU","1671",null,null,null,null,null,null,null,"TT","TRYNIDAD I TOBAGO"]
[null,"podręcznik użytkownika Klient JPK WEB",null,null,null,null,null,null,null,null,null,null,null,null,null,null,null,null,null,null,null,null,null,null,null,null,null,null,null,null,null,null,null,"URZĄD SKARBOWY W OPOLU LUBELSKIM","0614",null,null,null,null,null,null,null,"TN","TUNEZJA"]
[null,"Kliknięcie przycisku 'Zapisz dane do pliku XML' w pierwszej  kolejności uruchamia procedurę sprawdzania poprawności",null,null,null,null,null,null,null,null,null,null,null,null,null,null,null,null,null,null,null,null,null,null,null,null,null,null,null,null,null,null,null,"URZĄD SKARBOWY W OSTROŁĘCE","1415",null,null,null,null,null,null,null,"TR","TURCJA"]
[null,"danych a następnie zapisuje te dane do pliku JPK w formacie XML.",null,null,null,null,null,null,null,null,null,null,null,null,null,null,null,null,null,null,null,null,null,null,null,null,null,null,null,null,null,null,null,"URZĄD SKARBOWY W OSTROWCU ŚWIĘTOKRZYSKIM","2608",null,null,null,null,null,null,null,"TM","TURKMENISTAN"]
[null,"Sprawdzenie poprawności danych uruchamia też przycisk 'Sprawdź' w arkuszu i naprawia formatowanie komórek.",null,null,null,null,null,null,null,null,null,null,null,null,null,null,null,null,null,null,null,null,null,null,null,null,null,null,null,null,null,null,null,"URZĄD SKARBOWY W OSTROWI MAZOWIECKIEJ","1416",null,null,null,null,null,null,null,"TV","TUVALU"]
[null,null,null,null,null,null,null,null,null,null,null,null,null,null,null,null,null,null,null,null,null,null,null,null,null,null,null,null,null,null,null,null,null,"URZĄD SKARBOWY W OSTROWIE WIELKOPOLSKIM","3017",null,null,null,null,null,null,null,"UG","UGANDA"]
[null,"Procedura sprawdzania poprawności danych:",null,null,null,null,null,null,null,null,null,null,null,null,null,null,null,null,null,null,null,null,null,null,null,null,null,null,null,null,null,null,null,"URZĄD SKARBOWY W OSTRÓDZIE","2814",null,null,null,null,null,null,null,"UA","UKRAINA"]
[null,"-  automatycznie uzupełnia narastająco kolumnę 'Lp',",null,null,null,null,null,null,null,null,null,null,null,null,null,null,null,null,null,null,null,null,null,null,null,null,null,null,null,null,null,null,null,"URZĄD SKARBOWY W OSTRZESZOWIE","3018",null,null,null,null,null,null,null,"UY","URUGWAJ"]
[null,"-  zamienia separatory daty typu '.' (kropka) i '/' na '-',",null,null,null,null,null,null,null,null,null,null,null,null,null,null,null,null,null,null,null,null,null,null,null,null,null,null,null,null,null,null,null,"URZĄD SKARBOWY W OŚWIĘCIMIU","1220",null,null,null,null,null,null,null,"UZ","UZBEKISTAN"]
[null,"-  zamienia separator liczb dziesiętnych typu '.' (kropka) na ',' (przecinek),",null,null,null,null,null,null,null,null,null,null,null,null,null,null,null,null,null,null,null,null,null,null,null,null,null,null,null,null,null,null,null,"URZĄD SKARBOWY W OTWOCKU","1417",null,null,null,null,null,null,null,"VU","VANUATU"]
[null,"-  sprawdza, czy wypełnione są wszystkie pola obowiązkowe,",null,null,null,null,null,null,null,null,null,null,null,null,null,null,null,null,null,null,null,null,null,null,null,null,null,null,null,null,null,null,null,"URZĄD SKARBOWY W PABIANICACH","1016",null,null,null,null,null,null,null,"WF","WALLIS I FUTUNA"]
[null,"-  sprawdza poprawność dat i kwot.",null,null,null,null,null,null,null,null,null,null,null,null,null,null,null,null,null,null,null,null,null,null,null,null,null,null,null,null,null,null,null,"URZĄD SKARBOWY W PAJĘCZNIE","1029",null,null,null,null,null,null,null,"VA","WATYKAN"]
[null,"-  sprawdza poprawność utworzonego pliku XLM ze schematem XSD ze strony Ministerstwa Finansów.",null,null,null,null,null,null,null,null,null,null,null,null,null,null,null,null,null,null,null,null,null,null,null,null,null,null,null,null,null,null,null,"URZĄD SKARBOWY W PARCZEWIE","0615",null,null,null,null,null,null,null,"HU","WĘGRY"]
[null,null,null,null,null,null,null,null,null,null,null,null,null,null,null,null,null,null,null,null,null,null,null,null,null,null,null,null,null,null,null,null,null,"URZĄD SKARBOWY W PIASECZNIE","1418",null,null,null,null,null,null,null,"VE","WENEZUELA"]
[null,"Dane do arkusza można zaimportować z pliku xml zawierającego dane JPK przyciskiem 'Importuj plik JPK'.",null,null,null,null,null,null,null,null,null,null,null,null,null,null,null,null,null,null,null,null,null,null,null,null,null,null,null,null,null,null,null,"URZĄD SKARBOWY W PIEKARACH ŚLĄSKICH","2423",null,null,null,null,null,null,null,"GB","WIELKA BRYTANIA"]
[null,"Import umożliwia analizę danych przez filtrowanie. Import kilku plików dokonuje scalenia danych w kolejności ich otwierania.",null,null,null,null,null,null,null,null,null,null,null,null,null,null,null,null,null,null,null,null,null,null,null,null,null,null,null,null,null,null,null,"URZĄD SKARBOWY W PILE","3019",null,null,null,null,null,null,null,"VN","WIETNAM"]
[null,"Warunkiem importu z kilku plików XML jest ten sam kod systemowy JPK z tego samego okresu Od Do.",null,null,null,null,null,null,null,null,null,null,null,null,null,null,null,null,null,null,null,null,null,null,null,null,null,null,null,null,null,null,null,"URZĄD SKARBOWY W PIŃCZOWIE","2609",null,null,null,null,null,null,null,"IT","WŁOCHY"]
[null,null,null,null,null,null,null,null,null,null,null,null,null,null,null,null,null,null,null,null,null,null,null,null,null,null,null,null,null,null,null,null,null,"URZĄD SKARBOWY W PIOTRKOWIE TRYBUNALSKIM","1017",null,null,null,null,null,null,null,"TL","WSCHODNI TIMOR"]
[null,"Dane wprowadza się do arkuszy za pomocą przycisku 'Importuj z pliku csv,txt,xls,xml,dbf,ods'.",null,null,null,null,null,null,null,null,null,null,null,null,null,null,null,null,null,null,null,null,null,null,null,null,null,null,null,null,null,null,null,"URZĄD SKARBOWY W PISZU","2815",null,null,null,null,null,null,null,"CI","WYBRZEŻE KOŚCI SŁONIOWEJ"]
[null,"Do arkusza można zaimportować dane z kilku plików csv, txt, xls(xlsx) xml, dbf i ods które zostaną kolejno dodane.",null,null,null,null,null,null,null,null,null,null,null,null,null,null,null,null,null,null,null,null,null,null,null,null,null,null,null,null,null,null,null,"URZĄD SKARBOWY W PLESZEWIE","3039",null,null,null,null,null,null,null,"BV","WYSPA BOUVETA"]
[null,"Jeżeli pliki zawierają dane w kolumnach oznaczonych nagłówkami, które wymienione są w trzecim wierszu",null,null,null,null,null,null,null,null,null,null,null,null,null,null,null,null,null,null,null,null,null,null,null,null,null,null,null,null,null,null,null,"URZĄD SKARBOWY W PŁOCKU","1419",null,null,null,null,null,null,null,"CX","WYSPA BOŻEGO NARODZENIA"]
[null,"arkusza JPK to dane przeniesione zostaną automatycznie (nazwy nagłówków określono w schematach XSD).",null,null,null,null,null,null,null,null,null,null,null,null,null,null,null,null,null,null,null,null,null,null,null,null,null,null,null,null,null,null,null,"URZĄD SKARBOWY W PŁOŃSKU","1420",null,null,null,null,null,null,null,"IM","WYSPA MAN"]
[null,"Z pliku csv, txt, xls, xml, dbf i ods który nie posiada ww. nagłówków dane zostaną przeniesione następująco:",null,null,null,null,null,null,null,null,null,null,null,null,null,null,null,null,null,null,null,null,null,null,null,null,null,null,null,null,null,null,null,"URZĄD SKARBOWY W PODDĘBICACH","1018",null,null,null,null,null,null,null,"SX","WYSPA SINT MAARTEN (CZĘŚĆ HOLENDERSKA WYSPY)"]
[null,"- plik csv, txt, xml, dbf, ods zostanie otwarty jako arkusz, tak jak plik typu xls",null,null,null,null,null,null,null,null,null,null,null,null,null,null,null,null,null,null,null,null,null,null,null,null,null,null,null,null,null,null,null,"PODLASKI URZĄD SKARBOWY W BIAŁYMSTOKU","2071",null,null,null,null,null,null,null,"CK","WYSPY COOKA"]
[null,"- należy w otwartym arkuszu zaznaczyć pierwszą od lewej komórkę z danymi i nacisnąć klawisz funkcyjny F5",null,null,null,null,null,null,null,null,null,null,null,null,null,null,null,null,null,null,null,null,null,null,null,null,null,null,null,null,null,null,null,"URZĄD SKARBOWY W POLKOWICACH","0234",null,null,null,null,null,null,null,"VI","WYSPY DZIEWICZE-USA"]
[null,"Aby dane zostały przeniesione poprawnie plik musi zawierać taką samą liczbę kolumn z danymi jak arkusz JPK.",null,null,null,null,null,null,null,null,null,null,null,null,null,null,null,null,null,null,null,null,null,null,null,null,null,null,null,null,null,null,null,"URZĄD SKARBOWY POZNAŃ-GRUNWALD","3020",null,null,null,null,null,null,null,"VG","WYSPY DZIEWICZE-W.B."]
[null,null,null,null,null,null,null,null,null,null,null,null,null,null,null,null,null,null,null,null,null,null,null,null,null,null,null,null,null,null,null,null,null,"URZĄD SKARBOWY POZNAŃ-JEŻYCE","3021",null,null,null,null,null,null,null,"HM","WYSPY HEARD I MCDONALD"]
[null,null,null,null,null,null,null,null,null,null,null,null,null,null,null,null,null,null,null,null,null,null,null,null,null,null,null,null,null,null,null,null,null,"URZĄD SKARBOWY POZNAŃ-NOWE MIASTO","3022",null,null,null,null,null,null,null,"CC","WYSPY KOKOSOWE (KEELINGA)"]
[null,null,null,null,null,null,null,null,null,null,null,null,null,null,null,null,null,null,null,null,null,null,null,null,null,null,null,null,null,null,null,null,null,"PIERWSZY URZĄD SKARBOWY W POZNANIU","3023",null,null,null,null,null,null,null,"MH","WYSPY MARSHALLA"]
[null,null,null,null,null,null,null,null,null,null,null,null,null,null,null,null,null,null,null,null,null,null,null,null,null,null,null,null,null,null,null,null,null,"URZĄD SKARBOWY POZNAŃ-WINOGRADY","3025",null,null,null,null,null,null,null,"FO","WYSPY OWCZE"]
[null,null,null,null,null,null,null,null,null,null,null,null,null,null,null,null,null,null,null,null,null,null,null,null,null,null,null,null,null,null,null,null,null,"URZĄD SKARBOWY POZNAŃ-WILDA","3026",null,null,null,null,null,null,null,"SB","WYSPY SALOMONA"]
[null,null,null,null,null,null,null,null,null,null,null,null,null,null,null,null,null,null,null,null,null,null,null,null,null,null,null,null,null,null,null,null,null,"PIERWSZY WIELKOPOLSKI URZĄD SKARBOWY W POZNANIU","3071",null,null,null,null,null,null,null,"ST","WYSPY ŚWIĘTEGO TOMASZA I KSIĄŻĘCA"]
[null,null,null,null,null,null,null,null,null,null,null,null,null,null,null,null,null,null,null,null,null,null,null,null,null,null,null,null,null,null,null,null,null,"URZĄD SKARBOWY W PROSZOWICACH","1221",null,null,null,null,null,null,null,"TC","WYSPY TURKS I CAICOS"]
[null,null,null,null,null,null,null,null,null,null,null,null,null,null,null,null,null,null,null,null,null,null,null,null,null,null,null,null,null,null,null,null,null,"URZĄD SKARBOWY W PRUDNIKU","1611",null,null,null,null,null,null,null,"ZM","ZAMBIA"]
[null,null,null,null,null,null,null,null,null,null,null,null,null,null,null,null,null,null,null,null,null,null,null,null,null,null,null,null,null,null,null,null,null,"URZĄD SKARBOWY W PRUSZCZU GDAŃSKIM","2221",null,null,null,null,null,null,null,"CV","ZIELONY PRZYLĄDEK"]
[null,null,null,null,null,null,null,null,null,null,null,null,null,null,null,null,null,null,null,null,null,null,null,null,null,null,null,null,null,null,null,null,null,"URZĄD SKARBOWY W PRUSZKOWIE","1421",null,null,null,null,null,null,null,"ZW","ZIMBABWE"]
[null,null,null,null,null,null,null,null,null,null,null,null,null,null,null,null,null,null,null,null,null,null,null,null,null,null,null,null,null,null,null,null,null,"URZĄD SKARBOWY W PRZASNYSZU","1422",null,null,null,null,null,null,null,"AE","ZJEDNOCZONE EMIRATY ARABSKIE"]
[null,null,null,null,null,null,null,null,null,null,null,null,null,null,null,null,null,null,null,null,null,null,null,null,null,null,null,null,null,null,null,null,null,"URZĄD SKARBOWY W PRZEMYŚLU","1813",null,null,null,null,null,null,null,"XI","ZJEDNOCZONE KRÓLESTWO (IRLANDIA PÓŁNOCNA)"]
[null,null,null,null,null,null,null,null,null,null,null,null,null,null,null,null,null,null,null,null,null,null,null,null,null,null,null,null,null,null,null,null,null,"URZĄD SKARBOWY W PRZEWORSKU","1814"]
[null,null,null,null,null,null,null,null,null,null,null,null,null,null,null,null,null,null,null,null,null,null,null,null,null,null,null,null,null,null,null,null,null,"URZĄD SKARBOWY W PRZYSUSZE","1448"]
[null,null,null,null,null,null,null,null,null,null,null,null,null,null,null,null,null,null,null,null,null,null,null,null,null,null,null,null,null,null,null,null,null,"URZĄD SKARBOWY W PSZCZYNIE","2424"]
[null,null,null,null,null,null,null,null,null,null,null,null,null,null,null,null,null,null,null,null,null,null,null,null,null,null,null,null,null,null,null,null,null,"URZĄD SKARBOWY W PUCKU","2215"]
[null,null,null,null,null,null,null,null,null,null,null,null,null,null,null,null,null,null,null,null,null,null,null,null,null,null,null,null,null,null,null,null,null,"URZĄD SKARBOWY W PUŁAWACH","0616"]
[null,null,null,null,null,null,null,null,null,null,null,null,null,null,null,null,null,null,null,null,null,null,null,null,null,null,null,null,null,null,null,null,null,"URZĄD SKARBOWY W PUŁTUSKU","1423"]
[null,null,null,null,null,null,null,null,null,null,null,null,null,null,null,null,null,null,null,null,null,null,null,null,null,null,null,null,null,null,null,null,null,"URZĄD SKARBOWY W PYRZYCACH","3213"]
[null,null,null,null,null,null,null,null,null,null,null,null,null,null,null,null,null,null,null,null,null,null,null,null,null,null,null,null,null,null,null,null,null,"URZĄD SKARBOWY W RACIBORZU","2425"]
[null,null,null,null,null,null,null,null,null,null,null,null,null,null,null,null,null,null,null,null,null,null,null,null,null,null,null,null,null,null,null,null,null,"PIERWSZY URZĄD SKARBOWY W RADOMIU","1424"]
[null,null,null,null,null,null,null,null,null,null,null,null,null,null,null,null,null,null,null,null,null,null,null,null,null,null,null,null,null,null,null,null,null,"DRUGI URZĄD SKARBOWY W RADOMIU","1425"]
[null,null,null,null,null,null,null,null,null,null,null,null,null,null,null,null,null,null,null,null,null,null,null,null,null,null,null,null,null,null,null,null,null,"TRZECI MAZOWIECKI URZĄD SKARBOWY W RADOMIU","1473"]
[null,null,null,null,null,null,null,null,null,null,null,null,null,null,null,null,null,null,null,null,null,null,null,null,null,null,null,null,null,null,null,null,null,"URZĄD SKARBOWY W RADOMSKU","1019"]
[null,null,null,null,null,null,null,null,null,null,null,null,null,null,null,null,null,null,null,null,null,null,null,null,null,null,null,null,null,null,null,null,null,"URZĄD SKARBOWY W RADZIEJOWIE","0413"]
[null,null,null,null,null,null,null,null,null,null,null,null,null,null,null,null,null,null,null,null,null,null,null,null,null,null,null,null,null,null,null,null,null,"URZĄD SKARBOWY W RADZYNIU PODLASKIM","0617"]
[null,null,null,null,null,null,null,null,null,null,null,null,null,null,null,null,null,null,null,null,null,null,null,null,null,null,null,null,null,null,null,null,null,"URZĄD SKARBOWY W RAWICZU","3027"]
[null,null,null,null,null,null,null,null,null,null,null,null,null,null,null,null,null,null,null,null,null,null,null,null,null,null,null,null,null,null,null,null,null,"URZĄD SKARBOWY W RAWIE MAZOWIECKIEJ","1020"]
[null,null,null,null,null,null,null,null,null,null,null,null,null,null,null,null,null,null,null,null,null,null,null,null,null,null,null,null,null,null,null,null,null,"URZĄD SKARBOWY W ROPCZYCACH","1815"]
[null,null,null,null,null,null,null,null,null,null,null,null,null,null,null,null,null,null,null,null,null,null,null,null,null,null,null,null,null,null,null,null,null,"URZĄD SKARBOWY W RUDZIE ŚLĄSKIEJ","2426"]
[null,null,null,null,null,null,null,null,null,null,null,null,null,null,null,null,null,null,null,null,null,null,null,null,null,null,null,null,null,null,null,null,null,"URZĄD SKARBOWY W RYBNIKU","2427"]
[null,null,null,null,null,null,null,null,null,null,null,null,null,null,null,null,null,null,null,null,null,null,null,null,null,null,null,null,null,null,null,null,null,"URZĄD SKARBOWY W RYKACH","0622"]
[null,null,null,null,null,null,null,null,null,null,null,null,null,null,null,null,null,null,null,null,null,null,null,null,null,null,null,null,null,null,null,null,null,"URZĄD SKARBOWY W RYPINIE","0414"]
[null,null,null,null,null,null,null,null,null,null,null,null,null,null,null,null,null,null,null,null,null,null,null,null,null,null,null,null,null,null,null,null,null,"PIERWSZY URZĄD SKARBOWY W RZESZOWIE","1816"]
[null,null,null,null,null,null,null,null,null,null,null,null,null,null,null,null,null,null,null,null,null,null,null,null,null,null,null,null,null,null,null,null,null,"DRUGI URZĄD SKARBOWY W RZESZOWIE","1822"]
[null,null,null,null,null,null,null,null,null,null,null,null,null,null,null,null,null,null,null,null,null,null,null,null,null,null,null,null,null,null,null,null,null,"PODKARPACKI URZĄD SKARBOWY W RZESZOWIE","1871"]
[null,null,null,null,null,null,null,null,null,null,null,null,null,null,null,null,null,null,null,null,null,null,null,null,null,null,null,null,null,null,null,null,null,"URZĄD SKARBOWY W SANDOMIERZU","2610"]
[null,null,null,null,null,null,null,null,null,null,null,null,null,null,null,null,null,null,null,null,null,null,null,null,null,null,null,null,null,null,null,null,null,"URZĄD SKARBOWY W SANOKU","1817"]
[null,null,null,null,null,null,null,null,null,null,null,null,null,null,null,null,null,null,null,null,null,null,null,null,null,null,null,null,null,null,null,null,null,"URZĄD SKARBOWY W SĘPÓLNIE KRAJEŃSKIM","0423"]
[null,null,null,null,null,null,null,null,null,null,null,null,null,null,null,null,null,null,null,null,null,null,null,null,null,null,null,null,null,null,null,null,null,"URZĄD SKARBOWY W SIEDLCACH","1426"]
[null,null,null,null,null,null,null,null,null,null,null,null,null,null,null,null,null,null,null,null,null,null,null,null,null,null,null,null,null,null,null,null,null,"URZĄD SKARBOWY W SIEMIANOWICACH ŚLĄSKICH","2428"]
[null,null,null,null,null,null,null,null,null,null,null,null,null,null,null,null,null,null,null,null,null,null,null,null,null,null,null,null,null,null,null,null,null,"URZĄD SKARBOWY W SIEMIATYCZACH","2010"]
[null,null,null,null,null,null,null,null,null,null,null,null,null,null,null,null,null,null,null,null,null,null,null,null,null,null,null,null,null,null,null,null,null,"URZĄD SKARBOWY W SIERADZU","1021"]
[null,null,null,null,null,null,null,null,null,null,null,null,null,null,null,null,null,null,null,null,null,null,null,null,null,null,null,null,null,null,null,null,null,"URZĄD SKARBOWY W SIERPCU","1427"]
[null,null,null,null,null,null,null,null,null,null,null,null,null,null,null,null,null,null,null,null,null,null,null,null,null,null,null,null,null,null,null,null,null,"URZĄD SKARBOWY W SKARŻYSKU-KAMIENNEJ","2611"]
[null,null,null,null,null,null,null,null,null,null,null,null,null,null,null,null,null,null,null,null,null,null,null,null,null,null,null,null,null,null,null,null,null,"URZĄD SKARBOWY W SKIERNIEWICACH","1022"]
[null,null,null,null,null,null,null,null,null,null,null,null,null,null,null,null,null,null,null,null,null,null,null,null,null,null,null,null,null,null,null,null,null,"URZĄD SKARBOWY W SŁUBICACH","0806"]
[null,null,null,null,null,null,null,null,null,null,null,null,null,null,null,null,null,null,null,null,null,null,null,null,null,null,null,null,null,null,null,null,null,"URZĄD SKARBOWY W SŁUPCY","3028"]
[null,null,null,null,null,null,null,null,null,null,null,null,null,null,null,null,null,null,null,null,null,null,null,null,null,null,null,null,null,null,null,null,null,"URZĄD SKARBOWY W SŁUPSKU","2216"]
[null,null,null,null,null,null,null,null,null,null,null,null,null,null,null,null,null,null,null,null,null,null,null,null,null,null,null,null,null,null,null,null,null,"URZĄD SKARBOWY W SOCHACZEWIE","1428"]
[null,null,null,null,null,null,null,null,null,null,null,null,null,null,null,null,null,null,null,null,null,null,null,null,null,null,null,null,null,null,null,null,null,"URZĄD SKARBOWY W SOKOŁOWIE PODLASKIM","1429"]
[null,null,null,null,null,null,null,null,null,null,null,null,null,null,null,null,null,null,null,null,null,null,null,null,null,null,null,null,null,null,null,null,null,"URZĄD SKARBOWY W SOKÓŁCE","2011"]
[null,null,null,null,null,null,null,null,null,null,null,null,null,null,null,null,null,null,null,null,null,null,null,null,null,null,null,null,null,null,null,null,null,"URZĄD SKARBOWY W SOPOCIE","2217"]
[null,null,null,null,null,null,null,null,null,null,null,null,null,null,null,null,null,null,null,null,null,null,null,null,null,null,null,null,null,null,null,null,null,"URZĄD SKARBOWY W SOSNOWCU","2429"]
[null,null,null,null,null,null,null,null,null,null,null,null,null,null,null,null,null,null,null,null,null,null,null,null,null,null,null,null,null,null,null,null,null,"PIERWSZY ŚLĄSKI URZĄD SKARBOWY W SOSNOWCU","2471"]
[null,null,null,null,null,null,null,null,null,null,null,null,null,null,null,null,null,null,null,null,null,null,null,null,null,null,null,null,null,null,null,null,null,"URZĄD SKARBOWY W STALOWEJ WOLI","1818"]
[null,null,null,null,null,null,null,null,null,null,null,null,null,null,null,null,null,null,null,null,null,null,null,null,null,null,null,null,null,null,null,null,null,"URZĄD SKARBOWY W STARACHOWICACH","2612"]
[null,null,null,null,null,null,null,null,null,null,null,null,null,null,null,null,null,null,null,null,null,null,null,null,null,null,null,null,null,null,null,null,null,"URZĄD SKARBOWY W STARGARDZIE","3214"]
[null,null,null,null,null,null,null,null,null,null,null,null,null,null,null,null,null,null,null,null,null,null,null,null,null,null,null,null,null,null,null,null,null,"URZĄD SKARBOWY W STAROGARDZIE GDAŃSKIM","2218"]
[null,null,null,null,null,null,null,null,null,null,null,null,null,null,null,null,null,null,null,null,null,null,null,null,null,null,null,null,null,null,null,null,null,"URZĄD SKARBOWY W STASZOWIE","2613"]
[null,null,null,null,null,null,null,null,null,null,null,null,null,null,null,null,null,null,null,null,null,null,null,null,null,null,null,null,null,null,null,null,null,"URZĄD SKARBOWY W STRZELCACH OPOLSKICH","1612"]
[null,null,null,null,null,null,null,null,null,null,null,null,null,null,null,null,null,null,null,null,null,null,null,null,null,null,null,null,null,null,null,null,null,"URZĄD SKARBOWY W STRZELINIE","0218"]
[null,null,null,null,null,null,null,null,null,null,null,null,null,null,null,null,null,null,null,null,null,null,null,null,null,null,null,null,null,null,null,null,null,"URZĄD SKARBOWY W STRZYŻOWIE","1819"]
[null,null,null,null,null,null,null,null,null,null,null,null,null,null,null,null,null,null,null,null,null,null,null,null,null,null,null,null,null,null,null,null,null,"URZĄD SKARBOWY W SUCHEJ BESKIDZKIEJ","1222"]
[null,null,null,null,null,null,null,null,null,null,null,null,null,null,null,null,null,null,null,null,null,null,null,null,null,null,null,null,null,null,null,null,null,"URZĄD SKARBOWY W SULĘCINIE","0813"]
[null,null,null,null,null,null,null,null,null,null,null,null,null,null,null,null,null,null,null,null,null,null,null,null,null,null,null,null,null,null,null,null,null,"URZĄD SKARBOWY W SUWAŁKACH","2012"]
[null,null,null,null,null,null,null,null,null,null,null,null,null,null,null,null,null,null,null,null,null,null,null,null,null,null,null,null,null,null,null,null,null,"URZĄD SKARBOWY W SZAMOTUŁACH","3029"]
[null,null,null,null,null,null,null,null,null,null,null,null,null,null,null,null,null,null,null,null,null,null,null,null,null,null,null,null,null,null,null,null,null,"PIERWSZY URZĄD SKARBOWY W SZCZECINIE","3215"]
[null,null,null,null,null,null,null,null,null,null,null,null,null,null,null,null,null,null,null,null,null,null,null,null,null,null,null,null,null,null,null,null,null,"DRUGI URZĄD SKARBOWY W SZCZECINIE","3216"]
[null,null,null,null,null,null,null,null,null,null,null,null,null,null,null,null,null,null,null,null,null,null,null,null,null,null,null,null,null,null,null,null,null,"TRZECI URZĄD SKARBOWY W SZCZECINIE","3217"]
[null,null,null,null,null,null,null,null,null,null,null,null,null,null,null,null,null,null,null,null,null,null,null,null,null,null,null,null,null,null,null,null,null,"ZACHODNIOPOMORSKI URZĄD SKARBOWY W SZCZECINIE","3271"]
[null,null,null,null,null,null,null,null,null,null,null,null,null,null,null,null,null,null,null,null,null,null,null,null,null,null,null,null,null,null,null,null,null,"URZĄD SKARBOWY W SZCZECINKU","3218"]
[null,null,null,null,null,null,null,null,null,null,null,null,null,null,null,null,null,null,null,null,null,null,null,null,null,null,null,null,null,null,null,null,null,"URZĄD SKARBOWY W SZCZYTNIE","2816"]
[null,null,null,null,null,null,null,null,null,null,null,null,null,null,null,null,null,null,null,null,null,null,null,null,null,null,null,null,null,null,null,null,null,"URZĄD SKARBOWY W SZYDŁOWCU","1430"]
[null,null,null,null,null,null,null,null,null,null,null,null,null,null,null,null,null,null,null,null,null,null,null,null,null,null,null,null,null,null,null,null,null,"URZĄD SKARBOWY W ŚREMIE","3030"]
[null,null,null,null,null,null,null,null,null,null,null,null,null,null,null,null,null,null,null,null,null,null,null,null,null,null,null,null,null,null,null,null,null,"URZĄD SKARBOWY W ŚRODZIE ŚLĄSKIEJ","0219"]
[null,null,null,null,null,null,null,null,null,null,null,null,null,null,null,null,null,null,null,null,null,null,null,null,null,null,null,null,null,null,null,null,null,"URZĄD SKARBOWY W ŚRODZIE WIELKOPOLSKIEJ","3031"]
[null,null,null,null,null,null,null,null,null,null,null,null,null,null,null,null,null,null,null,null,null,null,null,null,null,null,null,null,null,null,null,null,null,"URZĄD SKARBOWY W ŚWIDNICY","0220"]
[null,null,null,null,null,null,null,null,null,null,null,null,null,null,null,null,null,null,null,null,null,null,null,null,null,null,null,null,null,null,null,null,null,"URZĄD SKARBOWY W ŚWIEBODZINIE","0807"]
[null,null,null,null,null,null,null,null,null,null,null,null,null,null,null,null,null,null,null,null,null,null,null,null,null,null,null,null,null,null,null,null,null,"URZĄD SKARBOWY W ŚWIECIU","0415"]
[null,null,null,null,null,null,null,null,null,null,null,null,null,null,null,null,null,null,null,null,null,null,null,null,null,null,null,null,null,null,null,null,null,"ŚWIĘTOKRZYSKI URZĄD SKARBOWY W KIELCACH","2671"]
[null,null,null,null,null,null,null,null,null,null,null,null,null,null,null,null,null,null,null,null,null,null,null,null,null,null,null,null,null,null,null,null,null,"URZĄD SKARBOWY W ŚWINOUJŚCIU","3219"]
[null,null,null,null,null,null,null,null,null,null,null,null,null,null,null,null,null,null,null,null,null,null,null,null,null,null,null,null,null,null,null,null,null,"URZĄD SKARBOWY W TARNOBRZEGU","1820"]
[null,null,null,null,null,null,null,null,null,null,null,null,null,null,null,null,null,null,null,null,null,null,null,null,null,null,null,null,null,null,null,null,null,"PIERWSZY URZĄD SKARBOWY W TARNOWIE","1223"]
[null,null,null,null,null,null,null,null,null,null,null,null,null,null,null,null,null,null,null,null,null,null,null,null,null,null,null,null,null,null,null,null,null,"DRUGI URZĄD SKARBOWY W TARNOWIE","1224"]
[null,null,null,null,null,null,null,null,null,null,null,null,null,null,null,null,null,null,null,null,null,null,null,null,null,null,null,null,null,null,null,null,null,"URZĄD SKARBOWY W TARNOWSKICH GÓRACH","2430"]
[null,null,null,null,null,null,null,null,null,null,null,null,null,null,null,null,null,null,null,null,null,null,null,null,null,null,null,null,null,null,null,null,null,"URZĄD SKARBOWY W TCZEWIE","2219"]
[null,null,null,null,null,null,null,null,null,null,null,null,null,null,null,null,null,null,null,null,null,null,null,null,null,null,null,null,null,null,null,null,null,"URZĄD SKARBOWY W TOMASZOWIE LUBELSKIM","0618"]
[null,null,null,null,null,null,null,null,null,null,null,null,null,null,null,null,null,null,null,null,null,null,null,null,null,null,null,null,null,null,null,null,null,"URZĄD SKARBOWY W TOMASZOWIE MAZOWIECKIM","1023"]
[null,null,null,null,null,null,null,null,null,null,null,null,null,null,null,null,null,null,null,null,null,null,null,null,null,null,null,null,null,null,null,null,null,"PIERWSZY URZĄD SKARBOWY W TORUNIU","0416"]
[null,null,null,null,null,null,null,null,null,null,null,null,null,null,null,null,null,null,null,null,null,null,null,null,null,null,null,null,null,null,null,null,null,"DRUGI URZĄD SKARBOWY W TORUNIU","0417"]
[null,null,null,null,null,null,null,null,null,null,null,null,null,null,null,null,null,null,null,null,null,null,null,null,null,null,null,null,null,null,null,null,null,"URZĄD SKARBOWY W TRZEBNICY","0221"]
[null,null,null,null,null,null,null,null,null,null,null,null,null,null,null,null,null,null,null,null,null,null,null,null,null,null,null,null,null,null,null,null,null,"URZĄD SKARBOWY W TUCHOLI","0418"]
[null,null,null,null,null,null,null,null,null,null,null,null,null,null,null,null,null,null,null,null,null,null,null,null,null,null,null,null,null,null,null,null,null,"URZĄD SKARBOWY W TURKU","3032"]
[null,null,null,null,null,null,null,null,null,null,null,null,null,null,null,null,null,null,null,null,null,null,null,null,null,null,null,null,null,null,null,null,null,"URZĄD SKARBOWY W TYCHACH","2431"]
[null,null,null,null,null,null,null,null,null,null,null,null,null,null,null,null,null,null,null,null,null,null,null,null,null,null,null,null,null,null,null,null,null,"URZĄD SKARBOWY W USTRZYKACH DOLNYCH","1821"]
[null,null,null,null,null,null,null,null,null,null,null,null,null,null,null,null,null,null,null,null,null,null,null,null,null,null,null,null,null,null,null,null,null,"URZĄD SKARBOWY W WADOWICACH","1225"]
[null,null,null,null,null,null,null,null,null,null,null,null,null,null,null,null,null,null,null,null,null,null,null,null,null,null,null,null,null,null,null,null,null,"URZĄD SKARBOWY W WAŁBRZYCHU","0222"]
[null,null,null,null,null,null,null,null,null,null,null,null,null,null,null,null,null,null,null,null,null,null,null,null,null,null,null,null,null,null,null,null,null,"URZĄD SKARBOWY W WAŁCZU","3220"]
[null,null,null,null,null,null,null,null,null,null,null,null,null,null,null,null,null,null,null,null,null,null,null,null,null,null,null,null,null,null,null,null,null,"URZĄD SKARBOWY WARSZAWA-BEMOWO","1431"]
[null,null,null,null,null,null,null,null,null,null,null,null,null,null,null,null,null,null,null,null,null,null,null,null,null,null,null,null,null,null,null,null,null,"URZĄD SKARBOWY WARSZAWA-BIELANY","1432"]
[null,null,null,null,null,null,null,null,null,null,null,null,null,null,null,null,null,null,null,null,null,null,null,null,null,null,null,null,null,null,null,null,null,"URZĄD SKARBOWY WARSZAWA-MOKOTÓW","1433"]
[null,null,null,null,null,null,null,null,null,null,null,null,null,null,null,null,null,null,null,null,null,null,null,null,null,null,null,null,null,null,null,null,null,"URZĄD SKARBOWY WARSZAWA-PRAGA","1434"]
[null,null,null,null,null,null,null,null,null,null,null,null,null,null,null,null,null,null,null,null,null,null,null,null,null,null,null,null,null,null,null,null,null,"PIERWSZY URZĄD SKARBOWY WARSZAWA-ŚRÓDMIEŚCIE","1435"]
[null,null,null,null,null,null,null,null,null,null,null,null,null,null,null,null,null,null,null,null,null,null,null,null,null,null,null,null,null,null,null,null,null,"DRUGI URZĄD SKARBOWY WARSZAWA-ŚRÓDMIEŚCIE","1436"]
[null,null,null,null,null,null,null,null,null,null,null,null,null,null,null,null,null,null,null,null,null,null,null,null,null,null,null,null,null,null,null,null,null,"TRZECI URZĄD SKARBOWY WARSZAWA-ŚRÓDMIEŚCIE","1449"]
[null,null,null,null,null,null,null,null,null,null,null,null,null,null,null,null,null,null,null,null,null,null,null,null,null,null,null,null,null,null,null,null,null,"URZĄD SKARBOWY WARSZAWA-TARGÓWEK","1437"]
[null,null,null,null,null,null,null,null,null,null,null,null,null,null,null,null,null,null,null,null,null,null,null,null,null,null,null,null,null,null,null,null,null,"URZĄD SKARBOWY WARSZAWA-URSYNÓW","1438"]
[null,null,null,null,null,null,null,null,null,null,null,null,null,null,null,null,null,null,null,null,null,null,null,null,null,null,null,null,null,null,null,null,null,"URZĄD SKARBOWY WARSZAWA-WAWER","1439"]
[null,null,null,null,null,null,null,null,null,null,null,null,null,null,null,null,null,null,null,null,null,null,null,null,null,null,null,null,null,null,null,null,null,"URZĄD SKARBOWY WARSZAWA-WOLA","1440"]
[null,null,null,null,null,null,null,null,null,null,null,null,null,null,null,null,null,null,null,null,null,null,null,null,null,null,null,null,null,null,null,null,null,"PIERWSZY MAZOWIECKI URZĄD SKARBOWY W WARSZAWIE","1471"]
[null,null,null,null,null,null,null,null,null,null,null,null,null,null,null,null,null,null,null,null,null,null,null,null,null,null,null,null,null,null,null,null,null,"DRUGI MAZOWIECKI URZĄD SKARBOWY W WARSZAWIE","1472"]
[null,null,null,null,null,null,null,null,null,null,null,null,null,null,null,null,null,null,null,null,null,null,null,null,null,null,null,null,null,null,null,null,null,"URZĄD SKARBOWY W WĄBRZEŹNIE","0419"]
[null,null,null,null,null,null,null,null,null,null,null,null,null,null,null,null,null,null,null,null,null,null,null,null,null,null,null,null,null,null,null,null,null,"URZĄD SKARBOWY W WĄGROWCU","3033"]
[null,null,null,null,null,null,null,null,null,null,null,null,null,null,null,null,null,null,null,null,null,null,null,null,null,null,null,null,null,null,null,null,null,"URZĄD SKARBOWY W WĘGROWIE","1441"]
[null,null,null,null,null,null,null,null,null,null,null,null,null,null,null,null,null,null,null,null,null,null,null,null,null,null,null,null,null,null,null,null,null,"URZĄD SKARBOWY W WIELICZCE","1226"]
[null,null,null,null,null,null,null,null,null,null,null,null,null,null,null,null,null,null,null,null,null,null,null,null,null,null,null,null,null,null,null,null,null,"URZĄD SKARBOWY W WIELUNIU","1024"]
[null,null,null,null,null,null,null,null,null,null,null,null,null,null,null,null,null,null,null,null,null,null,null,null,null,null,null,null,null,null,null,null,null,"URZĄD SKARBOWY W WIERUSZOWIE","1027"]
[null,null,null,null,null,null,null,null,null,null,null,null,null,null,null,null,null,null,null,null,null,null,null,null,null,null,null,null,null,null,null,null,null,"URZĄD SKARBOWY WE WŁOCŁAWKU","0420"]
[null,null,null,null,null,null,null,null,null,null,null,null,null,null,null,null,null,null,null,null,null,null,null,null,null,null,null,null,null,null,null,null,null,"URZĄD SKARBOWY WE WŁODAWIE","0619"]
[null,null,null,null,null,null,null,null,null,null,null,null,null,null,null,null,null,null,null,null,null,null,null,null,null,null,null,null,null,null,null,null,null,"URZĄD SKARBOWY WE WŁOSZCZOWIE","2615"]
[null,null,null,null,null,null,null,null,null,null,null,null,null,null,null,null,null,null,null,null,null,null,null,null,null,null,null,null,null,null,null,null,null,"URZĄD SKARBOWY W WODZISŁAWIU ŚLĄSKIM","2432"]
[null,null,null,null,null,null,null,null,null,null,null,null,null,null,null,null,null,null,null,null,null,null,null,null,null,null,null,null,null,null,null,null,null,"URZĄD SKARBOWY W WOLSZTYNIE","3034"]
[null,null,null,null,null,null,null,null,null,null,null,null,null,null,null,null,null,null,null,null,null,null,null,null,null,null,null,null,null,null,null,null,null,"URZĄD SKARBOWY W WOŁOMINIE","1442"]
[null,null,null,null,null,null,null,null,null,null,null,null,null,null,null,null,null,null,null,null,null,null,null,null,null,null,null,null,null,null,null,null,null,"URZĄD SKARBOWY W WOŁOWIE","0223"]
[null,null,null,null,null,null,null,null,null,null,null,null,null,null,null,null,null,null,null,null,null,null,null,null,null,null,null,null,null,null,null,null,null,"PIERWSZY URZĄD SKARBOWY WE WROCŁAWIU","0229"]
[null,null,null,null,null,null,null,null,null,null,null,null,null,null,null,null,null,null,null,null,null,null,null,null,null,null,null,null,null,null,null,null,null,"URZĄD SKARBOWY WROCŁAW-FABRYCZNA","0224"]
[null,null,null,null,null,null,null,null,null,null,null,null,null,null,null,null,null,null,null,null,null,null,null,null,null,null,null,null,null,null,null,null,null,"URZĄD SKARBOWY WROCŁAW-KRZYKI","0225"]
[null,null,null,null,null,null,null,null,null,null,null,null,null,null,null,null,null,null,null,null,null,null,null,null,null,null,null,null,null,null,null,null,null,"URZĄD SKARBOWY WROCŁAW-PSIE POLE","0226"]
[null,null,null,null,null,null,null,null,null,null,null,null,null,null,null,null,null,null,null,null,null,null,null,null,null,null,null,null,null,null,null,null,null,"URZĄD SKARBOWY WROCŁAW-STARE MIASTO","0227"]
[null,null,null,null,null,null,null,null,null,null,null,null,null,null,null,null,null,null,null,null,null,null,null,null,null,null,null,null,null,null,null,null,null,"URZĄD SKARBOWY WROCŁAW-ŚRÓDMIEŚCIE","0228"]
[null,null,null,null,null,null,null,null,null,null,null,null,null,null,null,null,null,null,null,null,null,null,null,null,null,null,null,null,null,null,null,null,null,"DOLNOŚLĄSKI URZĄD SKARBOWY WE WROCŁAWIU","0271"]
[null,null,null,null,null,null,null,null,null,null,null,null,null,null,null,null,null,null,null,null,null,null,null,null,null,null,null,null,null,null,null,null,null,"URZĄD SKARBOWY WE WRZEŚNI","3035"]
[null,null,null,null,null,null,null,null,null,null,null,null,null,null,null,null,null,null,null,null,null,null,null,null,null,null,null,null,null,null,null,null,null,"URZĄD SKARBOWY WE WSCHOWIE","0814"]
[null,null,null,null,null,null,null,null,null,null,null,null,null,null,null,null,null,null,null,null,null,null,null,null,null,null,null,null,null,null,null,null,null,"URZĄD SKARBOWY W WYSOKIEM MAZOWIECKIEM","2013"]
[null,null,null,null,null,null,null,null,null,null,null,null,null,null,null,null,null,null,null,null,null,null,null,null,null,null,null,null,null,null,null,null,null,"URZĄD SKARBOWY W WYSZKOWIE","1443"]
[null,null,null,null,null,null,null,null,null,null,null,null,null,null,null,null,null,null,null,null,null,null,null,null,null,null,null,null,null,null,null,null,null,"URZĄD SKARBOWY W ZABRZU","2433"]
[null,null,null,null,null,null,null,null,null,null,null,null,null,null,null,null,null,null,null,null,null,null,null,null,null,null,null,null,null,null,null,null,null,"URZĄD SKARBOWY W ZAKOPANEM","1227"]
[null,null,null,null,null,null,null,null,null,null,null,null,null,null,null,null,null,null,null,null,null,null,null,null,null,null,null,null,null,null,null,null,null,"URZĄD SKARBOWY W ZAMBROWIE","2014"]
[null,null,null,null,null,null,null,null,null,null,null,null,null,null,null,null,null,null,null,null,null,null,null,null,null,null,null,null,null,null,null,null,null,"URZĄD SKARBOWY W ZAMOŚCIU","0620"]
[null,null,null,null,null,null,null,null,null,null,null,null,null,null,null,null,null,null,null,null,null,null,null,null,null,null,null,null,null,null,null,null,null,"URZĄD SKARBOWY W ZAWIERCIU","2434"]
[null,null,null,null,null,null,null,null,null,null,null,null,null,null,null,null,null,null,null,null,null,null,null,null,null,null,null,null,null,null,null,null,null,"URZĄD SKARBOWY W ZĄBKOWICACH ŚLĄSKICH","0230"]
[null,null,null,null,null,null,null,null,null,null,null,null,null,null,null,null,null,null,null,null,null,null,null,null,null,null,null,null,null,null,null,null,null,"URZĄD SKARBOWY W ZDUŃSKIEJ WOLI","1025"]
[null,null,null,null,null,null,null,null,null,null,null,null,null,null,null,null,null,null,null,null,null,null,null,null,null,null,null,null,null,null,null,null,null,"URZĄD SKARBOWY W ZGIERZU","1026"]
[null,null,null,null,null,null,null,null,null,null,null,null,null,null,null,null,null,null,null,null,null,null,null,null,null,null,null,null,null,null,null,null,null,"URZĄD SKARBOWY W ZGORZELCU","0231"]
[null,null,null,null,null,null,null,null,null,null,null,null,null,null,null,null,null,null,null,null,null,null,null,null,null,null,null,null,null,null,null,null,null,"PIERWSZY URZĄD SKARBOWY W ZIELONEJ GÓRZE","0808"]
[null,null,null,null,null,null,null,null,null,null,null,null,null,null,null,null,null,null,null,null,null,null,null,null,null,null,null,null,null,null,null,null,null,"DRUGI URZĄD SKARBOWY W ZIELONEJ GÓRZE","0809"]
[null,null,null,null,null,null,null,null,null,null,null,null,null,null,null,null,null,null,null,null,null,null,null,null,null,null,null,null,null,null,null,null,null,"LUBUSKI URZĄD SKARBOWY W ZIELONEJ GÓRZE","0871"]
[null,null,null,null,null,null,null,null,null,null,null,null,null,null,null,null,null,null,null,null,null,null,null,null,null,null,null,null,null,null,null,null,null,"URZĄD SKARBOWY W ZŁOTORYI","0232"]
[null,null,null,null,null,null,null,null,null,null,null,null,null,null,null,null,null,null,null,null,null,null,null,null,null,null,null,null,null,null,null,null,null,"URZĄD SKARBOWY W ZŁOTOWIE","3036"]
[null,null,null,null,null,null,null,null,null,null,null,null,null,null,null,null,null,null,null,null,null,null,null,null,null,null,null,null,null,null,null,null,null,"URZĄD SKARBOWY W ZWOLENIU","1444"]
[null,null,null,null,null,null,null,null,null,null,null,null,null,null,null,null,null,null,null,null,null,null,null,null,null,null,null,null,null,null,null,null,null,"URZĄD SKARBOWY W ŻAGANIU","0810"]
[null,null,null,null,null,null,null,null,null,null,null,null,null,null,null,null,null,null,null,null,null,null,null,null,null,null,null,null,null,null,null,null,null,"URZĄD SKARBOWY W ŻARACH","0811"]
[null,null,null,null,null,null,null,null,null,null,null,null,null,null,null,null,null,null,null,null,null,null,null,null,null,null,null,null,null,null,null,null,null,"URZĄD SKARBOWY W ŻNINIE","0421"]
[null,null,null,null,null,null,null,null,null,null,null,null,null,null,null,null,null,null,null,null,null,null,null,null,null,null,null,null,null,null,null,null,null,"URZĄD SKARBOWY W ŻORACH","2435"]
[null,null,null,null,null,null,null,null,null,null,null,null,null,null,null,null,null,null,null,null,null,null,null,null,null,null,null,null,null,null,null,null,null,"URZĄD SKARBOWY W ŻUROMINIE","1445"]
[null,null,null,null,null,null,null,null,null,null,null,null,null,null,null,null,null,null,null,null,null,null,null,null,null,null,null,null,null,null,null,null,null,"URZĄD SKARBOWY W ŻYRARDOWIE","1446"]
[null,null,null,null,null,null,null,null,null,null,null,null,null,null,null,null,null,null,null,null,null,null,null,null,null,null,null,null,null,null,null,null,null,"URZĄD SKARBOWY W ŻYWCU","2436"]

{"sheet":"Sprzedaż-I","index":2,"n_rows":3,"n_cols":64,"rows_kept":3,"cut":false,"hidden":false,"merged":[[1,3,1,4]]}
["Lp\nsprzedaży\n\nWypełnia\nprzycisk\n'Sprawdź\"","Kod kraju nadania numeru, za pomocą którego nabywca, dostawca lub usługodawca jest zidentyfikowany na potrzeby podatku lub podatku od wartości dodanej","Numer, za pomocą którego nabywca, dostawca lub usługodawca jest zidentyfikowany na potrzeby podatku lub podatku od wartości dodanej (wyłącznie kod cyfrowo-literowy)","Imię i nazwisko lub nazwa nabywcy, dostawcy lub usługodawcy","Numer dowodu","Data wystawienia dowodu","Data dokonania lub zakończenia dostawy towarów lub wykonania usługi lub data otrzymania zapłaty, o której mowa w art. 106b ust. 1 pkt 4 ustawy, o ile taka data jest określona i różni się od daty wystawienia dowodu. W przeciwnym przypadku - pole puste","Oznaczenie dowodu sprzedaży\n=\nRO\nFP\nWEW","Dostawa napojów alkoholowych - alkoholu etylowego, piwa, wina, napojów fermentowanych i wyrobów pośrednich, w rozumieniu przepisów o podatku akcyzowym","Dostawa towarów, o których mowa w art. 103 ust. 5aa ustawy","Dostawa oleju opałowego w rozumieniu przepisów o podatku akcyzowym oraz olejów smarowych, pozostałych olejów o kodach CN od 2710 19 71 do 2710 19 99, z wyłączeniem wyrobów o kodzie CN 2710 19 85 (oleje białe, parafina ciekła) oraz smarów plastycznych zaliczanych do kodu CN 2710 19 99, olejów smarowych o kodzie CN 2710 20 90, preparatów smarowych objętych pozycją CN 3403, z wyłączeniem smarów plastycznych objętych tą pozycją","Dostawa wyrobów tytoniowych, suszu tytoniowego, płynu do papierosów elektronicznych i wyrobów nowatorskich, w rozumieniu przepisów o podatku akcyzowym","Dostawa odpadów - wyłącznie określonych w poz. 79-91 załącznika nr 15 do ustawy","Dostawa urządzeń elektronicznych oraz części i materiałów do nich, wyłącznie określonych w poz. 7-9, 59-63, 65, 66, 69 i 94-96 załącznika nr 15 do ustawy","Dostawa pojazdów oraz części samochodowych o kodach wyłącznie CN 8701 - 8708 oraz CN 8708 10","Dostawa metali szlachetnych oraz nieszlachetnych - wyłącznie określonych w poz. 1-3 załącznika nr 12 do ustawy oraz w poz. 12-25, 33-40, 45, 46, 56 i 78 załącznika nr 15 do ustawy","Dostawa leków oraz wyrobów medycznych - produktów leczniczych, środków spożywczych specjalnego przeznaczenia żywieniowego oraz wyrobów medycznych, objętych obowiązkiem zgłoszenia, o którym mowa w art. 37av ust. 1 ustawy z dnia 6 września 2001 r. - Prawo farmaceutyczne (Dz. U. z 2019 r. poz. 499, z późn. zm.)","Dostawa budynków, budowli i gruntów","Świadczenie usług w zakresie przenoszenia uprawnień do emisji gazów cieplarnianych, o których mowa w ustawie z dnia 12 czerwca 2015 r. o systemie handlu uprawnieniami do emisji gazów cieplarnianych (Dz. U. z 2018 r. poz. 1201 i 2538 oraz z 2019 r. poz. 730, 1501 i 1532)","Świadczenie usług o charakterze niematerialnym - wyłącznie: doradczych, księgowych, prawnych, zarządczych, szkoleniowych, marketingowych, firm centralnych (head offices), reklamowych, badania rynku i opinii publicznej, w zakresie badań naukowych i prac rozwojowych","Świadczenie usług transportowych i gospodarki magazynowej - Sekcja H PKWiU 2015 symbol ex 49.4, ex 52.1","Sprzedaż towarów na odległość oraz świadczenia usług telekomunikacyjnych, nadawczych i elektronicznycho których mowa w art. 28k ustawy, na rzecz podmiotów niebędących podatnikami na terytorium innego państwa członkowskiego","Dostawa towarów, o której mowa w art. 7a ust. 1 i 2 ustawy, dokonanej przez podatnika, który nie korzysta z procedury szczególnej, o której mowa w dziale XII w rozdziale 6a lub 9 ustawy lub w odpowiadających im regulacjach, dla której miejscem dostawy jest terytorium kraju ","Istniejące powiązania między nabywcą a dokonującym dostawy towarów lub usługodawcą, o których mowa w art. 32 ust. 2 pkt 1 ustawy","Wewnątrzwspólnotowe nabycie towarów dokonane przez drugiego w kolejności podatnika VAT w ramach transakcji trójstronnej w procedurze uproszczonej, o której mowa w dziale XII rozdziale 8 ustawy","Dostawa towarów poza terytorium kraju dokonana przez drugiego w kolejności podatnika VAT w ramach transakcji trójstronnej w procedurze uproszczonej, o której mowa w dziale XII rozdziale 8 ustawy","Świadczenie usług turystyki opodatkowane na zasadach marży zgodnie z art. 119 ustawy","Dostawa towarów używanych, dzieł sztuki, przedmiotów kolekcjonerskich i antyków, opodatkowana na zasadach marży zgodnie z art. 120 ustawy","Wewnątrzwspólnotowa dostawa towarów następująca po imporcie tych towarów w ramach procedury celnej 42 (import)","Wewnątrzwspólnotowa dostawa towarów następująca po imporcie tych towarów w ramach procedury celnej 63 (import)","Transfer bonu jednego przeznaczenia dokonany przez podatnika działającego we własnym imieniu, opodatkowany zgodnie z art. 8a ust. 1 ustawy","Dostawa towarów oraz świadczenie usług, których dotyczy bon jednego przeznaczenia na rzecz podatnika, który wyemitował bon zgodnie z art. 8a ust. 4 ustawy","Świadczenie usług pośrednictwa oraz innych usług dotyczących transferu bonu różnego przeznaczenia, opodatkowane zgodnie z art. 8b ust. 2 ustawy","Korekta podstawy opodatkowania oraz podatku należnego, o której mowa w art. 89a ust. 1 i 4 ustawy\n\n1 = tak","Data upływu terminu płatności w przypadku korekt dokonanych zgodnie z art. 89a ust. 1 ustawy","Data dokonania zapłaty w przypadku korekt dokonanych zgodnie z art. 89a ust. 4 ustawy","Dostawa towarów oraz świadczenie usług, na terytorium kraju, zwolnione od podatku","Dostawa towarów oraz świadczenie usług poza terytorium kraju","w tym świadczenie usług, o których mowa w art. 100 ust.1 pkt 4 ustawy","Dostawa towarów oraz świadczenie usług na terytorium kraju, opodatkowane stawką 0%","w tym dostawa towarów, o której mowa w art. 129 ustawy","Dostawa towarów oraz świadczenie usług na terytorium kraju, opodatkowane stawką 5%, oraz korekta zgodnie z art. 89a ust. 1 i 4 ustawy","Podatek należny 5% od poz. K_15, oraz korekta zgodnie z art. 89a ust. 1 i 4 ustawy","Dostawa towarów oraz świadczenie usług na terytorium kraju, opodatkowane stawką 7% albo 8% oraz korekta zgodnie z art. 89a ust. 1 i 4 ","Podatek należny 7% albo 8%, oraz korekta zgodnie z art. 89a ust. 1 i 4 ustawy","Dostawa towarów oraz świadczenie usług na terytorium kraju, opodatkowane stawką 22% albo 23% oraz korekta zgodnie z art. 89a ust. 1 i 4 ","Podatek należny 22% albo 23% oraz korekta zgodnie z art. 89a ust. 1 i 4 ","Wewnątrzwspólnotowa dostawa towarów, o której mowa w art. 13 ust. 1 i 3 ustawy","Eksport towarów","Wewnątrzwspólnotowe nabycie towarów","Podatek należny od poz. K_23","Import towarów, podlegający rozliczeniu zgodnie z art. 33a ustawy, potwierdzona zgłoszeniem celnym lub deklaracją importową, o której mowa w art. 33b ustawy","Podatek należny od poz. K_25","Import usług z wyłączeniem usług nabywanych od podatników podatku od wartości dodanej, do których stosuje się art. 28b ustawy","Podatek należny od poz. K_27","Import usług nabywanych od podatników podatku od wartości dodanej, do których stosuje się art. 28b ustawy","Podatek należny od poz. K_29","Dostawa towarów, dla których podatnikiem jest nabywca zgodnie z art. 17 ust. 1 pkt 5 ustawy","Podatek należny od poz. K_31","Wysokość podatku należnego od towarów objętych spisem z natury, o którym mowa w art. 14 ust. 5 ustawy","Wysokość zwrotu odliczonej lub zwróconej kwoty wydanej na zakup kas rejestrujących, o którym mowa w art. 111 ust. 6 ustawy","Podatek należny od wewnątrzwspólnotowego nabycia środków transportu, wykazana w wysokości podatku należnego z tytułu wewnątrzwspólnotowego nabycia towarów, podlegająca wpłacie w terminie, o którym mowa w art. 103 ust. 3, w związku z ust. 4 ustawy","Wysokość podatku należnego od wewnątrzwspólnotowego nabycia towarów, o których mowa w art. 103 ust. 5aa ustawy, podlegająca wpłacie w terminie, o którym mowa w art. 103 ust. 5a i 5b ustawy","Wartość sprzedaży brutto dostawy towarów i świadczenia usług opodatkowanych na zasadach marży zgodnie z art. 119 i art. 120 "]
[{"$f":"COUNTA(A4:A1048576)","v":0},{"$f":"COUNTIF(H4:H1048576,\"FP\")","v":0},null,"Pierwszy miesiąc kwartału (styczeń, kwiecień, lipiec, październik)",null,null,null,"Enter","Enter","Enter","Enter","Enter","Enter","Enter","Enter","Enter","Enter","Enter","Enter","Enter","Enter","Enter","Enter","Enter","Enter","Enter","Enter","Enter","Enter","Enter","Enter","Enter","Enter",null,null,null,{"$f":"SUMIF($H4:$H1048576,\"<>FP\",AK4:AK1048576)","v":0},0,0,0,0,0,0,0,0,0,0,0,0,0,0,0,0,0,0,0,0,0,0,0,0,0,0,0]
["LpSprzedazy","KodKrajuNadaniaTIN","NrKontrahenta","NazwaKontrahenta","DowodSprzedazy","DataWystawienia","DataSprzedazy","TypDokumentu","GTU_01","GTU_02","GTU_03","GTU_04","GTU_05","GTU_06","GTU_07","GTU_08","GTU_09","GTU_10","GTU_11","GTU_12","GTU_13","WSTO_EE","IED","TP","TT_WNT","TT_D","MR_T","MR_UZ","I_42","I_63","B_SPV","B_SPV_DOSTAWA","B_MPV_PROWIZJA","KorektaPodstawyOpodt","TerminPlatnosci","DataZaplaty","K_10","K_11","K_12","K_13","K_14","K_15","K_16","K_17","K_18","K_19","K_20","K_21","K_22","K_23","K_24","K_25","K_26","K_27","K_28","K_29","K_30","K_31","K_32","K_33","K_34","K_35","K_36","SprzedazVAT_Marza"]

{"sheet":"Sprzedaż-II","index":3,"n_rows":3,"n_cols":64,"rows_kept":3,"cut":false,"hidden":false,"merged":[[1,3,1,4]]}
["Lp\nsprzedaży\n\nWypełnia\nprzycisk\n'Sprawdź\"","Kod kraju nadania numeru, za pomocą którego nabywca, dostawca lub usługodawca jest zidentyfikowany na potrzeby podatku lub podatku od wartości dodanej","Numer, za pomocą którego nabywca, dostawca lub usługodawca jest zidentyfikowany na potrzeby podatku lub podatku od wartości dodanej (wyłącznie kod cyfrowo-literowy)","Imię i nazwisko lub nazwa nabywcy, dostawcy lub usługodawcy","Numer dowodu","Data wystawienia dowodu","Data dokonania lub zakończenia dostawy towarów lub wykonania usługi lub data otrzymania zapłaty, o której mowa w art. 106b ust. 1 pkt 4 ustawy, o ile taka data jest określona i różni się od daty wystawienia dowodu. W przeciwnym przypadku - pole puste","Oznaczenie dowodu sprzedaży\n=\nRO\nFP\nWEW","Dostawa napojów alkoholowych - alkoholu etylowego, piwa, wina, napojów fermentowanych i wyrobów pośrednich, w rozumieniu przepisów o podatku akcyzowym","Dostawa towarów, o których mowa w art. 103 ust. 5aa ustawy","Dostawa oleju opałowego w rozumieniu przepisów o podatku akcyzowym oraz olejów smarowych, pozostałych olejów o kodach CN od 2710 19 71 do 2710 19 99, z wyłączeniem wyrobów o kodzie CN 2710 19 85 (oleje białe, parafina ciekła) oraz smarów plastycznych zaliczanych do kodu CN 2710 19 99, olejów smarowych o kodzie CN 2710 20 90, preparatów smarowych objętych pozycją CN 3403, z wyłączeniem smarów plastycznych objętych tą pozycją","Dostawa wyrobów tytoniowych, suszu tytoniowego, płynu do papierosów elektronicznych i wyrobów nowatorskich, w rozumieniu przepisów o podatku akcyzowym","Dostawa odpadów - wyłącznie określonych w poz. 79-91 załącznika nr 15 do ustawy","Dostawa urządzeń elektronicznych oraz części i materiałów do nich, wyłącznie określonych w poz. 7-9, 59-63, 65, 66, 69 i 94-96 załącznika nr 15 do ustawy","Dostawa pojazdów oraz części samochodowych o kodach wyłącznie CN 8701 - 8708 oraz CN 8708 10","Dostawa metali szlachetnych oraz nieszlachetnych - wyłącznie określonych w poz. 1-3 załącznika nr 12 do ustawy oraz w poz. 12-25, 33-40, 45, 46, 56 i 78 załącznika nr 15 do ustawy","Dostawa leków oraz wyrobów medycznych - produktów leczniczych, środków spożywczych specjalnego przeznaczenia żywieniowego oraz wyrobów medycznych, objętych obowiązkiem zgłoszenia, o którym mowa w art. 37av ust. 1 ustawy z dnia 6 września 2001 r. - Prawo farmaceutyczne (Dz. U. z 2019 r. poz. 499, z późn. zm.)","Dostawa budynków, budowli i gruntów","Świadczenie usług w zakresie przenoszenia uprawnień do emisji gazów cieplarnianych, o których mowa w ustawie z dnia 12 czerwca 2015 r. o systemie handlu uprawnieniami do emisji gazów cieplarnianych (Dz. U. z 2018 r. poz. 1201 i 2538 oraz z 2019 r. poz. 730, 1501 i 1532)","Świadczenie usług o charakterze niematerialnym - wyłącznie: doradczych, księgowych, prawnych, zarządczych, szkoleniowych, marketingowych, firm centralnych (head offices), reklamowych, badania rynku i opinii publicznej, w zakresie badań naukowych i prac rozwojowych","Świadczenie usług transportowych i gospodarki magazynowej - Sekcja H PKWiU 2015 symbol ex 49.4, ex 52.1","Sprzedaż towarów na odległość oraz świadczenia usług telekomunikacyjnych, nadawczych i elektronicznycho których mowa w art. 28k ustawy, na rzecz podmiotów niebędących podatnikami na terytorium innego państwa członkowskiego","Dostawa towarów, o której mowa w art. 7a ust. 1 i 2 ustawy, dokonanej przez podatnika, który nie korzysta z procedury szczególnej, o której mowa w dziale XII w rozdziale 6a lub 9 ustawy lub w odpowiadających im regulacjach, dla której miejscem dostawy jest terytorium kraju ","Istniejące powiązania między nabywcą a dokonującym dostawy towarów lub usługodawcą, o których mowa w art. 32 ust. 2 pkt 1 ustawy","Wewnątrzwspólnotowe nabycie towarów dokonane przez drugiego w kolejności podatnika VAT w ramach transakcji trójstronnej w procedurze uproszczonej, o której mowa w dziale XII rozdziale 8 ustawy","Dostawa towarów poza terytorium kraju dokonana przez drugiego w kolejności podatnika VAT w ramach transakcji trójstronnej w procedurze uproszczonej, o której mowa w dziale XII rozdziale 8 ustawy","Świadczenie usług turystyki opodatkowane na zasadach marży zgodnie z art. 119 ustawy","Dostawa towarów używanych, dzieł sztuki, przedmiotów kolekcjonerskich i antyków, opodatkowana na zasadach marży zgodnie z art. 120 ustawy","Wewnątrzwspólnotowa dostawa towarów następująca po imporcie tych towarów w ramach procedury celnej 42 (import)","Wewnątrzwspólnotowa dostawa towarów następująca po imporcie tych towarów w ramach procedury celnej 63 (import)","Transfer bonu jednego przeznaczenia dokonany przez podatnika działającego we własnym imieniu, opodatkowany zgodnie z art. 8a ust. 1 ustawy","Dostawa towarów oraz świadczenie usług, których dotyczy bon jednego przeznaczenia na rzecz podatnika, który wyemitował bon zgodnie z art. 8a ust. 4 ustawy","Świadczenie usług pośrednictwa oraz innych usług dotyczących transferu bonu różnego przeznaczenia, opodatkowane zgodnie z art. 8b ust. 2 ustawy","Korekta podstawy opodatkowania oraz podatku należnego, o której mowa w art. 89a ust. 1 i 4 ustawy\n\n1 = tak","Data upływu terminu płatności w przypadku korekt dokonanych zgodnie z art. 89a ust. 1 ustawy","Data dokonania zapłaty w przypadku korekt dokonanych zgodnie z art. 89a ust. 4 ustawy","Dostawa towarów oraz świadczenie usług, na terytorium kraju, zwolnione od podatku","Dostawa towarów oraz świadczenie usług poza terytorium kraju","w tym świadczenie usług, o których mowa w art. 100 ust.1 pkt 4 ustawy","Dostawa towarów oraz świadczenie usług na terytorium kraju, opodatkowane stawką 0%","w tym dostawa towarów, o której mowa w art. 129 ustawy","Dostawa towarów oraz świadczenie usług na terytorium kraju, opodatkowane stawką 5%, oraz korekta zgodnie z art. 89a ust. 1 i 4 ustawy","Podatek należny 5% od poz. K_15, oraz korekta zgodnie z art. 89a ust. 1 i 4 ustawy","Dostawa towarów oraz świadczenie usług na terytorium kraju, opodatkowane stawką 7% albo 8% oraz korekta zgodnie z art. 89a ust. 1 i 4 ","Podatek należny 7% albo 8%, oraz korekta zgodnie z art. 89a ust. 1 i 4 ustawy","Dostawa towarów oraz świadczenie usług na terytorium kraju, opodatkowane stawką 22% albo 23% oraz korekta zgodnie z art. 89a ust. 1 i 4 ","Podatek należny 22% albo 23% oraz korekta zgodnie z art. 89a ust. 1 i 4 ","Wewnątrzwspólnotowa dostawa towarów, o której mowa w art. 13 ust. 1 i 3 ustawy","Eksport towarów","Wewnątrzwspólnotowe nabycie towarów","Podatek należny od poz. K_23","Import towarów, podlegający rozliczeniu zgodnie z art. 33a ustawy, potwierdzona zgłoszeniem celnym lub deklaracją importową, o której mowa w art. 33b ustawy","Podatek należny od poz. K_25","Import usług z wyłączeniem usług nabywanych od podatników podatku od wartości dodanej, do których stosuje się art. 28b ustawy","Podatek należny od poz. K_27","Import usług nabywanych od podatników podatku od wartości dodanej, do których stosuje się art. 28b ustawy","Podatek należny od poz. K_29","Dostawa towarów, dla których podatnikiem jest nabywca zgodnie z art. 17 ust. 1 pkt 5 ustawy","Podatek należny od poz. K_31","Wysokość podatku należnego od towarów objętych spisem z natury, o którym mowa w art. 14 ust. 5 ustawy","Wysokość zwrotu odliczonej lub zwróconej kwoty wydanej na zakup kas rejestrujących, o którym mowa w art. 111 ust. 6 ustawy","Podatek należny od wewnątrzwspólnotowego nabycia środków transportu, wykazana w wysokości podatku należnego z tytułu wewnątrzwspólnotowego nabycia towarów, podlegająca wpłacie w terminie, o którym mowa w art. 103 ust. 3, w związku z ust. 4 ustawy","Wysokość podatku należnego od wewnątrzwspólnotowego nabycia towarów, o których mowa w art. 103 ust. 5aa ustawy, podlegająca wpłacie w terminie, o którym mowa w art. 103 ust. 5a i 5b ustawy","Wartość sprzedaży brutto dostawy towarów i świadczenia usług opodatkowanych na zasadach marży zgodnie z art. 119 i art. 120 "]
[{"$f":"COUNTA(A4:A1048576)","v":0},{"$f":"COUNTIF(H4:H1048576,\"FP\")","v":0},null,"Drugi miesiąc kwartału (luty, maj, sierpień, listopad)",null,null,null,"Enter","Enter","Enter","Enter","Enter","Enter","Enter","Enter","Enter","Enter","Enter","Enter","Enter","Enter","Enter","Enter","Enter","Enter","Enter","Enter","Enter","Enter","Enter","Enter","Enter","Enter",null,null,null,{"$f":"SUMIF($H4:$H1048576,\"<>FP\",AK4:AK1048576)","v":0},0,0,0,0,0,0,0,0,0,0,0,0,0,0,0,0,0,0,0,0,0,0,0,0,0,0,0]
["LpSprzedazy","KodKrajuNadaniaTIN","NrKontrahenta","NazwaKontrahenta","DowodSprzedazy","DataWystawienia","DataSprzedazy","TypDokumentu","GTU_01","GTU_02","GTU_03","GTU_04","GTU_05","GTU_06","GTU_07","GTU_08","GTU_09","GTU_10","GTU_11","GTU_12","GTU_13","WSTO_EE","IED","TP","TT_WNT","TT_D","MR_T","MR_UZ","I_42","I_63","B_SPV","B_SPV_DOSTAWA","B_MPV_PROWIZJA","KorektaPodstawyOpodt","TerminPlatnosci","DataZaplaty","K_10","K_11","K_12","K_13","K_14","K_15","K_16","K_17","K_18","K_19","K_20","K_21","K_22","K_23","K_24","K_25","K_26","K_27","K_28","K_29","K_30","K_31","K_32","K_33","K_34","K_35","K_36","SprzedazVAT_Marza"]

{"sheet":"Sprzedaż-III","index":4,"n_rows":3,"n_cols":64,"rows_kept":3,"cut":false,"hidden":false,"merged":[[1,3,1,4]]}
["Lp\nsprzedaży\n\nWypełnia\nprzycisk\n'Sprawdź\"","Kod kraju nadania numeru, za pomocą którego nabywca, dostawca lub usługodawca jest zidentyfikowany na potrzeby podatku lub podatku od wartości dodanej","Numer, za pomocą którego nabywca, dostawca lub usługodawca jest zidentyfikowany na potrzeby podatku lub podatku od wartości dodanej (wyłącznie kod cyfrowo-literowy)","Imię i nazwisko lub nazwa nabywcy, dostawcy lub usługodawcy","Numer dowodu","Data wystawienia dowodu","Data dokonania lub zakończenia dostawy towarów lub wykonania usługi lub data otrzymania zapłaty, o której mowa w art. 106b ust. 1 pkt 4 ustawy, o ile taka data jest określona i różni się od daty wystawienia dowodu. W przeciwnym przypadku - pole puste","Oznaczenie dowodu sprzedaży\n=\nRO\nFP\nWEW","Dostawa napojów alkoholowych - alkoholu etylowego, piwa, wina, napojów fermentowanych i wyrobów pośrednich, w rozumieniu przepisów o podatku akcyzowym","Dostawa towarów, o których mowa w art. 103 ust. 5aa ustawy","Dostawa oleju opałowego w rozumieniu przepisów o podatku akcyzowym oraz olejów smarowych, pozostałych olejów o kodach CN od 2710 19 71 do 2710 19 99, z wyłączeniem wyrobów o kodzie CN 2710 19 85 (oleje białe, parafina ciekła) oraz smarów plastycznych zaliczanych do kodu CN 2710 19 99, olejów smarowych o kodzie CN 2710 20 90, preparatów smarowych objętych pozycją CN 3403, z wyłączeniem smarów plastycznych objętych tą pozycją","Dostawa wyrobów tytoniowych, suszu tytoniowego, płynu do papierosów elektronicznych i wyrobów nowatorskich, w rozumieniu przepisów o podatku akcyzowym","Dostawa odpadów - wyłącznie określonych w poz. 79-91 załącznika nr 15 do ustawy","Dostawa urządzeń elektronicznych oraz części i materiałów do nich, wyłącznie określonych w poz. 7-9, 59-63, 65, 66, 69 i 94-96 załącznika nr 15 do ustawy","Dostawa pojazdów oraz części samochodowych o kodach wyłącznie CN 8701 - 8708 oraz CN 8708 10","Dostawa metali szlachetnych oraz nieszlachetnych - wyłącznie określonych w poz. 1-3 załącznika nr 12 do ustawy oraz w poz. 12-25, 33-40, 45, 46, 56 i 78 załącznika nr 15 do ustawy","Dostawa leków oraz wyrobów medycznych - produktów leczniczych, środków spożywczych specjalnego przeznaczenia żywieniowego oraz wyrobów medycznych, objętych obowiązkiem zgłoszenia, o którym mowa w art. 37av ust. 1 ustawy z dnia 6 września 2001 r. - Prawo farmaceutyczne (Dz. U. z 2019 r. poz. 499, z późn. zm.)","Dostawa budynków, budowli i gruntów","Świadczenie usług w zakresie przenoszenia uprawnień do emisji gazów cieplarnianych, o których mowa w ustawie z dnia 12 czerwca 2015 r. o systemie handlu uprawnieniami do emisji gazów cieplarnianych (Dz. U. z 2018 r. poz. 1201 i 2538 oraz z 2019 r. poz. 730, 1501 i 1532)","Świadczenie usług o charakterze niematerialnym - wyłącznie: doradczych, księgowych, prawnych, zarządczych, szkoleniowych, marketingowych, firm centralnych (head offices), reklamowych, badania rynku i opinii publicznej, w zakresie badań naukowych i prac rozwojowych","Świadczenie usług transportowych i gospodarki magazynowej - Sekcja H PKWiU 2015 symbol ex 49.4, ex 52.1","Sprzedaż towarów na odległość oraz świadczenia usług telekomunikacyjnych, nadawczych i elektronicznycho których mowa w art. 28k ustawy, na rzecz podmiotów niebędących podatnikami na terytorium innego państwa członkowskiego","Dostawa towarów, o której mowa w art. 7a ust. 1 i 2 ustawy, dokonanej przez podatnika, który nie korzysta z procedury szczególnej, o której mowa w dziale XII w rozdziale 6a lub 9 ustawy lub w odpowiadających im regulacjach, dla której miejscem dostawy jest terytorium kraju ","Istniejące powiązania między nabywcą a dokonującym dostawy towarów lub usługodawcą, o których mowa w art. 32 ust. 2 pkt 1 ustawy","Wewnątrzwspólnotowe nabycie towarów dokonane przez drugiego w kolejności podatnika VAT w ramach transakcji trójstronnej w procedurze uproszczonej, o której mowa w dziale XII rozdziale 8 ustawy","Dostawa towarów poza terytorium kraju dokonana przez drugiego w kolejności podatnika VAT w ramach transakcji trójstronnej w procedurze uproszczonej, o której mowa w dziale XII rozdziale 8 ustawy","Świadczenie usług turystyki opodatkowane na zasadach marży zgodnie z art. 119 ustawy","Dostawa towarów używanych, dzieł sztuki, przedmiotów kolekcjonerskich i antyków, opodatkowana na zasadach marży zgodnie z art. 120 ustawy","Wewnątrzwspólnotowa dostawa towarów następująca po imporcie tych towarów w ramach procedury celnej 42 (import)","Wewnątrzwspólnotowa dostawa towarów następująca po imporcie tych towarów w ramach procedury celnej 63 (import)","Transfer bonu jednego przeznaczenia dokonany przez podatnika działającego we własnym imieniu, opodatkowany zgodnie z art. 8a ust. 1 ustawy","Dostawa towarów oraz świadczenie usług, których dotyczy bon jednego przeznaczenia na rzecz podatnika, który wyemitował bon zgodnie z art. 8a ust. 4 ustawy","Świadczenie usług pośrednictwa oraz innych usług dotyczących transferu bonu różnego przeznaczenia, opodatkowane zgodnie z art. 8b ust. 2 ustawy","Korekta podstawy opodatkowania oraz podatku należnego, o której mowa w art. 89a ust. 1 i 4 ustawy\n\n1 = tak","Data upływu terminu płatności w przypadku korekt dokonanych zgodnie z art. 89a ust. 1 ustawy","Data dokonania zapłaty w przypadku korekt dokonanych zgodnie z art. 89a ust. 4 ustawy","Dostawa towarów oraz świadczenie usług, na terytorium kraju, zwolnione od podatku","Dostawa towarów oraz świadczenie usług poza terytorium kraju","w tym świadczenie usług, o których mowa w art. 100 ust.1 pkt 4 ustawy","Dostawa towarów oraz świadczenie usług na terytorium kraju, opodatkowane stawką 0%","w tym dostawa towarów, o której mowa w art. 129 ustawy","Dostawa towarów oraz świadczenie usług na terytorium kraju, opodatkowane stawką 5%, oraz korekta zgodnie z art. 89a ust. 1 i 4 ustawy","Podatek należny 5% od poz. K_15, oraz korekta zgodnie z art. 89a ust. 1 i 4 ustawy","Dostawa towarów oraz świadczenie usług na terytorium kraju, opodatkowane stawką 7% albo 8% oraz korekta zgodnie z art. 89a ust. 1 i 4 ","Podatek należny 7% albo 8%, oraz korekta zgodnie z art. 89a ust. 1 i 4 ustawy","Dostawa towarów oraz świadczenie usług na terytorium kraju, opodatkowane stawką 22% albo 23% oraz korekta zgodnie z art. 89a ust. 1 i 4 ","Podatek należny 22% albo 23% oraz korekta zgodnie z art. 89a ust. 1 i 4 ","Wewnątrzwspólnotowa dostawa towarów, o której mowa w art. 13 ust. 1 i 3 ustawy","Eksport towarów","Wewnątrzwspólnotowe nabycie towarów","Podatek należny od poz. K_23","Import towarów, podlegający rozliczeniu zgodnie z art. 33a ustawy, potwierdzona zgłoszeniem celnym lub deklaracją importową, o której mowa w art. 33b ustawy","Podatek należny od poz. K_25","Import usług z wyłączeniem usług nabywanych od podatników podatku od wartości dodanej, do których stosuje się art. 28b ustawy","Podatek należny od poz. K_27","Import usług nabywanych od podatników podatku od wartości dodanej, do których stosuje się art. 28b ustawy","Podatek należny od poz. K_29","Dostawa towarów, dla których podatnikiem jest nabywca zgodnie z art. 17 ust. 1 pkt 5 ustawy","Podatek należny od poz. K_31","Wysokość podatku należnego od towarów objętych spisem z natury, o którym mowa w art. 14 ust. 5 ustawy","Wysokość zwrotu odliczonej lub zwróconej kwoty wydanej na zakup kas rejestrujących, o którym mowa w art. 111 ust. 6 ustawy","Podatek należny od wewnątrzwspólnotowego nabycia środków transportu, wykazana w wysokości podatku należnego z tytułu wewnątrzwspólnotowego nabycia towarów, podlegająca wpłacie w terminie, o którym mowa w art. 103 ust. 3, w związku z ust. 4 ustawy","Wysokość podatku należnego od wewnątrzwspólnotowego nabycia towarów, o których mowa w art. 103 ust. 5aa ustawy, podlegająca wpłacie w terminie, o którym mowa w art. 103 ust. 5a i 5b ustawy","Wartość sprzedaży brutto dostawy towarów i świadczenia usług opodatkowanych na zasadach marży zgodnie z art. 119 i art. 120 "]
[{"$f":"COUNTA(A4:A1048576)","v":0},{"$f":"COUNTIF(H4:H1048576,\"FP\")","v":0},null,"Trzeci miesiąc kwartału (marzec, czerwiec, wrzesień, grudzień)",null,null,null,"Enter","Enter","Enter","Enter","Enter","Enter","Enter","Enter","Enter","Enter","Enter","Enter","Enter","Enter","Enter","Enter","Enter","Enter","Enter","Enter","Enter","Enter","Enter","Enter","Enter","Enter",null,null,null,{"$f":"SUMIF($H4:$H1048576,\"<>FP\",AK4:AK1048576)","v":0},0,0,0,0,0,0,0,0,0,0,0,0,0,0,0,0,0,0,0,0,0,0,0,0,0,0,0]
["LpSprzedazy","KodKrajuNadaniaTIN","NrKontrahenta","NazwaKontrahenta","DowodSprzedazy","DataWystawienia","DataSprzedazy","TypDokumentu","GTU_01","GTU_02","GTU_03","GTU_04","GTU_05","GTU_06","GTU_07","GTU_08","GTU_09","GTU_10","GTU_11","GTU_12","GTU_13","WSTO_EE","IED","TP","TT_WNT","TT_D","MR_T","MR_UZ","I_42","I_63","B_SPV","B_SPV_DOSTAWA","B_MPV_PROWIZJA","KorektaPodstawyOpodt","TerminPlatnosci","DataZaplaty","K_10","K_11","K_12","K_13","K_14","K_15","K_16","K_17","K_18","K_19","K_20","K_21","K_22","K_23","K_24","K_25","K_26","K_27","K_28","K_29","K_30","K_31","K_32","K_33","K_34","K_35","K_36","SprzedazVAT_Marza"]

{"sheet":"Zakupy-I","index":5,"n_rows":3,"n_cols":18,"rows_kept":3,"cut":false,"hidden":false,"merged":[[1,3,1,4]]}
["Lp\nzakupów\n\nWypełnia\nprzycisk\n'Sprawdź\"","Kod kraju nadania numeru, za pomocą którego dostawca lub usługodawca jest zidentyfikowany na potrzeby podatku lub podatku od wartości dodanej","Numer, za pomocą którego dostawca lub usługodawca jest zidentyfikowany na potrzeby podatku lub podatku od wartości dodanej (wyłącznie kod cyfrowo-literowy)","Imię i nazwisko lub nazwa dostawcy lub usługodawcy","Numer dowodu zakupu","Data wystawienia dowodu zakupu","Data wpływu dowodu zakupu\n\nPola szare ciemniejsze -\nnieobowiązkowe","Oznaczenie dowodu zakupu\n\n\nNaciśnij Enter","Oznaczenie dotyczące podatku naliczonego z tytułu importu towarów, w tym importu towarów rozliczanego zgodnie z art. 33a ustawy\n1 = tak","Wartość netto wynikająca z nabycia towarów i usług zaliczanych u podatnika do środków trwałych","Wysokość podatku naliczonego przysługująca do odliczenia z podstaw określonych w art. 86 ust. 2 ustawy, na warunkach określonych w ustawie wynikająca z nabycia towarów i usług zaliczanych u podatnika do środków trwałych","Wartość netto wynikająca z nabycia pozostałych towarów i usług","Wysokość podatku naliczonego przysługująca do odliczenia z podstaw określonych w art. 86 ust. 2 ustawy, na warunkach określonych w ustawie wynikająca z nabycia pozostałych towarów i usług","Wysokość podatku naliczonego wynikająca z korekt podatku naliczonego, o których mowa w art. 90a-90c oraz art. 91 ustawy, z tytułu nabycia towarów i usług zaliczanych u podatnika do środków trwałych","Wysokość podatku naliczonego wynikająca z korekt podatku naliczonego, o których mowa w art. 90a-90c oraz art. 91 ustawy, z tytułu nabycia pozostałych towarów i usług","Wysokość podatku naliczonego wynikająca z korekty podatku naliczonego, o której mowa w art. 89b ust. 1 ustawy","Wysokość podatku naliczonego wynikająca z korekty podatku naliczonego, o której mowa w art. 89b ust. 4 ustawy","Kwota nabycia towarów i usług nabytych od innych podatników dla bezpośredniej korzyści turysty, a także nabycia towarów używanych, dzieł sztuki, przedmiotów kolekcjonerskich i antyków związanych ze sprzedażą opodatkowaną na zasadzie marży zgodnie z art. 120 ustawy"]
[{"$f":"COUNTA(A4:A1048576)","v":0},null,null,"Pierwszy miesiąc kwartału (styczeń, kwiecień, lipiec, październik)",null,null,null,null,null,{"$f":"SUM(J4:J1048576)","v":0},0,0,0,0,0,0,0,0]
["LpZakupu","KodKrajuNadaniaTIN","NrDostawcy","NazwaDostawcy","DowodZakupu","DataZakupu","DataWplywu","DokumentZakupu","IMP","K_40","K_41","K_42","K_43","K_44","K_45","K_46","K_47","ZakupVAT_Marza"]

{"sheet":"Zakupy-II","index":6,"n_rows":3,"n_cols":18,"rows_kept":3,"cut":false,"hidden":false,"merged":[[1,3,1,4]]}
["Lp\nzakupów\n\nWypełnia\nprzycisk\n'Sprawdź\"","Kod kraju nadania numeru, za pomocą którego dostawca lub usługodawca jest zidentyfikowany na potrzeby podatku lub podatku od wartości dodanej","Numer, za pomocą którego dostawca lub usługodawca jest zidentyfikowany na potrzeby podatku lub podatku od wartości dodanej (wyłącznie kod cyfrowo-literowy)","Imię i nazwisko lub nazwa dostawcy lub usługodawcy","Numer dowodu zakupu","Data wystawienia dowodu zakupu","Data wpływu dowodu zakupu\n\nPola szare ciemniejsze -\nnieobowiązkowe","Oznaczenie dowodu zakupu\n\n\nNaciśnij Enter","Oznaczenie dotyczące podatku naliczonego z tytułu importu towarów, w tym importu towarów rozliczanego zgodnie z art. 33a ustawy\n1 = tak","Wartość netto wynikająca z nabycia towarów i usług zaliczanych u podatnika do środków trwałych","Wysokość podatku naliczonego przysługująca do odliczenia z podstaw określonych w art. 86 ust. 2 ustawy, na warunkach określonych w ustawie wynikająca z nabycia towarów i usług zaliczanych u podatnika do środków trwałych","Wartość netto wynikająca z nabycia pozostałych towarów i usług","Wysokość podatku naliczonego przysługująca do odliczenia z podstaw określonych w art. 86 ust. 2 ustawy, na warunkach określonych w ustawie wynikająca z nabycia pozostałych towarów i usług","Wysokość podatku naliczonego wynikająca z korekt podatku naliczonego, o których mowa w art. 90a-90c oraz art. 91 ustawy, z tytułu nabycia towarów i usług zaliczanych u podatnika do środków trwałych","Wysokość podatku naliczonego wynikająca z korekt podatku naliczonego, o których mowa w art. 90a-90c oraz art. 91 ustawy, z tytułu nabycia pozostałych towarów i usług","Wysokość podatku naliczonego wynikająca z korekty podatku naliczonego, o której mowa w art. 89b ust. 1 ustawy","Wysokość podatku naliczonego wynikająca z korekty podatku naliczonego, o której mowa w art. 89b ust. 4 ustawy","Kwota nabycia towarów i usług nabytych od innych podatników dla bezpośredniej korzyści turysty, a także nabycia towarów używanych, dzieł sztuki, przedmiotów kolekcjonerskich i antyków związanych ze sprzedażą opodatkowaną na zasadzie marży zgodnie z art. 120 ustawy"]
[{"$f":"COUNTA(A4:A1048576)","v":0},null,null,"Drugi miesiąc kwartału (luty, maj, sierpień, listopad)",null,null,null,null,null,{"$f":"SUM(J4:J1048576)","v":0},0,0,0,0,0,0,0,0]
["LpZakupu","KodKrajuNadaniaTIN","NrDostawcy","NazwaDostawcy","DowodZakupu","DataZakupu","DataWplywu","DokumentZakupu","IMP","K_40","K_41","K_42","K_43","K_44","K_45","K_46","K_47","ZakupVAT_Marza"]

{"sheet":"Zakupy-III","index":7,"n_rows":3,"n_cols":18,"rows_kept":3,"cut":false,"hidden":false,"merged":[[1,3,1,4]]}
["Lp\nzakupów\n\nWypełnia\nprzycisk\n'Sprawdź\"","Kod kraju nadania numeru, za pomocą którego dostawca lub usługodawca jest zidentyfikowany na potrzeby podatku lub podatku od wartości dodanej","Numer, za pomocą którego dostawca lub usługodawca jest zidentyfikowany na potrzeby podatku lub podatku od wartości dodanej (wyłącznie kod cyfrowo-literowy)","Imię i nazwisko lub nazwa dostawcy lub usługodawcy","Numer dowodu zakupu","Data wystawienia dowodu zakupu","Data wpływu dowodu zakupu\n\nPola szare ciemniejsze -\nnieobowiązkowe","Oznaczenie dowodu zakupu\n\n\nNaciśnij Enter","Oznaczenie dotyczące podatku naliczonego z tytułu importu towarów, w tym importu towarów rozliczanego zgodnie z art. 33a ustawy\n1 = tak","Wartość netto wynikająca z nabycia towarów i usług zaliczanych u podatnika do środków trwałych","Wysokość podatku naliczonego przysługująca do odliczenia z podstaw określonych w art. 86 ust. 2 ustawy, na warunkach określonych w ustawie wynikająca z nabycia towarów i usług zaliczanych u podatnika do środków trwałych","Wartość netto wynikająca z nabycia pozostałych towarów i usług","Wysokość podatku naliczonego przysługująca do odliczenia z podstaw określonych w art. 86 ust. 2 ustawy, na warunkach określonych w ustawie wynikająca z nabycia pozostałych towarów i usług","Wysokość podatku naliczonego wynikająca z korekt podatku naliczonego, o których mowa w art. 90a-90c oraz art. 91 ustawy, z tytułu nabycia towarów i usług zaliczanych u podatnika do środków trwałych","Wysokość podatku naliczonego wynikająca z korekt podatku naliczonego, o których mowa w art. 90a-90c oraz art. 91 ustawy, z tytułu nabycia pozostałych towarów i usług","Wysokość podatku naliczonego wynikająca z korekty podatku naliczonego, o której mowa w art. 89b ust. 1 ustawy","Wysokość podatku naliczonego wynikająca z korekty podatku naliczonego, o której mowa w art. 89b ust. 4 ustawy","Kwota nabycia towarów i usług nabytych od innych podatników dla bezpośredniej korzyści turysty, a także nabycia towarów używanych, dzieł sztuki, przedmiotów kolekcjonerskich i antyków związanych ze sprzedażą opodatkowaną na zasadzie marży zgodnie z art. 120 ustawy"]
[{"$f":"COUNTA(A4:A1048576)","v":0},null,null,"Trzeci miesiąc kwartału (marzec, czerwiec, wrzesień, grudzień)",null,null,null,null,null,{"$f":"SUM(J4:J1048576)","v":0},0,0,0,0,0,0,0,0]
["LpZakupu","KodKrajuNadaniaTIN","NrDostawcy","NazwaDostawcy","DowodZakupu","DataZakupu","DataWplywu","DokumentZakupu","IMP","K_40","K_41","K_42","K_43","K_44","K_45","K_46","K_47","ZakupVAT_Marza"]

{"sheet":"ORD-ZU","index":8,"n_rows":57,"n_cols":19,"rows_kept":57,"cut":false,"hidden":true,"merged":[[4,2,4,4],[4,5,4,8],[4,9,7,10],[4,11,7,14],[5,2,5,3],[0,1,0,15],[1,2,1,14],[2,2,2,3],[2,4,2,14],[3,2,3,14],[13,3,13,7],[13,8,13,14],[5,4,5,8],[6,2,6,4],[6,5,6,8],[7,2,7,3],[7,4,7,8],[8,2,8,14],[9,2,9,14],[10,2,10,14],[11,2,11,7],[11,8,11,14],[12,2,12,14],[20,3,20,7],[20,8,20,14],[14,3,14,7],[14,8,14,14],[15,3,15,7],[15,8,15,14],[16,3,16,5],[16,6,16,7],[16,8,16,14],[17,2,17,14],[18,3,18,7],[18,8,18,14],[19,3,19,7],[19,8,19,14],[57,2,57,14],[21,3,21,5],[21,6,21,7],[21,8,21,14],[22,2,22,14],[23,2,23,14],[24,3,24,14],[25,3,53,14],[54,3,54,14],[55,2,55,14],[56,2,56,11],[56,12,56,13]]}
[null,null,null,null,null,null,null,null,null,null,null,null,null,null,null,null,null,{"$f":"IF(AND(LEN(E6)>0,LEN(E6)<>10),FALSE,IF(VALUE(MID(E6,10,1))=CEILING(MOD(((MID(E6,1,1)*6+MID(E6,2,1)*5+MID(E6,3,1)*7+MID(E6,4,1)*2+MID(E6,5,1)*3+MID(E6,6,1)*4+MID(E6,7,1)*5+MID(E6,8,1)*6+MID(E6,9,1)*7)/11),1)*10,1),TRUE,FALSE))","v":false},{"$f":"IF(AND(LEN(E8)>0,LEN(E8)<>10),FALSE,IF(VALUE(MID(E8,10,1))=CEILING(MOD(((MID(E8,1,1)*6+MID(E8,2,1)*5+MID(E8,3,1)*7+MID(E8,4,1)*2+MID(E8,5,1)*3+MID(E8,6,1)*4+MID(E8,7,1)*5+MID(E8,8,1)*6+MID(E8,9,1)*7)/11),1)*10,1),TRUE,FALSE))","v":{"$error":"#VALUE!"}}]
[null,null,null,null,null,null,null,null,null,null,null,null,null,null,null,null,null,{"$f":"IF(VALUE(RIGHT(E6,1))=ROUND(IF((MOD((IF(LEN(E6)=11,LEFT(RIGHT(E6,11),1)*1,0)+LEFT(RIGHT(E6,10),1)*3+LEFT(RIGHT(E6,9),1)*7+LEFT(RIGHT(E6,8),1)*9+LEFT(RIGHT(E6,7),1)*1+LEFT(RIGHT(E6,6),1)*3+LEFT(RIGHT(E6,5),1)*7+LEFT(RIGHT(E6,4),1)*9+LEFT(RIGHT(E6,3),1)*1+LEFT(RIGHT(E6,2),1)*3)/10,1))*10=0,0,10-(MOD((IF(LEN(E6)=11,LEFT(RIGHT(E6,11),1)*1,0)+LEFT(RIGHT(E6,10),1)*3+LEFT(RIGHT(E6,9),1)*7+LEFT(RIGHT(E6,8),1)*9+LEFT(RIGHT(E6,7),1)*1+LEFT(RIGHT(E6,6),1)*3+LEFT(RIGHT(E6,5),1)*7+LEFT(RIGHT(E6,4),1)*9+LEFT(RIGHT(E6,3),1)*1+LEFT(RIGHT(E6,2),1)*3)/10,1))*10),0),TRUE,FALSE)","v":true},{"$f":"IF(VALUE(RIGHT(E8,1))=ROUND(IF((MOD((IF(LEN(E8)=11,LEFT(RIGHT(E8,11),1)*1,0)+LEFT(RIGHT(E8,10),1)*3+LEFT(RIGHT(E8,9),1)*7+LEFT(RIGHT(E8,8),1)*9+LEFT(RIGHT(E8,7),1)*1+LEFT(RIGHT(E8,6),1)*3+LEFT(RIGHT(E8,5),1)*7+LEFT(RIGHT(E8,4),1)*9+LEFT(RIGHT(E8,3),1)*1+LEFT(RIGHT(E8,2),1)*3)/10,1))*10=0,0,10-(MOD((IF(LEN(E8)=11,LEFT(RIGHT(E8,11),1)*1,0)+LEFT(RIGHT(E8,10),1)*3+LEFT(RIGHT(E8,9),1)*7+LEFT(RIGHT(E8,8),1)*9+LEFT(RIGHT(E8,7),1)*1+LEFT(RIGHT(E8,6),1)*3+LEFT(RIGHT(E8,5),1)*7+LEFT(RIGHT(E8,4),1)*9+LEFT(RIGHT(E8,3),1)*1+LEFT(RIGHT(E8,2),1)*3)/10,1))*10),0),TRUE,FALSE)","v":{"$error":"#VALUE!"}}]
[null,null,"  POLTAX",null,"WYPEŁNIĆ DUŻYMI DRUKOWANYMI LITERAMI. CZARNYM LUB NIEBIESKIM KOLOREM."]
[]
[null,null," 1. Identyfikator podatkowy NIP",null,null,"/ numer PESEL (niepotrzebne skreślić) podmiotu 1",null,null,null," 3. Nr dokumentu",null," 4. Status"]
[null,null,null,null,{"$f":"'VAT-7K'!C7","v":0}]
[null,null," 2. Identyfikator podatkowy NIP",null,null,"/ numer PESEL (niepotrzebne skreślić) podmiotu 2"]
[]
[null,null," ORD-ZU"]
[null,null,"                UZASADNIENIE PRZYCZYN KOREKTY DEKLARACJI VAT-7"]
[null,null,"  A. DANE IDENTYFIKACYJNE"]
[null,null,"          * - dotyczy podatników niebędących osobami fizycznymi",null,null,null,null,null," ** - dotyczy podatników będących osobami fizycznymi"]
[null,null,"  A.1. DANE IDENTYFIKACYJNE PODMIOTU 1"]
[null,null,null," 5. Nazwa pełna */ Nazwisko **",null,null,null,null," 6. Nazwa skrócona */ Pierwsze imię **"]
[null,null,null,{"$f":"'VAT-7K'!E27","v":0},null,null,null,null,{"$f":"'VAT-7K'!E28","v":0}]
[null,null,null," 7. Data urodzenia **",null,null,null,null," 8. REGON * / PESEL**"]
[null,null,null,null,null,null,{"$f":"'VAT-7K'!E29","v":0}]
[null,null,"  A.2. DANE IDENTYFIKACYJNE PODMIOTU 2"]
[null,null,null," 9. Nazwa pełna */ Nazwisko **",null,null,null,null," 10. Nazwa skrócona */ Pierwsze imię **"]
[]
[null,null,null," 11. Data urodzenia **",null,null,null,null," 12. REGON * / PESEL**"]
[]
[]
[null,null,"  B. UZASADNIENIE PRZYCZYN ZŁOŻENIA KOREKTY"]
[null,null,null,"  13. Treść uzasadnienia"]
[]
[]
[]
[]
[]
[]
[]
[]
[]
[]
[]
[]
[]
[]
[]
[]
[]
[]
[]
[]
[]
[]
[]
[]
[]
[]
[]
[]
[]
[]
[]
[null,null,null,null,null,null,null,null,null,null,null,null,"ORD-ZU(3)",null,"1/1"]

{"sheet":"Czynny_żal","index":9,"n_rows":53,"n_cols":5,"rows_kept":53,"cut":false,"hidden":true,"merged":[[51,1,51,3],[52,1,52,3],[53,1,53,4],[43,1,45,4],[46,1,46,4],[47,1,47,4],[48,1,48,4],[49,1,49,4],[50,1,50,4],[42,2,42,3],[12,1,12,2],[13,1,13,2],[14,1,14,4],[15,1,15,4],[16,1,16,4],[17,1,17,4],[20,1,32,4],[33,1,33,4],[34,1,34,4],[35,1,35,4],[36,1,41,4],[11,1,11,2],[0,0,0,5],[1,0,1,5],[2,0,2,5],[3,0,3,5],[4,1,4,4],[5,1,5,4],[6,1,6,2],[7,1,7,2],[8,1,8,2],[9,1,9,2],[10,1,10,2]]}
["Art. 61a § 1 Kodeksu karnego skarbowego (od 01.10.2020 r.)"]
["Kto wbrew obowiązkowi nie przesyła księgi organowi podatkowemu albo przesyła ją nierzetelną podlega karze grzywny."]
["Korekta części ewidencyjnej JPK (nie dotyczy VAT-7) wymaga złożenia \"czynnego żalu\" aby uniknąć ww. konsekwencji."]
["Składa się w formie papierowej lub wysyła przez e-PUAP do swojego urzędu skarbowego."]
[]
[]
[null,null,null,null,{"$f":"TODAY()","v":"2024-02-19"}]
[null,"(imię i nazwisko)"]
[]
[]
[null,"(adres)"]
[null,{"$f":"'VAT-7K'!C7","v":0}]
[null,"(NIP)",null,null,"Naczelnik Urzędu Skarbowego"]
[null,null,null,null,{"$f":"'VAT-7K'!E18","v":0}]
[]
[null,"ZAWIADOMIENIE O POPEŁNIENIU CZYNU ZABRONIONEGO"]
[null,"(czynny żal)"]
[]
[null,"     Na podstawie art. 16 § 1 Kodeksu karnego skarbowego zawiadamiam o popełnieniu przeze mnie czynu"]
[null,"zabronionego polegającego na tym, że:"]
[null,"nie zamieściłam obowiązkowych oznaczeń kodów „FP” dla wystawionych w 10/2020 faktur do paragonu w części ewidencyjnej JPK_V7K za październik 2020 roku składanym do 25 listopada 2020 roku."]
[]
[]
[]
[]
[]
[]
[]
[]
[]
[]
[]
[]
[null,"      Jednocześnie oświadczam, że przy popełnieniu ww. czynu nie współdziałałem/łam z innymi osobami."]
[]
[null,"      Niedotrzymanie ustawowych obowiązków jako podatnika wynikało z faktu, iż:"]
[null,"przeoczyłam w systemie księgowo-fakturującym funkcję odpowiedzialną za nadanie kodu „FP”."]
[]
[]
[]
[]
[]
[null,"       Informuję również, że w dniu",null,null,"wywiązałem/łam się z zaległych zobowiązań dokonując "]
[null,"złożenia korekty JPK_V7M za październik 2020 roku."]
[]
[]
[null,"      W związku z powyższym wnoszę o odstąpienie od stosowania sankcji przewidzianych w KKS.\n"]
[]
[]
[]
[]
[]
[null,null,null,null,"(podpis zgłaszającego czynny żal)"]

{"sheet":"A","index":10,"n_rows":2,"n_cols":2,"rows_kept":2,"cut":false,"hidden":true,"merged":[]}
[]
["Licencja programu wygasła. Zapraszamy na SignForm.pl tel. 608 43 63 83",{"$f":"\"Liczba danych do zapisu w pliku XML przekracza\nlimit \"&B1&\" pozycji określony dla tej wersji programu.\nZapis danych XML został zatrzymany.\n\n            biuro@signform.pl tel. 608 43 63 83\"","v":"Liczba danych do zapisu w pliku XML przekracza\nlimit  pozycji określony dla tej wersji programu.\nZapis danych XML został zatrzymany.\n\n            biuro@signform.pl tel. 608 43 63 83"}]